Workbook

Sheet Main
B10: 2021-02-24
B12: Sheet No. | C12: Template Name | D12: Summary
B13: 1 | C13: Future Intra | D13: For Intraday trading in F&O segment
B14: 2 | C14: Cash Intra | D14: For Intraday trading in cash market segment
B15: 3 | C15: Mid-cap Intra | D15: For Intraday trading in Mid-cap stocks
B16: 4 | C16: Bulk Deals | D16: Reveals Bulk Deals carried on NSE & BSE
B17: 5 | C17: Call Tracker
K27: `

Sheet Future Intra
M5: Back to Main Page
A6: FOR INTRA DAY TRADING | L6: =Main!B10 -> 2021-02-24
A9: Sr.no | B9: Sector | C9: Scrip | D9: Expiry Date | E9: CLOSE RATE | F9: Pivot Point | G9: Supports | J9: Resistances
B10: Sector | E10: Point | F10: Point | G10: S1 | H10: S2 | I10: S3 | J10: R1 | K10: R2 | L10: R3 | M10: HIGH | N10: LOW | O10: OI | P10: % Change in OI
A11: 1 | B11: Index | C11: BANKNIFTY | D11: 2021-02-25 | E11: 35119.85 | F11: 35274.52 | G11: 34834.08 | H11: 34548.32 | I11: 34107.88 | J11: 35560.28 | K11: 36000.72 | L11: 36286.48 | M11: 35714.95 | N11: 34988.75 | O11: 1863175 | P11: 3.15%
A12: 2 | B12: Index | C12: NIFTY | D12: 2021-02-25 | E12: 14711.55 | F12: 14748.37 | G12: 14625.73 | H12: 14539.92 | I12: 14417.28 | J12: 14834.18 | K12: 14956.82 | L12: 15042.63 | M12: 14871 | N12: 14662.55 | O12: 12512925 | P12: -0.34%
A13: 3 | B13: Index | C13: FINNIFTY | D13: 2021-02-25 | E13: 16406.00 | F13: 16503.98 | G13: 16270.02 | H13: 16134.03 | I13: 15900.07 | J13: 16639.97 | K13: 16873.93 | L13: 17009.92 | M13: 16737.95 | N13: 16368 | O13: 26840 | P13: 6.34%
A14: 4 | B14: Others | C14: AARTIIND | D14: 2021-02-25 | E14: 1241.10 | F14: 1236.38 | G14: 1223.77 | H14: 1206.43 | I14: 1193.82 | J14: 1253.72 | K14: 1266.33 | L14: 1283.67 | M14: 1249 | N14: 1219.05 | O14: 437750 | P14: -2.83%
A15: 5 | B15: Cement | C15: ACC | D15: 2021-02-25 | E15: 1703.05 | F15: 1706.65 | G15: 1684.30 | H15: 1665.55 | I15: 1643.20 | J15: 1725.40 | K15: 1747.75 | L15: 1766.50 | M15: 1729 | N15: 1687.9 | O15: 3204000 | P15: 0.50%
A16: 6 | B16: Others | C16: ADANIENT | D16: 2021-02-25 | E16: 798.55 | F16: 804.85 | G16: 782.50 | H16: 766.45 | I16: 744.10 | J16: 820.90 | K16: 843.25 | L16: 859.30 | M16: 827.2 | N16: 788.8 | O16: 18684000 | P16: 5.65%
A17: 7 | B17: Others | C17: ADANIPORTS | D17: 2021-02-25 | E17: 664.40 | F17: 669.70 | G17: 655.90 | H17: 647.40 | I17: 633.60 | J17: 678.20 | K17: 692.00 | L17: 700.50 | M17: 683.5 | N17: 661.2 | O17: 59967500 | P17: 1.22%
A18: 8 | B18: Automobile | C18: AMARAJABAT | D18: 2021-02-25 | E18: 883.30 | F18: 883.85 | G18: 868.70 | H18: 854.10 | I18: 838.95 | J18: 898.45 | K18: 913.60 | L18: 928.20 | M18: 899 | N18: 869.25 | O18: 3347000 | P18: -19.79%
A19: 9 | B19: Cement | C19: AMBUJACEM | D19: 2021-02-25 | E19: 265.30 | F19: 267.02 | G19: 262.23 | H19: 259.17 | I19: 254.38 | J19: 270.08 | K19: 274.87 | L19: 277.93 | M19: 271.8 | N19: 263.95 | O19: 20214000 | P19: 9.24%
A20: 10 | B20: Others | C20: APOLLOHOSP | D20: 2021-02-25 | E20: 2994.80 | F20: 2997.18 | G20: 2941.97 | H20: 2889.13 | I20: 2833.92 | J20: 3050.02 | K20: 3105.23 | L20: 3158.07 | M20: 3052.4 | N20: 2944.35 | O20: 1717500 | P20: -5.71%
A21: 11 | B21: Automobile | C21: APOLLOTYRE | D21: 2021-02-25 | E21: 229.75 | F21: 228.38 | G21: 224.82 | H21: 219.88 | I21: 216.32 | J21: 233.32 | K21: 236.88 | L21: 241.82 | M21: 231.95 | N21: 223.45 | O21: 18185000 | P21: 3.77%
A22: 12 | B22: Automobile | C22: ASHOKLEY | D22: 2021-02-25 | E22: 126.25 | F22: 125.13 | G22: 121.67 | H22: 117.08 | I22: 113.62 | J22: 129.72 | K22: 133.18 | L22: 137.77 | M22: 128.6 | N22: 120.55 | O22: 44199000 | P22: -6.60%
A23: 13 | B23: FMCG | C23: ASIANPAINT | D23: 2021-02-25 | E23: 2377.55 | F23: 2365.88 | G23: 2327.67 | H23: 2277.78 | I23: 2239.57 | J23: 2415.77 | K23: 2453.98 | L23: 2503.87 | M23: 2404.1 | N23: 2316 | O23: 6344400 | P23: 0.32%
A24: 14 | B24: Pharma | C24: AUROPHARMA | D24: 2021-02-25 | E24: 855.90 | F24: 853.15 | G24: 841.80 | H24: 827.70 | I24: 816.35 | J24: 867.25 | K24: 878.60 | L24: 892.70 | M24: 864.5 | N24: 839.05 | O24: 9798100 | P24: 3.18%
A25: 15 | B25: Banking | C25: AXISBANK | D25: 2021-02-25 | E25: 717.95 | F25: 723.33 | G25: 709.27 | H25: 700.58 | I25: 686.52 | J25: 732.02 | K25: 746.08 | L25: 754.77 | M25: 737.4 | N25: 714.65 | O25: 46009200 | P25: 0.70%
A26: 16 | B26: Automobile | C26: BAJAJ-AUTO | D26: 2021-02-25 | E26: 3922.45 | F26: 3944.72 | G26: 3877.73 | H26: 3833.02 | I26: 3766.03 | J26: 3989.43 | K26: 4056.42 | L26: 4101.13 | M26: 4011.7 | N26: 3900 | O26: 1829000 | P26: 2.21%
A27: 17 | B27: Finance | C27: BAJAJFINSV | D27: 2021-02-25 | E27: 10030.75 | F27: 10059.85 | G27: 9917.85 | H27: 9804.95 | I27: 9662.95 | J27: 10172.75 | K27: 10314.75 | L27: 10427.65 | M27: 10201.85 | N27: 9946.95 | O27: 605250 | P27: -2.97%
A28: 18 | B28: Finance | C28: BAJFINANCE | D28: 2021-02-25 | E28: 5394.55 | F28: 5423.12 | G28: 5331.48 | H28: 5268.42 | I28: 5176.78 | J28: 5486.18 | K28: 5577.82 | L28: 5640.88 | M28: 5514.75 | N28: 5360.05 | O28: 4476250 | P28: -9.78%
A29: 19 | B29: Automobile | C29: BALKRISIND | D29: 2021-02-25 | E29: 1591.35 | F29: 1569.30 | G29: 1541.25 | H29: 1491.15 | I29: 1463.10 | J29: 1619.40 | K29: 1647.45 | L29: 1697.55 | M29: 1597.35 | N29: 1519.2 | O29: 3030800 | P29: -1.50%
A30: 20 | B30: Banking | C30: BANDHANBNK | D30: 2021-02-25 | E30: 326.25 | F30: 326.73 | G30: 322.32 | H30: 318.38 | I30: 313.97 | J30: 330.67 | K30: 335.08 | L30: 339.02 | M30: 331.15 | N30: 322.8 | O30: 26188200 | P30: 11.04%
A31: 21 | B31: Banking | C31: BANKBARODA | D31: 2021-02-25 | E31: 86.00 | F31: 87.58 | G31: 83.72 | H31: 81.43 | I31: 77.57 | J31: 89.87 | K31: 93.73 | L31: 96.02 | M31: 91.45 | N31: 85.3 | O31: 97589700 | P31: 12.73%
A32: 22 | B32: FMCG | C32: BATAINDIA | D32: 2021-02-25 | E32: 1479.50 | F32: 1468.95 | G32: 1449.45 | H32: 1419.40 | I32: 1399.90 | J32: 1499.00 | K32: 1518.50 | L32: 1548.55 | M32: 1488.45 | N32: 1438.9 | O32: 2037750 | P32: 1.90%
A33: 23 | B33: Capital_Goods | C33: BEL | D33: 2021-02-25 | E33: 134.15 | F33: 133.13 | G33: 131.17 | H33: 128.18 | I33: 126.22 | J33: 136.12 | K33: 138.08 | L33: 141.07 | M33: 135.1 | N33: 130.15 | O33: 29814800 | P33: -9.57%
A34: 24 | B34: FMCG | C34: BERGEPAINT | D34: 2021-02-25 | E34: 722.65 | F34: 724.18 | G34: 709.97 | H34: 697.28 | I34: 683.07 | J34: 736.87 | K34: 751.08 | L34: 763.77 | M34: 738.4 | N34: 711.5 | O34: 3536500 | P34: -9.26%
A35: 25 | B35: Automobile | C35: BHARATFORG | D35: 2021-02-25 | E35: 609.70 | F35: 606.60 | G35: 591.50 | H35: 573.30 | I35: 558.20 | J35: 624.80 | K35: 639.90 | L35: 658.10 | M35: 621.7 | N35: 588.4 | O35: 6814500 | P35: 0.38%
A36: 26 | B36: Telecom | C36: BHARTIARTL | D36: 2021-02-25 | E36: 565.85 | F36: 568.95 | G36: 561.20 | H36: 556.55 | I36: 548.80 | J36: 573.60 | K36: 581.35 | L36: 586.00 | M36: 576.7 | N36: 564.3 | O36: 90254760 | P36: 2.56%
A37: 27 | B37: Capital_Goods | C37: BHEL | D37: 2021-02-25 | E37: 40.90 | F37: 40.60 | G37: 39.70 | H37: 38.50 | I37: 37.60 | J37: 41.80 | K37: 42.70 | L37: 43.90 | M37: 41.5 | N37: 39.4 | O37: 117831000 | P37: -7.09%
A38: 28 | B38: Pharma | C38: BIOCON | D38: 2021-02-25 | E38: 386.60 | F38: 389.98 | G38: 381.07 | H38: 375.53 | I38: 366.62 | J38: 395.52 | K38: 404.43 | L38: 409.97 | M38: 398.9 | N38: 384.45 | O38: 16357600 | P38: -4.54%
A39: 29 | B39: Automobile | C39: BOSCHLTD | D39: 2021-02-25 | E39: 14774.95 | F39: 14828.43 | G39: 14592.22 | H39: 14409.48 | I39: 14173.27 | J39: 15011.17 | K39: 15247.38 | L39: 15430.12 | M39: 15064.65 | N39: 14645.7 | O39: 94300 | P39: -1.31%
A40: 30 | B40: Oil_Gas | C40: BPCL | D40: 2021-02-25 | E40: 435.25 | F40: 434.77 | G40: 425.93 | H40: 416.62 | I40: 407.78 | J40: 444.08 | K40: 452.92 | L40: 462.23 | M40: 443.6 | N40: 425.45 | O40: 25299000 | P40: 1.30%
A41: 31 | B41: FMCG | C41: BRITANNIA | D41: 2021-02-25 | E41: 3336.85 | F41: 3344.20 | G41: 3322.40 | H41: 3307.95 | I41: 3286.15 | J41: 3358.65 | K41: 3380.45 | L41: 3394.90 | M41: 3366 | N41: 3329.75 | O41: 3169600 | P41: 3.17%
A42: 32 | B42: Pharma | C42: CADILAHC | D42: 2021-02-25 | E42: 431.20 | F42: 430.73 | G42: 423.47 | H42: 415.73 | I42: 408.47 | J42: 438.47 | K42: 445.73 | L42: 453.47 | M42: 438 | N42: 423 | O42: 12018600 | P42: -4.97%
A43: 33 | B43: Banking | C43: CANBK | D43: 2021-02-25 | E43: 159.60 | F43: 158.52 | G43: 156.03 | H43: 152.47 | I43: 149.98 | J43: 162.08 | K43: 164.57 | L43: 168.13 | M43: 161 | N43: 154.95 | O43: 53373600 | P43: -3.11%
A44: 34 | B44: Finance | C44: CHOLAFIN | D44: 2021-02-25 | E44: 515.40 | F44: 518.75 | G44: 504.70 | H44: 494.00 | I44: 479.95 | J44: 529.45 | K44: 543.50 | L44: 554.20 | M44: 532.8 | N44: 508.05 | O44: 8555000 | P44: -9.45%
A45: 35 | B45: Pharma | C45: CIPLA | D45: 2021-02-25 | E45: 789.80 | F45: 793.57 | G45: 784.33 | H45: 778.87 | I45: 769.63 | J45: 799.03 | K45: 808.27 | L45: 813.73 | M45: 802.8 | N45: 788.1 | O45: 12049700 | P45: -3.54%
A46: 36 | B46: Others | C46: COALINDIA | D46: 2021-02-25 | E46: 137.20 | F46: 137.52 | G46: 136.13 | H46: 135.07 | I46: 133.68 | J46: 138.58 | K46: 139.97 | L46: 141.03 | M46: 138.9 | N46: 136.45 | O46: 50358000 | P46: 3.00%
A47: 37 | B47: Technology | C47: COFORGE | D47: 2021-02-25 | E47: 2455.55 | F47: 2476.80 | G47: 2427.15 | H47: 2398.75 | I47: 2349.10 | J47: 2505.20 | K47: 2554.85 | L47: 2583.25 | M47: 2526.45 | N47: 2448.4 | O47: 417375 | P47: -0.36%
A48: 38 | B48: FMCG | C48: COLPAL | D48: 2021-02-25 | E48: 1558.20 | F48: 1558.03 | G48: 1544.17 | H48: 1530.13 | I48: 1516.27 | J48: 1572.07 | K48: 1585.93 | L48: 1599.97 | M48: 1571.9 | N48: 1544 | O48: 3175900 | P48: -1.41%
A49: 39 | B49: Others | C49: CONCOR | D49: 2021-02-25 | E49: 558.85 | F49: 559.28 | G49: 547.82 | H49: 536.78 | I49: 525.32 | J49: 570.32 | K49: 581.78 | L49: 592.82 | M49: 570.75 | N49: 548.25 | O49: 6470820 | P49: -5.20%
A50: 40 | B50: Capital_Goods | C50: CUMMINSIND | D50: 2021-02-25 | E50: 803.70 | F50: 793.95 | G50: 776.75 | H50: 749.80 | I50: 732.60 | J50: 820.90 | K50: 838.10 | L50: 865.05 | M50: 811.15 | N50: 767 | O50: 1744800 | P50: 4.30%
A51: 41 | B51: FMCG | C51: DABUR | D51: 2021-02-25 | E51: 500.45 | F51: 501.35 | G51: 497.70 | H51: 494.95 | I51: 491.30 | J51: 504.10 | K51: 507.75 | L51: 510.50 | M51: 505 | N51: 498.6 | O51: 12396250 | P51: -0.02%
A52: 42 | B52: Pharma | C52: DIVISLAB | D52: 2021-02-25 | E52: 3456.45 | F52: 3474.75 | G52: 3425.70 | H52: 3394.95 | I52: 3345.90 | J52: 3505.50 | K52: 3554.55 | L52: 3585.30 | M52: 3523.8 | N52: 3444 | O52: 3121600 | P52: 3.54%
A53: 43 | B53: Realty | C53: DLF | D53: 2021-02-25 | E53: 306.35 | F53: 305.08 | G53: 298.57 | H53: 290.78 | I53: 284.27 | J53: 312.87 | K53: 319.38 | L53: 327.17 | M53: 311.6 | N53: 297.3 | O53: 29307300 | P53: 0.93%
A54: 44 | B54: Pharma | C54: DRREDDY | D54: 2021-02-25 | E54: 4499.60 | F54: 4488.98 | G54: 4439.12 | H54: 4378.63 | I54: 4328.77 | J54: 4549.47 | K54: 4599.33 | L54: 4659.82 | M54: 4538.85 | N54: 4428.5 | O54: 3282625 | P54: -0.31%
A55: 45 | B55: Automobile | C55: EICHERMOT | D55: 2021-02-25 | E55: 2521.55 | F55: 2513.57 | G55: 2470.28 | H55: 2419.02 | I55: 2375.73 | J55: 2564.83 | K55: 2608.12 | L55: 2659.38 | M55: 2556.85 | N55: 2462.3 | O55: 3021550 | P55: -3.84%
A56: 46 | B56: Automobile | C56: ESCORTS | D56: 2021-02-25 | E56: 1295.95 | F56: 1282.78 | G56: 1261.62 | H56: 1227.28 | I56: 1206.12 | J56: 1317.12 | K56: 1338.28 | L56: 1372.62 | M56: 1303.95 | N56: 1248.45 | O56: 3021150 | P56: -6.20%
A57: 47 | B57: Automobile | C57: EXIDEIND | D57: 2021-02-25 | E57: 201.20 | F57: 201.25 | G57: 198.45 | H57: 195.70 | I57: 192.90 | J57: 204.00 | K57: 206.80 | L57: 209.55 | M57: 204.05 | N57: 198.5 | O57: 12762000 | P57: 1.93%
A58: 48 | B58: Banking | C58: FEDERALBNK | D58: 2021-02-25 | E58: 81.50 | F58: 81.28 | G58: 80.17 | H58: 78.83 | I58: 77.72 | J58: 82.62 | K58: 83.73 | L58: 85.07 | M58: 82.4 | N58: 79.95 | O58: 96260000 | P58: 14.36%
A59: 49 | B59: Oil_Gas | C59: GAIL | D59: 2021-02-25 | E59: 147.65 | F59: 146.27 | G59: 143.73 | H59: 139.82 | I59: 137.28 | J59: 150.18 | K59: 152.72 | L59: 156.63 | M59: 148.8 | N59: 142.35 | O59: 33409700 | P59: 2.18%
A60: 50 | B60: Pharma | C60: GLENMARK | D60: 2021-02-25 | E60: 466.75 | F60: 467.97 | G60: 459.38 | H60: 452.02 | I60: 443.43 | J60: 475.33 | K60: 483.92 | L60: 491.28 | M60: 476.55 | N60: 460.6 | O60: 5934000 | P60: 3.22%
A61: 51 | B61: Infrastructure | C61: GMRINFRA | D61: 2021-02-25 | E61: 25.45 | F61: 25.37 | G61: 25.03 | H61: 24.62 | I61: 24.28 | J61: 25.78 | K61: 26.12 | L61: 26.53 | M61: 25.7 | N61: 24.95 | O61: 173497500 | P61: 6.45%
A62: 52 | B62: FMCG | C62: GODREJCP | D62: 2021-02-25 | E62: 681.70 | F62: 687.70 | G62: 673.35 | H62: 665.00 | I62: 650.65 | J62: 696.05 | K62: 710.40 | L62: 718.75 | M62: 702.05 | N62: 679.35 | O62: 4544000 | P62: 9.26%
A63: 53 | B63: Others | C63: GODREJPROP | D63: 2021-02-25 | E63: 1497.95 | F63: 1486.83 | G63: 1464.87 | H63: 1431.78 | I63: 1409.82 | J63: 1519.92 | K63: 1541.88 | L63: 1574.97 | M63: 1508.8 | N63: 1453.75 | O63: 2168400 | P63: 2.33%
A64: 54 | B64: Cement | C64: GRASIM | D64: 2021-02-25 | E64: 1234.05 | F64: 1236.45 | G64: 1222.90 | H64: 1211.75 | I64: 1198.20 | J64: 1247.60 | K64: 1261.15 | L64: 1272.30 | M64: 1250 | N64: 1225.3 | O64: 17334650 | P64: 0.72%
A65: 55 | B65: Others | C65: HAVELLS | D65: 2021-02-25 | E65: 1127.40 | F65: 1132.97 | G65: 1116.03 | H65: 1104.67 | I65: 1087.73 | J65: 1144.33 | K65: 1161.27 | L65: 1172.63 | M65: 1149.9 | N65: 1121.6 | O65: 3565000 | P65: -0.75%
A66: 56 | B66: Technology | C66: HCLTECH | D66: 2021-02-25 | E66: 912.20 | F66: 916.10 | G66: 902.35 | H66: 892.50 | I66: 878.75 | J66: 925.95 | K66: 939.70 | L66: 949.55 | M66: 929.85 | N66: 906.25 | O66: 21254100 | P66: -0.13%
A67: 57 | B67: Finance | C67: HDFC | D67: 2021-02-25 | E67: 2635.30 | F67: 2649.47 | G67: 2613.03 | H67: 2590.77 | I67: 2554.33 | J67: 2671.73 | K67: 2708.17 | L67: 2730.43 | M67: 2685.9 | N67: 2627.2 | O67: 18015300 | P67: 3.61%
A68: 58 | B68: Finance | C68: HDFCAMC | D68: 2021-02-25 | E68: 2883.65 | F68: 2891.93 | G68: 2857.52 | H68: 2831.38 | I68: 2796.97 | J68: 2918.07 | K68: 2952.48 | L68: 2978.62 | M68: 2926.35 | N68: 2865.8 | O68: 566000 | P68: 2.24%
A69: 59 | B69: Banking | C69: HDFCBANK | D69: 2021-02-25 | E69: 1529.95 | F69: 1538.07 | G69: 1516.28 | H69: 1502.62 | I69: 1480.83 | J69: 1551.73 | K69: 1573.52 | L69: 1587.18 | M69: 1559.85 | N69: 1524.4 | O69: 25443000 | P69: -0.84%
A70: 60 | B70: Finance | C70: HDFCLIFE | D70: 2021-02-25 | E70: 705.90 | F70: 702.78 | G70: 693.12 | H70: 680.33 | I70: 670.67 | J70: 715.57 | K70: 725.23 | L70: 738.02 | M70: 712.45 | N70: 690 | O70: 6664900 | P70: -5.39%
A71: 61 | B71: Automobile | C71: HEROMOTOCO | D71: 2021-02-25 | E71: 3387.35 | F71: 3404.95 | G71: 3344.90 | H71: 3302.45 | I71: 3242.40 | J71: 3447.40 | K71: 3507.45 | L71: 3549.90 | M71: 3465 | N71: 3362.5 | O71: 3556200 | P71: 2.39%
A72: 62 | B72: Metals | C72: HINDALCO | D72: 2021-02-25 | E72: 333.25 | F72: 329.12 | G72: 320.38 | H72: 307.52 | I72: 298.78 | J72: 341.98 | K72: 350.72 | L72: 363.58 | M72: 337.85 | N72: 316.25 | O72: 37195000 | P72: 18.04%
A73: 63 | B73: Oil_Gas | C73: HINDPETRO | D73: 2021-02-25 | E73: 244.65 | F73: 245.38 | G73: 240.87 | H73: 237.08 | I73: 232.57 | J73: 249.17 | K73: 253.68 | L73: 257.47 | M73: 249.9 | N73: 241.6 | O73: 38917800 | P73: -5.61%
A74: 64 | B74: FMCG | C74: HINDUNILVR | D74: 2021-02-25 | E74: 2178.25 | F74: 2179.15 | G74: 2167.20 | H74: 2156.15 | I74: 2144.20 | J74: 2190.20 | K74: 2202.15 | L74: 2213.20 | M74: 2191.1 | N74: 2168.1 | O74: 9350400 | P74: -2.62%
A75: 65 | B75: Finance | C75: IBULHSGFIN | D75: 2021-02-25 | E75: 215.80 | F75: 218.43 | G75: 211.97 | H75: 208.13 | I75: 201.67 | J75: 222.27 | K75: 228.73 | L75: 232.57 | M75: 224.9 | N75: 214.6 | O75: 34763400 | P75: 3.98%
A76: 66 | B76: Banking | C76: ICICIBANK | D76: 2021-02-25 | E76: 616.30 | F76: 616.98 | G76: 609.12 | H76: 601.93 | I76: 594.07 | J76: 624.17 | K76: 632.03 | L76: 639.22 | M76: 624.85 | N76: 609.8 | O76: 113994375 | P76: -3.29%
A77: 67 | B77: Finance | C77: ICICIGI | D77: 2021-02-25 | E77: 1496.85 | F77: 1492.10 | G77: 1471.20 | H77: 1445.55 | I77: 1424.65 | J77: 1517.75 | K77: 1538.65 | L77: 1564.30 | M77: 1513 | N77: 1466.45 | O77: 846600 | P77: -7.86%
A78: 68 | B78: Finance | C78: ICICIPRULI | D78: 2021-02-25 | E78: 470.90 | F78: 468.25 | G78: 462.70 | H78: 454.50 | I78: 448.95 | J78: 476.45 | K78: 482.00 | L78: 490.20 | M78: 473.8 | N78: 460.05 | O78: 9660000 | P78: 4.04%
A79: 69 | B79: Telecom | C79: IDEA | D79: 2021-02-25 | E79: 11.05 | F79: 11.07 | G79: 10.88 | H79: 10.72 | I79: 10.53 | J79: 11.23 | K79: 11.42 | L79: 11.58 | M79: 11.25 | N79: 10.9 | O79: 867160000 | P79: -3.95%
A80: 70 | B80: Banking | C80: IDFCFIRSTB | D80: 2021-02-25 | E80: 61.20 | F80: 61.80 | G80: 60.30 | H80: 59.40 | I80: 57.90 | J80: 62.70 | K80: 64.20 | L80: 65.10 | M80: 63.3 | N80: 60.9 | O80: 152323000 | P80: -9.74%
A81: 71 | B81: Oil_Gas | C81: IGL | D81: 2021-02-25 | E81: 511.00 | F81: 516.75 | G81: 501.75 | H81: 492.50 | I81: 477.50 | J81: 526.00 | K81: 541.00 | L81: 550.25 | M81: 531.75 | N81: 507.5 | O81: 6965750 | P81: 9.65%
A82: 72 | B82: Others | C82: INDIGO | D82: 2021-02-25 | E82: 1535.05 | F82: 1529.80 | G82: 1516.25 | H82: 1497.45 | I82: 1483.90 | J82: 1548.60 | K82: 1562.15 | L82: 1580.95 | M82: 1543.35 | N82: 1511 | O82: 3185000 | P82: 3.61%
A83: 73 | B83: Banking | C83: INDUSINDBK | D83: 2021-02-25 | E83: 1047.55 | F83: 1040.03 | G83: 1024.17 | H83: 1000.78 | I83: 984.92 | J83: 1063.42 | K83: 1079.28 | L83: 1102.67 | M83: 1055.9 | N83: 1016.65 | O83: 22833000 | P83: -0.57%
A84: 74 | B84: Telecom | C84: INDUSTOWER | D84: 2021-02-25 | E84: 271.00 | F84: 271.33 | G84: 265.82 | H84: 260.63 | I84: 255.12 | J84: 276.52 | K84: 282.03 | L84: 287.22 | M84: 276.85 | N84: 266.15 | O84: 12345200 | P84: 7.41%
A85: 75 | B85: Technology | C85: INFY | D85: 2021-02-25 | E85: 1269.90 | F85: 1274.87 | G85: 1255.93 | H85: 1241.97 | I85: 1223.03 | J85: 1288.83 | K85: 1307.77 | L85: 1321.73 | M85: 1293.8 | N85: 1260.9 | O85: 35566800 | P85: -0.49%
A86: 76 | B86: Oil_Gas | C86: IOC | D86: 2021-02-25 | E86: 97.85 | F86: 97.70 | G86: 96.15 | H86: 94.45 | I86: 92.90 | J86: 99.40 | K86: 100.95 | L86: 102.65 | M86: 99.25 | N86: 96 | O86: 75263500 | P86: 7.09%
A87: 77 | B87: FMCG | C87: ITC | D87: 2021-02-25 | E87: 208.50 | F87: 208.80 | G87: 206.85 | H87: 205.20 | I87: 203.25 | J87: 210.45 | K87: 212.40 | L87: 214.05 | M87: 210.75 | N87: 207.15 | O87: 147660800 | P87: -3.80%
A88: 78 | B88: Metals | C88: JINDALSTEL | D88: 2021-02-25 | E88: 337.60 | F88: 334.03 | G88: 325.07 | H88: 312.53 | I88: 303.57 | J88: 346.57 | K88: 355.53 | L88: 368.07 | M88: 343 | N88: 321.5 | O88: 24855000 | P88: 4.78%
A89: 79 | B89: Metals | C89: JSWSTEEL | D89: 2021-02-25 | E89: 414.25 | F89: 412.70 | G89: 408.05 | H89: 401.85 | I89: 397.20 | J89: 418.90 | K89: 423.55 | L89: 429.75 | M89: 417.35 | N89: 406.5 | O89: 32821200 | P89: 2.12%
A90: 80 | B90: Others | C90: JUBLFOOD | D90: 2021-02-25 | E90: 3191.45 | F90: 3138.10 | G90: 3071.60 | H90: 2951.75 | I90: 2885.25 | J90: 3257.95 | K90: 3324.45 | L90: 3444.30 | M90: 3204.6 | N90: 3018.25 | O90: 1752250 | P90: 3.78%
A91: 81 | B91: Banking | C91: KOTAKBANK | D91: 2021-02-25 | E91: 1878.10 | F91: 1904.47 | G91: 1845.68 | H91: 1813.27 | I91: 1754.48 | J91: 1936.88 | K91: 1995.67 | L91: 2028.08 | M91: 1963.25 | N91: 1872.05 | O91: 14725200 | P91: -3.48%
A92: 82 | B92: Finance | C92: L&TFH | D92: 2021-02-25 | E92: 97.80 | F92: 97.42 | G92: 96.13 | H92: 94.47 | I92: 93.18 | J92: 99.08 | K92: 100.37 | L92: 102.03 | M92: 98.7 | N92: 95.75 | O92: 47939728 | P92: -2.38%
A93: 83 | B93: Others | C93: LALPATHLAB | D93: 2021-02-25 | E93: 2281.05 | F93: 2338.38 | G93: 2216.17 | H93: 2151.28 | I93: 2029.07 | J93: 2403.27 | K93: 2525.48 | L93: 2590.37 | M93: 2460.6 | N93: 2273.5 | O93: 163500 | P93: 13.74%
A94: 84 | B94: Finance | C94: LICHSGFIN | D94: 2021-02-25 | E94: 430.80 | F94: 431.32 | G94: 425.48 | H94: 420.17 | I94: 414.33 | J94: 436.63 | K94: 442.47 | L94: 447.78 | M94: 437.15 | N94: 426 | O94: 10770000 | P94: -0.81%
A95: 85 | B95: Capital_Goods | C95: LT | D95: 2021-02-25 | E95: 1487.80 | F95: 1485.03 | G95: 1468.82 | H95: 1449.83 | I95: 1433.62 | J95: 1504.02 | K95: 1520.23 | L95: 1539.22 | M95: 1501.25 | N95: 1466.05 | O95: 13492950 | P95: -0.28%
A96: 86 | B96: Pharma | C96: LUPIN | D96: 2021-02-25 | E96: 1010.70 | F96: 1004.45 | G96: 992.05 | H96: 973.40 | I96: 961.00 | J96: 1023.10 | K96: 1035.50 | L96: 1054.15 | M96: 1016.85 | N96: 985.8 | O96: 8931800 | P96: -4.02%
A97: 87 | B97: Automobile | C97: M&M | D97: 2021-02-25 | E97: 841.75 | F97: 840.63 | G97: 822.77 | H97: 803.78 | I97: 785.92 | J97: 859.62 | K97: 877.48 | L97: 896.47 | M97: 858.5 | N97: 821.65 | O97: 10483200 | P97: 4.22%
A98: 88 | B98: Finance | C98: M&MFIN | D98: 2021-02-25 | E98: 209.05 | F98: 209.43 | G98: 206.17 | H98: 203.28 | I98: 200.02 | J98: 212.32 | K98: 215.58 | L98: 218.47 | M98: 212.7 | N98: 206.55 | O98: 15896000 | P98: -7.43%
A99: 89 | B99: Finance | C99: MANAPPURAM | D99: 2021-02-25 | E99: 170.05 | F99: 169.57 | G99: 167.93 | H99: 165.82 | I99: 164.18 | J99: 171.68 | K99: 173.32 | L99: 175.43 | M99: 171.2 | N99: 167.45 | O99: 18942000 | P99: 2.04%
A100: 90 | B100: FMCG | C100: MARICO | D100: 2021-02-25 | E100: 422.90 | F100: 421.62 | G100: 418.43 | H100: 413.97 | I100: 410.78 | J100: 426.08 | K100: 429.27 | L100: 433.73 | M100: 424.8 | N100: 417.15 | O100: 8454000 | P100: -4.80%
A101: 91 | B101: Automobile | C101: MARUTI | D101: 2021-02-25 | E101: 6991.20 | F101: 7026.60 | G101: 6918.30 | H101: 6845.40 | I101: 6737.10 | J101: 7099.50 | K101: 7207.80 | L101: 7280.70 | M101: 7134.9 | N101: 6953.7 | O101: 2906800 | P101: 6.57%
A102: 92 | B102: FMCG | C102: MCDOWELL-N | D102: 2021-02-25 | E102: 552.00 | F102: 551.95 | G102: 546.30 | H102: 540.60 | I102: 534.95 | J102: 557.65 | K102: 563.30 | L102: 569.00 | M102: 557.6 | N102: 546.25 | O102: 14211250 | P102: 1.62%
A103: 93 | B103: Finance | C103: MFSL | D103: 2021-02-25 | E103: 848.60 | F103: 850.32 | G103: 839.13 | H103: 829.67 | I103: 818.48 | J103: 859.78 | K103: 870.97 | L103: 880.43 | M103: 861.5 | N103: 840.85 | O103: 3434600 | P103: -3.68%
A104: 94 | B104: Oil_Gas | C104: MGL | D104: 2021-02-25 | E104: 1132.80 | F104: 1141.85 | G104: 1117.60 | H104: 1102.40 | I104: 1078.15 | J104: 1157.05 | K104: 1181.30 | L104: 1196.50 | M104: 1166.1 | N104: 1126.65 | O104: 1662000 | P104: 3.17%
A105: 95 | B105: Technology | C105: MINDTREE | D105: 2021-02-25 | E105: 1603.85 | F105: 1605.72 | G105: 1578.13 | H105: 1552.42 | I105: 1524.83 | J105: 1631.43 | K105: 1659.02 | L105: 1684.73 | M105: 1633.3 | N105: 1580 | O105: 1450400 | P105: 0.89%
A106: 96 | B106: Automobile | C106: MOTHERSUMI | D106: 2021-02-25 | E106: 220.00 | F106: 219.42 | G106: 215.53 | H106: 211.07 | I106: 207.18 | J106: 223.88 | K106: 227.77 | L106: 232.23 | M106: 223.3 | N106: 214.95 | O106: 34909000 | P106: 0.48%
A107: 97 | B107: Automobile | C107: MRF | D107: 2021-02-25 | E107: 87848.65 | F107: 87299.57 | G107: 86349.13 | H107: 84849.62 | I107: 83899.18 | J107: 88799.08 | K107: 89749.52 | L107: 91249.03 | M107: 88250 | N107: 85800.05 | O107: 58440 | P107: 1.32%
A108: 98 | B108: Finance | C108: MUTHOOTFIN | D108: 2021-02-25 | E108: 1289.70 | F108: 1295.77 | G108: 1276.28 | H108: 1262.87 | I108: 1243.38 | J108: 1309.18 | K108: 1328.67 | L108: 1342.08 | M108: 1315.25 | N108: 1282.35 | O108: 3981750 | P108: -7.65%
A109: 99 | B109: Metals | C109: NATIONALUM | D109: 2021-02-25 | E109: 55.30 | F109: 54.67 | G109: 53.43 | H109: 51.57 | I109: 50.33 | J109: 56.53 | K109: 57.77 | L109: 59.63 | M109: 55.9 | N109: 52.8 | O109: 67660000 | P109: 0.89%
A110: 100 | B110: Others | C110: NAUKRI | D110: 2021-02-25 | E110: 5077.35 | F110: 5121.28 | G110: 4975.17 | H110: 4872.98 | I110: 4726.87 | J110: 5223.47 | K110: 5369.58 | L110: 5471.77 | M110: 5267.4 | N110: 5019.1 | O110: 844500 | P110: 3.11%
A111: 101 | B111: FMCG | C111: NESTLEIND | D111: 2021-02-25 | E111: 16209.75 | F111: 16184.42 | G111: 16060.38 | H111: 15911.02 | I111: 15786.98 | J111: 16333.78 | K111: 16457.82 | L111: 16607.18 | M111: 16308.45 | N111: 16035.05 | O111: 413000 | P111: 3.89%
A112: 102 | B112: Metals | C112: NMDC | D112: 2021-02-25 | E112: 123.15 | F112: 123.20 | G112: 120.45 | H112: 117.75 | I112: 115.00 | J112: 125.90 | K112: 128.65 | L112: 131.35 | M112: 125.95 | N112: 120.5 | O112: 57298400 | P112: 1.42%
A113: 103 | B113: Power | C113: NTPC | D113: 2021-02-25 | E113: 103.45 | F113: 102.80 | G113: 101.40 | H113: 99.35 | I113: 97.95 | J113: 104.85 | K113: 106.25 | L113: 108.30 | M113: 104.2 | N113: 100.75 | O113: 86087100 | P113: -2.62%
A114: 104 | B114: Oil_Gas | C114: ONGC | D114: 2021-02-25 | E114: 112.45 | F114: 112.15 | G114: 109.60 | H114: 106.75 | I114: 104.20 | J114: 115.00 | K114: 117.55 | L114: 120.40 | M114: 114.7 | N114: 109.3 | O114: 55601700 | P114: 4.47%
A115: 105 | B115: Textile | C115: PAGEIND | D115: 2021-02-25 | E115: 29084.05 | F115: 28624.68 | G115: 28049.37 | H115: 27014.68 | I115: 26439.37 | J115: 29659.37 | K115: 30234.68 | L115: 31269.37 | M115: 29200 | N115: 27590 | O115: 92610 | P115: -12.13%
A116: 106 | B116: Pharma | C116: PEL | D116: 2021-02-25 | E116: 1852.75 | F116: 1866.70 | G116: 1805.40 | H116: 1758.05 | I116: 1696.75 | J116: 1914.05 | K116: 1975.35 | L116: 2022.70 | M116: 1928 | N116: 1819.35 | O116: 3960550 | P116: -0.62%
A117: 107 | B117: Oil_Gas | C117: PETRONET | D117: 2021-02-25 | E117: 251.30 | F117: 252.40 | G117: 249.15 | H117: 247.00 | I117: 243.75 | J117: 254.55 | K117: 257.80 | L117: 259.95 | M117: 255.65 | N117: 250.25 | O117: 19161000 | P117: 1.62%
A118: 108 | B118: Finance | C118: PFC | D118: 2021-02-25 | E118: 121.90 | F118: 122.07 | G118: 119.68 | H118: 117.47 | I118: 115.08 | J118: 124.28 | K118: 126.67 | L118: 128.88 | M118: 124.45 | N118: 119.85 | O118: 38991800 | P118: 5.52%
A119: 109 | B119: FMCG | C119: PIDILITIND | D119: 2021-02-25 | E119: 1728.70 | F119: 1735.07 | G119: 1705.13 | H119: 1681.57 | I119: 1651.63 | J119: 1758.63 | K119: 1788.57 | L119: 1812.13 | M119: 1765 | N119: 1711.5 | O119: 2240000 | P119: -1.28%
A120: 110 | B120: Banking | C120: PNB | D120: 2021-02-25 | E120: 41.00 | F120: 41.32 | G120: 40.38 | H120: 39.77 | I120: 38.83 | J120: 41.93 | K120: 42.87 | L120: 43.48 | M120: 42.25 | N120: 40.7 | O120: 231136000 | P120: 7.42%
A121: 111 | B121: Power | C121: POWERGRID | D121: 2021-02-25 | E121: 226.30 | F121: 226.78 | G121: 223.97 | H121: 221.63 | I121: 218.82 | J121: 229.12 | K121: 231.93 | L121: 234.27 | M121: 229.6 | N121: 224.45 | O121: 20236000 | P121: 4.89%
A122: 112 | B122: Media | C122: PVR | D122: 2021-02-25 | E122: 1375.35 | F122: 1374.83 | G122: 1353.77 | H122: 1332.18 | I122: 1311.12 | J122: 1396.42 | K122: 1417.48 | L122: 1439.07 | M122: 1395.9 | N122: 1353.25 | O122: 1912086 | P122: -11.61%
A123: 113 | B123: Cement | C123: RAMCOCEM | D123: 2021-02-25 | E123: 961.70 | F123: 954.78 | G123: 941.52 | H123: 921.33 | I123: 908.07 | J123: 974.97 | K123: 988.23 | L123: 1008.42 | M123: 968.05 | N123: 934.6 | O123: 1938000 | P123: -0.87%
A124: 114 | B124: Banking | C124: RBLBANK | D124: 2021-02-25 | E124: 235.65 | F124: 235.23 | G124: 231.27 | H124: 226.88 | I124: 222.92 | J124: 239.62 | K124: 243.58 | L124: 247.97 | M124: 239.2 | N124: 230.85 | O124: 25688200 | P124: -5.91%
A125: 115 | B125: Power | C125: RECLTD | D125: 2021-02-25 | E125: 140.05 | F125: 140.52 | G125: 138.23 | H125: 136.42 | I125: 134.13 | J125: 142.33 | K125: 144.62 | L125: 146.43 | M125: 142.8 | N125: 138.7 | O125: 15954000 | P125: -2.28%
A126: 116 | B126: Oil_Gas | C126: RELIANCE | D126: 2021-02-25 | E126: 2026.35 | F126: 2032.98 | G126: 2008.97 | H126: 1991.58 | I126: 1967.57 | J126: 2050.37 | K126: 2074.38 | L126: 2091.77 | M126: 2057 | N126: 2015.6 | O126: 28077000 | P126: -0.61%
A127: 117 | B127: Metals | C127: SAIL | D127: 2021-02-25 | E127: 70.70 | F127: 69.65 | G127: 68.00 | H127: 65.30 | I127: 63.65 | J127: 72.35 | K127: 74.00 | L127: 76.70 | M127: 71.3 | N127: 66.95 | O127: 94012000 | P127: -6.92%
A128: 118 | B128: Finance | C128: SBILIFE | D128: 2021-02-25 | E128: 869.55 | F128: 863.87 | G128: 854.13 | H128: 838.72 | I128: 828.98 | J128: 879.28 | K128: 889.02 | L128: 904.43 | M128: 873.6 | N128: 848.45 | O128: 5328000 | P128: -5.14%
A129: 119 | B129: Banking | C129: SBIN | D129: 2021-02-25 | E129: 395.40 | F129: 394.82 | G129: 389.88 | H129: 384.37 | I129: 379.43 | J129: 400.33 | K129: 405.27 | L129: 410.78 | M129: 399.75 | N129: 389.3 | O129: 92817000 | P129: -4.65%
A130: 120 | B130: Cement | C130: SHREECEM | D130: 2021-02-25 | E130: 27288.55 | F130: 27257.37 | G130: 26902.18 | H130: 26515.82 | I130: 26160.63 | J130: 27643.73 | K130: 27998.92 | L130: 28385.28 | M130: 27612.55 | N130: 26871 | O130: 150600 | P130: 3.93%
A131: 121 | B131: Capital_Goods | C131: SIEMENS | D131: 2021-02-25 | E131: 1872.60 | F131: 1858.80 | G131: 1829.60 | H131: 1786.60 | I131: 1757.40 | J131: 1901.80 | K131: 1931.00 | L131: 1974.00 | M131: 1888 | N131: 1815.8 | O131: 741950 | P131: -3.64%
A132: 122 | B132: Textile | C132: SRF | D132: 2021-02-25 | E132: 5418.35 | F132: 5410.80 | G132: 5365.60 | H132: 5312.85 | I132: 5267.65 | J132: 5463.55 | K132: 5508.75 | L132: 5561.50 | M132: 5456 | N132: 5358.05 | O132: 313750 | P132: -1.99%
A133: 123 | B133: Finance | C133: SRTRANSFIN | D133: 2021-02-25 | E133: 1380.65 | F133: 1372.68 | G133: 1347.37 | H133: 1314.08 | I133: 1288.77 | J133: 1405.97 | K133: 1431.28 | L133: 1464.57 | M133: 1398 | N133: 1339.4 | O133: 4435200 | P133: 1.09%
A134: 124 | B134: Pharma | C134: SUNPHARMA | D134: 2021-02-25 | E134: 603.85 | F134: 601.43 | G134: 595.02 | H134: 586.18 | I134: 579.77 | J134: 610.27 | K134: 616.68 | L134: 625.52 | M134: 607.85 | N134: 592.6 | O134: 43752800 | P134: -0.37%
A135: 125 | B135: Media | C135: SUNTV | D135: 2021-02-25 | E135: 497.90 | F135: 499.72 | G135: 492.88 | H135: 487.87 | I135: 481.03 | J135: 504.73 | K135: 511.57 | L135: 516.58 | M135: 506.55 | N135: 494.7 | O135: 11356500 | P135: 1.58%
A136: 126 | B136: Fertilisers | C136: TATACHEM | D136: 2021-02-25 | E136: 654.70 | F136: 650.47 | G136: 641.93 | H136: 629.17 | I136: 620.63 | J136: 663.23 | K136: 671.77 | L136: 684.53 | M136: 659 | N136: 637.7 | O136: 10174000 | P136: -6.26%
A137: 127 | B137: Others | C137: TATACONSUM | D137: 2021-02-25 | E137: 627.35 | F137: 626.42 | G137: 617.08 | H137: 606.82 | I137: 597.48 | J137: 636.68 | K137: 646.02 | L137: 656.28 | M137: 635.75 | N137: 616.15 | O137: 13981950 | P137: -0.69%
A138: 128 | B138: Automobile | C138: TATAMOTORS | D138: 2021-02-25 | E138: 324.70 | F138: 321.12 | G138: 312.63 | H138: 300.57 | I138: 292.08 | J138: 333.18 | K138: 341.67 | L138: 353.73 | M138: 329.6 | N138: 309.05 | O138: 83567700 | P138: 3.16%
A139: 129 | B139: Power | C139: TATAPOWER | D139: 2021-02-25 | E139: 92.30 | F139: 91.88 | G139: 90.32 | H139: 88.33 | I139: 86.77 | J139: 93.87 | K139: 95.43 | L139: 97.42 | M139: 93.45 | N139: 89.9 | O139: 148756500 | P139: 6.91%
A140: 130 | B140: Metals | C140: TATASTEEL | D140: 2021-02-25 | E140: 731.85 | F140: 717.38 | G140: 697.47 | H140: 663.08 | I140: 643.17 | J140: 751.77 | K140: 771.68 | L140: 806.07 | M140: 737.3 | N140: 683 | O140: 44421000 | P140: 7.71%
A141: 131 | B141: Technology | C141: TCS | D141: 2021-02-25 | E141: 2981.20 | F141: 2992.05 | G141: 2955.35 | H141: 2929.50 | I141: 2892.80 | J141: 3017.90 | K141: 3054.60 | L141: 3080.45 | M141: 3028.75 | N141: 2966.2 | O141: 7908000 | P141: -3.22%
A142: 132 | B142: Technology | C142: TECHM | D142: 2021-02-25 | E142: 947.25 | F142: 947.12 | G142: 932.33 | H142: 917.42 | I142: 902.63 | J142: 962.03 | K142: 976.82 | L142: 991.73 | M142: 961.9 | N142: 932.2 | O142: 12547200 | P142: 1.96%
A143: 133 | B143: FMCG | C143: TITAN | D143: 2021-02-25 | E143: 1426.35 | F143: 1422.60 | G143: 1405.15 | H143: 1383.95 | I143: 1366.50 | J143: 1443.80 | K143: 1461.25 | L143: 1482.45 | M143: 1440.05 | N143: 1401.4 | O143: 7531500 | P143: -0.86%
A144: 134 | B144: Pharma | C144: TORNTPHARM | D144: 2021-02-25 | E144: 2425.30 | F144: 2437.12 | G144: 2409.28 | H144: 2393.27 | I144: 2365.43 | J144: 2453.13 | K144: 2480.97 | L144: 2496.98 | M144: 2464.95 | N144: 2421.1 | O144: 1318500 | P144: 5.86%
A145: 135 | B145: Power | C145: TORNTPOWER | D145: 2021-02-25 | E145: 371.05 | F145: 374.95 | G145: 366.30 | H145: 361.55 | I145: 352.90 | J145: 379.70 | K145: 388.35 | L145: 393.10 | M145: 383.6 | N145: 370.2 | O145: 3615000 | P145: 4.51%
A146: 136 | B146: Automobile | C146: TVSMOTOR | D146: 2021-02-25 | E146: 598.80 | F146: 595.92 | G146: 588.83 | H146: 578.87 | I146: 571.78 | J146: 605.88 | K146: 612.97 | L146: 622.93 | M146: 603 | N146: 585.95 | O146: 5447400 | P146: 9.45%
A147: 137 | B147: FMCG | C147: UBL | D147: 2021-02-25 | E147: 1183.70 | F147: 1193.48 | G147: 1169.42 | H147: 1155.13 | I147: 1131.07 | J147: 1207.77 | K147: 1231.83 | L147: 1246.12 | M147: 1217.55 | N147: 1179.2 | O147: 1393000 | P147: 0.81%
A148: 138 | B148: Cement | C148: ULTRACEMCO | D148: 2021-02-25 | E148: 6265.60 | F148: 6256.52 | G148: 6154.98 | H148: 6044.37 | I148: 5942.83 | J148: 6367.13 | K148: 6468.67 | L148: 6579.28 | M148: 6358.05 | N148: 6145.9 | O148: 1563800 | P148: 3.60%
A149: 139 | B149: Fertilisers | C149: UPL | D149: 2021-02-25 | E149: 567.10 | F149: 550.80 | G149: 530.90 | H149: 494.70 | I149: 474.80 | J149: 587.00 | K149: 606.90 | L149: 643.10 | M149: 570.7 | N149: 514.6 | O149: 19775600 | P149: -0.81%
A150: 140 | B150: Metals | C150: VEDL | D150: 2021-02-25 | E150: 209.25 | F150: 208.48 | G150: 205.82 | H150: 202.38 | I150: 199.72 | J150: 211.92 | K150: 214.58 | L150: 218.02 | M150: 211.15 | N150: 205.05 | O150: 102461200 | P150: 0.74%
A151: 141 | B151: Capital_Goods | C151: VOLTAS | D151: 2021-02-25 | E151: 1016.20 | F151: 1006.78 | G151: 989.67 | H151: 963.13 | I151: 946.02 | J151: 1033.32 | K151: 1050.43 | L151: 1076.97 | M151: 1023.9 | N151: 980.25 | O151: 2692000 | P151: -7.43%
A152: 142 | B152: Technology | C152: WIPRO | D152: 2021-02-25 | E152: 416.80 | F152: 419.75 | G152: 412.70 | H152: 408.60 | I152: 401.55 | J152: 423.85 | K152: 430.90 | L152: 435.00 | M152: 426.8 | N152: 415.65 | O152: 37091200 | P152: 3.47%
A153: 143 | B153: Media | C153: ZEEL | D153: 2021-02-25 | E153: 202.45 | F153: 202.27 | G153: 198.18 | H153: 193.92 | I153: 189.83 | J153: 206.53 | K153: 210.62 | L153: 214.88 | M153: 206.35 | N153: 198 | O153: 36465000 | P153: -4.64%
A154: 144
A155: 145
A156: 146
A157: 147
A175: Pivot Point: This is trigger point for intra day buy/sell based on the price range of the previous day
A176: As per the tool,the trader should take BUY position just above Pivot and keep the stop loss of pivot point and the first target would be Resistance 1(R1)
A177: If R1 is crossed then R2 becomes the next target with stop loss of at R1
A178: Similarly if price goes below pivot point then the trader should sell and keep a stop loss of pivot point and the first target would be S1
A179: If S1 is crossed then S2 becomes the next target with stop loss of at S1
A181: Disclaimer:
A182: This document has been prepared by the Retail Research Desk of Asit C Mehta
A183: Investment Intermediates Ltd. and is meant for use of the recipient only
A184: and is not for circulation. This document is not to be reported or
A185: copied or made available to others. It should not be considered to be
A186: taken as an offer to sell or a solicitation to buy any security. The
A187: information contained herein is from sources believed reliable. We do
A188: not represent that it is accurate or complete and it should not be
A189: relied upon as such. We may from time to time have positions in and buy
A190: and sell securities referred to herein

Sheet Cash Intra
M5: Back to Main Page
A6: FOR INTRA DAY TRADING | K6: =Main!B10 -> 2021-02-24
A8: Sr.no | B8: Scrip | C8: CLOSE RATE | D8: Pivot Point | E8: Supports | H8: Resistances
C9: Point | E9: S1 | F9: S2 | G9: S3 | H9: R1 | I9: R2 | J9: R3 | K9: HIGH | L9: LOW | M9: Total Trade Quanity in Lakhs
A10: 1 | B10: Nifty 50 | C10: 14707.8 | D10: 14738.05 | E10: 14621.60 | F10: 14535.40 | G10: 14418.95 | H10: 14824.25 | I10: 14940.70 | J10: 15026.90 | K10: 14854.5 | L10: 14651.85
A11: 2 | B11: Nifty Bank | C11: 35116.95 | D11: 35257.93 | E11: 34835.02 | F11: 34553.08 | G11: 34130.17 | H11: 35539.87 | I11: 35962.78 | J11: 36244.72 | K11: 35680.85 | L11: 34976
A12: 3 | B12: Nifty CPSE | C12: 1814.7 | D12: 1810.45 | E12: 1794.35 | F12: 1774.00 | G12: 1757.90 | H12: 1830.80 | I12: 1846.90 | J12: 1867.25 | K12: 1826.55 | L12: 1790.1
A13: 4 | B13: Nifty Infra | C13: 4123.05 | D13: 4120.92 | E13: 4091.93 | F13: 4060.82 | G13: 4031.83 | H13: 4152.03 | I13: 4181.02 | J13: 4212.13 | K13: 4149.9 | L13: 4089.8
A14: 5 | B14: Nifty IT | C14: 24807.8 | D14: 24905.52 | E14: 24611.43 | F14: 24415.07 | G14: 24120.98 | H14: 25101.88 | I14: 25395.97 | J14: 25592.33 | K14: 25199.6 | L14: 24709.15
A15: 6 | B15: Nifty PSE | C15: 3170.2 | D15: 3158.42 | E15: 3134.08 | F15: 3097.97 | G15: 3073.63 | H15: 3194.53 | I15: 3218.87 | J15: 3254.98 | K15: 3182.75 | L15: 3122.3
A16: 7 | B16: Nifty Midcap 50 | C16: 6762.95 | D16: 6727.77 | E16: 6673.38 | F16: 6583.82 | G16: 6529.43 | H16: 6817.33 | I16: 6871.72 | J16: 6961.28 | K16: 6782.15 | L16: 6638.2
A17: 8 | B17: ACC | C17: 1697.05 | D17: 1702.68 | E17: 1680.42 | F17: 1663.78 | G17: 1641.52 | H17: 1719.32 | I17: 1741.58 | J17: 1758.22 | K17: 1724.95 | L17: 1686.05 | M17: 7.35863
A18: 9 | B18: AUBANK | C18: 1118.45 | D18: 1104.22 | E18: 1085.23 | F18: 1052.02 | G18: 1033.03 | H18: 1137.43 | I18: 1156.42 | J18: 1189.63 | K18: 1123.2 | L18: 1071 | M18: 6.72795
A19: 10 | B19: AARTIIND | C19: 1241.5 | D19: 1236.98 | E19: 1222.52 | F19: 1203.53 | G19: 1189.07 | H19: 1255.97 | I19: 1270.43 | J19: 1289.42 | K19: 1251.45 | L19: 1218 | M19: 2.72911
A20: 11 | B20: ABBOTINDIA | C20: 14471.3 | D20: 14558.23 | E20: 14367.57 | F20: 14263.83 | G20: 14073.17 | H20: 14661.97 | I20: 14852.63 | J20: 14956.37 | K20: 14748.9 | L20: 14454.5 | M20: 0.11319
A21: 12 | B21: ADANIENT | C21: 799.65 | D21: 805.32 | E21: 783.33 | F21: 767.02 | G21: 745.03 | H21: 821.63 | I21: 843.62 | J21: 859.93 | K21: 827.3 | L21: 789 | M21: 97.53081
A22: 13 | B22: ADANIGREEN | C22: 1196.2 | D22: 1185.23 | E22: 1171.97 | F22: 1147.73 | G22: 1134.47 | H22: 1209.47 | I22: 1222.73 | J22: 1246.97 | K22: 1198.5 | L22: 1161 | M22: 54.05934
A23: 14 | B23: ADANIPORTS | C23: 662 | D23: 667.98 | E23: 653.27 | F23: 644.53 | G23: 629.82 | H23: 676.72 | I23: 691.43 | J23: 700.17 | K23: 682.7 | L23: 659.25 | M23: 112.47164
A24: 15 | B24: ATGL | C24: 486 | D24: 490.82 | E24: 473.18 | F24: 460.37 | G24: 442.73 | H24: 503.63 | I24: 521.27 | J24: 534.08 | K24: 508.45 | L24: 478 | M24: 8.99932
A25: 16 | B25: ADANITRANS | C25: 734.5 | D25: 740.82 | E25: 714.68 | F25: 694.87 | G25: 668.73 | H25: 760.63 | I25: 786.77 | J25: 806.58 | K25: 766.95 | L25: 721 | M25: 8.1274
A26: 17 | B26: ABCAPITAL | C26: 112.8 | D26: 110.67 | E26: 107.43 | F26: 102.07 | G26: 98.83 | H26: 116.03 | I26: 119.27 | J26: 124.63 | K26: 113.9 | L26: 105.3 | M26: 166.31461
A27: 18 | B27: ABFRL | C27: 168.4 | D27: 168.10 | E27: 166.30 | F27: 164.20 | G27: 162.40 | H27: 170.20 | I27: 172.00 | J27: 174.10 | K27: 169.9 | L27: 166 | M27: 45.14222
A28: 19 | B28: AJANTPHARM | C28: 1744.25 | D28: 1754.83 | E28: 1721.67 | F28: 1699.08 | G28: 1665.92 | H28: 1777.42 | I28: 1810.58 | J28: 1833.17 | K28: 1788 | L28: 1732.25 | M28: 0.72913
A29: 20 | B29: APLLTD | C29: 892.3 | D29: 890.72 | E29: 876.63 | F29: 860.97 | G29: 846.88 | H29: 906.38 | I29: 920.47 | J29: 936.13 | K29: 904.8 | L29: 875.05 | M29: 1.86949
A30: 21 | B30: ALKEM | C30: 2724.7 | D30: 2760.38 | E30: 2676.27 | F30: 2627.83 | G30: 2543.72 | H30: 2808.82 | I30: 2892.93 | J30: 2941.37 | K30: 2844.5 | L30: 2711.95 | M30: 1.00733
A31: 22 | B31: AMARAJABAT | C31: 890.55 | D31: 892.85 | E31: 875.80 | F31: 861.05 | G31: 844.00 | H31: 907.60 | I31: 924.65 | J31: 939.40 | K31: 909.9 | L31: 878.1 | M31: 14.02291
A32: 23 | B32: AMBUJACEM | C32: 264.7 | D32: 266.23 | E32: 261.62 | F32: 258.53 | G32: 253.92 | H32: 269.32 | I32: 273.93 | J32: 277.02 | K32: 270.85 | L32: 263.15 | M32: 71.06597
A33: 24 | B33: APOLLOHOSP | C33: 2996.75 | D33: 2995.58 | E33: 2938.67 | F33: 2880.58 | G33: 2823.67 | H33: 3053.67 | I33: 3110.58 | J33: 3168.67 | K33: 3052.5 | L33: 2937.5 | M33: 14.6593
A34: 25 | B34: APOLLOTYRE | C34: 229.8 | D34: 228.58 | E34: 224.62 | F34: 219.43 | G34: 215.47 | H34: 233.77 | I34: 237.73 | J34: 242.92 | K34: 232.55 | L34: 223.4 | M34: 125.27522
A35: 26 | B35: ASHOKLEY | C35: 125.85 | D35: 124.90 | E35: 121.55 | F35: 117.25 | G35: 113.90 | H35: 129.20 | I35: 132.55 | J35: 136.85 | K35: 128.25 | L35: 120.6 | M35: 337.23741
A36: 27 | B36: ASIANPAINT | C36: 2372.2 | D36: 2362.40 | E36: 2324.80 | F36: 2277.40 | G36: 2239.80 | H36: 2409.80 | I36: 2447.40 | J36: 2494.80 | K36: 2400 | L36: 2315 | M36: 32.67268
A37: 28 | B37: AUROPHARMA | C37: 853.6 | D37: 851.10 | E37: 839.50 | F37: 825.40 | G37: 813.80 | H37: 865.20 | I37: 876.80 | J37: 890.90 | K37: 862.7 | L37: 837 | M37: 30.21328
A38: 29 | B38: DMART | C38: 3151.95 | D38: 3104.42 | E38: 3034.83 | F38: 2917.72 | G38: 2848.13 | H38: 3221.53 | I38: 3291.12 | J38: 3408.23 | K38: 3174 | L38: 2987.3 | M38: 6.05901
A39: 30 | B39: AXISBANK | C39: 715.95 | D39: 721.17 | E39: 707.38 | F39: 698.82 | G39: 685.03 | H39: 729.73 | I39: 743.52 | J39: 752.08 | K39: 734.95 | L39: 712.6 | M39: 168.04763
A40: 31 | B40: BAJAJ-AUTO | C40: 3912.25 | D40: 3933.72 | E40: 3868.73 | F40: 3825.22 | G40: 3760.23 | H40: 3977.23 | I40: 4042.22 | J40: 4085.73 | K40: 3998.7 | L40: 3890.2 | M40: 8.02871
A41: 32 | B41: BAJFINANCE | C41: 5383.7 | D41: 5412.78 | E41: 5320.92 | F41: 5258.13 | G41: 5166.27 | H41: 5475.57 | I41: 5567.43 | J41: 5630.22 | K41: 5504.65 | L41: 5350 | M41: 21.90245
A42: 33 | B42: BAJAJFINSV | C42: 10008.65 | D42: 10044.27 | E42: 9893.53 | F42: 9778.42 | G42: 9627.68 | H42: 10159.38 | I42: 10310.12 | J42: 10425.23 | K42: 10195 | L42: 9929.15 | M42: 3.4261
A43: 34 | B43: BAJAJHLDNG | C43: 3651.5 | D43: 3632.35 | E43: 3591.60 | F43: 3531.70 | G43: 3490.95 | H43: 3692.25 | I43: 3733.00 | J43: 3792.90 | K43: 3673.1 | L43: 3572.45 | M43: 0.38894
A44: 35 | B44: BALKRISIND | C44: 1590.7 | D44: 1568.12 | E44: 1539.23 | F44: 1487.77 | G44: 1458.88 | H44: 1619.58 | I44: 1648.47 | J44: 1699.93 | K44: 1597 | L44: 1516.65 | M44: 11.43003
A45: 36 | B45: BANDHANBNK | C45: 325.3 | D45: 326.22 | E45: 321.73 | F45: 318.17 | G45: 313.68 | H45: 329.78 | I45: 334.27 | J45: 337.83 | K45: 330.7 | L45: 322.65 | M45: 53.97776
A46: 37 | B46: BANKBARODA | C46: 86.85 | D46: 88.17 | E46: 84.73 | F46: 82.62 | G46: 79.18 | H46: 90.28 | I46: 93.72 | J46: 95.83 | K46: 91.6 | L46: 86.05 | M46: 685.92567
A47: 38 | B47: BANKINDIA | C47: 83.55 | D47: 84.83 | E47: 81.37 | F47: 79.18 | G47: 75.72 | H47: 87.02 | I47: 90.48 | J47: 92.67 | K47: 88.3 | L47: 82.65 | M47: 140.36172
A48: 39 | B48: BATAINDIA | C48: 1479 | D48: 1469.67 | E48: 1449.33 | F48: 1419.67 | G48: 1399.33 | H48: 1499.33 | I48: 1519.67 | J48: 1549.33 | K48: 1490 | L48: 1440 | M48: 7.83425
A49: 40 | B49: BERGEPAINT | C49: 721.7 | D49: 723.05 | E49: 709.40 | F49: 697.10 | G49: 683.45 | H49: 735.35 | I49: 749.00 | J49: 761.30 | K49: 736.7 | L49: 710.75 | M49: 9.44425
A50: 41 | B50: BEL | C50: 134.2 | D50: 133.35 | E50: 131.10 | F50: 128.00 | G50: 125.75 | H50: 136.45 | I50: 138.70 | J50: 141.80 | K50: 135.6 | L50: 130.25 | M50: 107.06432
A51: 42 | B51: BHARATFORG | C51: 608.55 | D51: 605.83 | E51: 591.67 | F51: 574.78 | G51: 560.62 | H51: 622.72 | I51: 636.88 | J51: 653.77 | K51: 620 | L51: 588.95 | M51: 53.35514
A52: 43 | B52: BHEL | C52: 40.7 | D52: 40.55 | E52: 39.65 | F52: 38.60 | G52: 37.70 | H52: 41.60 | I52: 42.50 | J52: 43.55 | K52: 41.45 | L52: 39.5 | M52: 430.31158
A53: 44 | B53: BPCL | C53: 435.25 | D53: 434.58 | E53: 426.47 | F53: 417.68 | G53: 409.57 | H53: 443.37 | I53: 451.48 | J53: 460.27 | K53: 442.7 | L53: 425.8 | M53: 143.97828
A54: 45 | B54: BHARTIARTL | C54: 565.55 | D54: 568.85 | E54: 560.70 | F54: 555.85 | G54: 547.70 | H54: 573.70 | I54: 581.85 | J54: 586.70 | K54: 577 | L54: 564 | M54: 233.26447
A55: 46 | B55: BIOCON | C55: 385.35 | D55: 390.07 | E55: 379.38 | F55: 373.42 | G55: 362.73 | H55: 396.03 | I55: 406.72 | J55: 412.68 | K55: 400.75 | L55: 384.1 | M55: 91.03379
A56: 47 | B56: BBTC | C56: 1152.55 | D56: 1160.42 | E56: 1142.13 | F56: 1131.72 | G56: 1113.43 | H56: 1170.83 | I56: 1189.12 | J56: 1199.53 | K56: 1178.7 | L56: 1150 | M56: 0.42427
A57: 48 | B57: BOSCHLTD | C57: 14742.6 | D57: 14830.92 | E57: 14563.83 | F57: 14385.07 | G57: 14117.98 | H57: 15009.68 | I57: 15276.77 | J57: 15455.53 | K57: 15098 | L57: 14652.15 | M57: 0.56624
A58: 49 | B58: BRITANNIA | C58: 3335.95 | D58: 3343.08 | E58: 3318.17 | F58: 3300.38 | G58: 3275.47 | H58: 3360.87 | I58: 3385.78 | J58: 3403.57 | K58: 3368 | L58: 3325.3 | M58: 4.84686
A59: 50 | B59: CESC | C59: 603.45 | D59: 603.42 | E59: 590.03 | F59: 576.62 | G59: 563.23 | H59: 616.83 | I59: 630.22 | J59: 643.63 | K59: 616.8 | L59: 590 | M59: 5.61163
A60: 51 | B60: CADILAHC | C60: 430.5 | D60: 430.10 | E60: 421.40 | F60: 412.30 | G60: 403.60 | H60: 439.20 | I60: 447.90 | J60: 457.00 | K60: 438.8 | L60: 421 | M60: 38.53845
A61: 52 | B61: CANBK | C61: 159.3 | D61: 158.33 | E61: 155.97 | F61: 152.63 | G61: 150.27 | H61: 161.67 | I61: 164.03 | J61: 167.37 | K61: 160.7 | L61: 155 | M61: 202.24578
A62: 53 | B62: CASTROLIND | C62: 123.9 | D62: 124.65 | E62: 122.45 | F62: 121.00 | G62: 118.80 | H62: 126.10 | I62: 128.30 | J62: 129.75 | K62: 126.85 | L62: 123.2 | M62: 16.93781
A63: 54 | B63: CHOLAFIN | C63: 517.8 | D63: 522.15 | E63: 506.30 | F63: 494.80 | G63: 478.95 | H63: 533.65 | I63: 549.50 | J63: 561.00 | K63: 538 | L63: 510.65 | M63: 55.12994
A64: 55 | B64: CIPLA | C64: 790.95 | D64: 794.17 | E64: 785.18 | F64: 779.42 | G64: 770.43 | H64: 799.93 | I64: 808.92 | J64: 814.68 | K64: 803.15 | L64: 788.4 | M64: 32.64477
A65: 56 | B65: CUB | C65: 161.15 | D65: 161.70 | E65: 159.45 | F65: 157.75 | G65: 155.50 | H65: 163.40 | I65: 165.65 | J65: 167.35 | K65: 163.95 | L65: 160 | M65: 17.98376
A66: 57 | B66: COALINDIA | C66: 136.9 | D66: 137.23 | E66: 135.87 | F66: 134.83 | G66: 133.47 | H66: 138.27 | I66: 139.63 | J66: 140.67 | K66: 138.6 | L66: 136.2 | M66: 191.78437
A67: 58 | B67: COFORGE | C67: 2465.35 | D67: 2480.12 | E67: 2435.23 | F67: 2405.12 | G67: 2360.23 | H67: 2510.23 | I67: 2555.12 | J67: 2585.23 | K67: 2525 | L67: 2450 | M67: 1.79812
A68: 59 | B68: COLPAL | C68: 1554.85 | D68: 1557.28 | E68: 1541.57 | F68: 1528.28 | G68: 1512.57 | H68: 1570.57 | I68: 1586.28 | J68: 1599.57 | K68: 1573 | L68: 1544 | M68: 4.78816
A69: 60 | B69: CONCOR | C69: 557.3 | D69: 558.82 | E69: 546.63 | F69: 535.97 | G69: 523.78 | H69: 569.48 | I69: 581.67 | J69: 592.33 | K69: 571 | L69: 548.15 | M69: 31.49822
A70: 61 | B70: COROMANDEL | C70: 759 | D70: 754.93 | E70: 747.57 | F70: 736.13 | G70: 728.77 | H70: 766.37 | I70: 773.73 | J70: 785.17 | K70: 762.3 | L70: 743.5 | M70: 2.80077
A71: 62 | B71: CROMPTON | C71: 382.2 | D71: 383.83 | E71: 376.72 | F71: 371.23 | G71: 364.12 | H71: 389.32 | I71: 396.43 | J71: 401.92 | K71: 390.95 | L71: 378.35 | M71: 12.01021
A72: 63 | B72: CUMMINSIND | C72: 801.5 | D72: 791.75 | E72: 774.75 | F72: 748.00 | G72: 731.00 | H72: 818.50 | I72: 835.50 | J72: 862.25 | K72: 808.75 | L72: 765 | M72: 24.16382
A73: 64 | B73: DLF | C73: 305.4 | D73: 304.10 | E73: 297.50 | F73: 289.60 | G73: 283.00 | H73: 312.00 | I73: 318.60 | J73: 326.50 | K73: 310.7 | L73: 296.2 | M73: 215.74486
A74: 65 | B74: DABUR | C74: 500.05 | D74: 501.43 | E74: 497.37 | F74: 494.68 | G74: 490.62 | H74: 504.12 | I74: 508.18 | J74: 510.87 | K74: 505.5 | L74: 498.75 | M74: 30.11786
A75: 66 | B75: DALBHARAT | C75: 1448.35 | D75: 1457.98 | E75: 1421.47 | F75: 1394.58 | G75: 1358.07 | H75: 1484.87 | I75: 1521.38 | J75: 1548.27 | K75: 1494.5 | L75: 1431.1 | M75: 1.00953
A76: 67 | B76: DHANI | C76: 339.35 | D76: 343.87 | E76: 331.08 | F76: 322.82 | G76: 310.03 | H76: 352.13 | I76: 364.92 | J76: 373.18 | K76: 356.65 | L76: 335.6 | M76: 6.59388
A77: 68 | B77: DIVISLAB | C77: 3448.25 | D77: 3469.37 | E77: 3419.73 | F77: 3391.22 | G77: 3341.58 | H77: 3497.88 | I77: 3547.52 | J77: 3576.03 | K77: 3519 | L77: 3440.85 | M77: 5.11326
A78: 69 | B78: LALPATHLAB | C78: 2285.6 | D78: 2338.20 | E78: 2227.40 | F78: 2169.20 | G78: 2058.40 | H78: 2396.40 | I78: 2507.20 | J78: 2565.40 | K78: 2449 | L78: 2280 | M78: 4.70027
A79: 70 | B79: DRREDDY | C79: 4495.15 | D79: 4483.32 | E79: 4432.33 | F79: 4369.52 | G79: 4318.53 | H79: 4546.13 | I79: 4597.12 | J79: 4659.93 | K79: 4534.3 | L79: 4420.5 | M79: 10.63418
A80: 71 | B80: EDELWEISS | C80: 62.9 | D80: 62.88 | E80: 62.32 | F80: 61.73 | G80: 61.17 | H80: 63.47 | I80: 64.03 | J80: 64.62 | K80: 63.45 | L80: 62.3 | M80: 16.26812
A81: 72 | B81: EICHERMOT | C81: 2514.7 | D81: 2507.12 | E81: 2464.43 | F81: 2414.17 | G81: 2371.48 | H81: 2557.38 | I81: 2600.07 | J81: 2650.33 | K81: 2549.8 | L81: 2456.85 | M81: 18.21712
A82: 73 | B82: EMAMILTD | C82: 470.05 | D82: 473.35 | E82: 464.50 | F82: 458.95 | G82: 450.10 | H82: 478.90 | I82: 487.75 | J82: 493.30 | K82: 482.2 | L82: 467.8 | M82: 4.16634
A83: 74 | B83: ENDURANCE | C83: 1364.8 | D83: 1357.93 | E83: 1331.87 | F83: 1298.93 | G83: 1272.87 | H83: 1390.87 | I83: 1416.93 | J83: 1449.87 | K83: 1384 | L83: 1325 | M83: 1.38294
A84: 75 | B84: ESCORTS | C84: 1296.85 | D84: 1283.50 | E84: 1261.00 | F84: 1225.15 | G84: 1202.65 | H84: 1319.35 | I84: 1341.85 | J84: 1377.70 | K84: 1306 | L84: 1247.65 | M84: 16.82554
A85: 76 | B85: EXIDEIND | C85: 200.6 | D85: 200.97 | E85: 198.03 | F85: 195.47 | G85: 192.53 | H85: 203.53 | I85: 206.47 | J85: 209.03 | K85: 203.9 | L85: 198.4 | M85: 41.85233
A86: 77 | B86: FEDERALBNK | C86: 81.25 | D86: 81.18 | E86: 80.07 | F86: 78.88 | G86: 77.77 | H86: 82.37 | I86: 83.48 | J86: 84.67 | K86: 82.3 | L86: 80 | M86: 211.66182
A87: 78 | B87: FORTIS | C87: 162.55 | D87: 162.28 | E87: 159.62 | F87: 156.68 | G87: 154.02 | H87: 165.22 | I87: 167.88 | J87: 170.82 | K87: 164.95 | L87: 159.35 | M87: 28.24089
A88: 79 | B88: FRETAIL | C88: 69.4 | D88: 70.00 | E88: 68.00 | F88: 66.60 | G88: 64.60 | H88: 71.40 | I88: 73.40 | J88: 74.80 | K88: 72 | L88: 68.6 | M88: 52.56673
A89: 80 | B89: GAIL | C89: 147.35 | D89: 146.40 | E89: 144.05 | F89: 140.75 | G89: 138.40 | H89: 149.70 | I89: 152.05 | J89: 155.35 | K89: 148.75 | L89: 143.1 | M89: 302.52701
A90: 81 | B90: GMRINFRA | C90: 25.4 | D90: 25.33 | E90: 24.92 | F90: 24.43 | G90: 24.02 | H90: 25.82 | I90: 26.23 | J90: 26.72 | K90: 25.75 | L90: 24.85 | M90: 119.23761
A91: 82 | B91: GICRE | C91: 196.35 | D91: 190.98 | E91: 178.17 | F91: 159.98 | G91: 147.17 | H91: 209.17 | I91: 221.98 | J91: 240.17 | K91: 203.8 | L91: 172.8 | M91: 60.82179
A92: 83 | B92: GLENMARK | C92: 466.45 | D92: 467.88 | E92: 459.57 | F92: 452.68 | G92: 444.37 | H92: 474.77 | I92: 483.08 | J92: 489.97 | K92: 476.2 | L92: 461 | M92: 14.6819
A93: 84 | B93: GODREJAGRO | C93: 483.35 | D93: 482.70 | E93: 477.05 | F93: 470.75 | G93: 465.10 | H93: 489.00 | I93: 494.65 | J93: 500.95 | K93: 488.35 | L93: 476.4 | M93: 1.272
A94: 85 | B94: GODREJCP | C94: 680.1 | D94: 686.78 | E94: 671.27 | F94: 662.43 | G94: 646.92 | H94: 695.62 | I94: 711.13 | J94: 719.97 | K94: 702.3 | L94: 677.95 | M94: 35.96099
A95: 86 | B95: GODREJIND | C95: 447.8 | D95: 443.32 | E95: 436.78 | F95: 425.77 | G95: 419.23 | H95: 454.33 | I95: 460.87 | J95: 471.88 | K95: 449.85 | L95: 432.3 | M95: 1.7537
A96: 87 | B96: GODREJPROP | C96: 1496.25 | D96: 1483.78 | E96: 1462.47 | F96: 1428.68 | G96: 1407.37 | H96: 1517.57 | I96: 1538.88 | J96: 1572.67 | K96: 1505.1 | L96: 1450 | M96: 15.90385
A97: 88 | B97: GRASIM | C97: 1231.5 | D97: 1234.33 | E97: 1218.77 | F97: 1206.03 | G97: 1190.47 | H97: 1247.07 | I97: 1262.63 | J97: 1275.37 | K97: 1249.9 | L97: 1221.6 | M97: 14.34663
A98: 89 | B98: GUJGASLTD | C98: 490.75 | D98: 491.33 | E98: 485.22 | F98: 479.68 | G98: 473.57 | H98: 496.87 | I98: 502.98 | J98: 508.52 | K98: 497.45 | L98: 485.8 | M98: 4.58757
A99: 90 | B99: GSPL | C99: 247.8 | D99: 244.40 | E99: 236.85 | F99: 225.90 | G99: 218.35 | H99: 255.35 | I99: 262.90 | J99: 273.85 | K99: 251.95 | L99: 233.45 | M99: 15.14086
A100: 91 | B100: HCLTECH | C100: 909.95 | D100: 915.50 | E100: 901.00 | F100: 892.05 | G100: 877.55 | H100: 924.45 | I100: 938.95 | J100: 947.90 | K100: 930 | L100: 906.55 | M100: 59.16942
A101: 92 | B101: HDFCAMC | C101: 2882.8 | D101: 2892.27 | E101: 2854.58 | F101: 2826.37 | G101: 2788.68 | H101: 2920.48 | I101: 2958.17 | J101: 2986.38 | K101: 2929.95 | L101: 2864.05 | M101: 1.45368
A102: 93 | B102: HDFCBANK | C102: 1529.15 | D102: 1536.50 | E102: 1515.30 | F102: 1501.45 | G102: 1480.25 | H102: 1550.35 | I102: 1571.55 | J102: 1585.40 | K102: 1557.7 | L102: 1522.65 | M102: 91.19953
A103: 94 | B103: HDFCLIFE | C103: 705.7 | D103: 702.90 | E103: 692.95 | F103: 680.20 | G103: 670.25 | H103: 715.65 | I103: 725.60 | J103: 738.35 | K103: 712.85 | L103: 690.15 | M103: 46.9357
A104: 95 | B104: HAVELLS | C104: 1124.45 | D104: 1130.47 | E104: 1113.98 | F104: 1103.52 | G104: 1087.03 | H104: 1140.93 | I104: 1157.42 | J104: 1167.88 | K104: 1146.95 | L104: 1120 | M104: 13.74807
A105: 96 | B105: HEROMOTOCO | C105: 3405.45 | D105: 3420.68 | E105: 3361.82 | F105: 3318.18 | G105: 3259.32 | H105: 3464.32 | I105: 3523.18 | J105: 3566.82 | K105: 3479.55 | L105: 3377.05 | M105: 10.69537
A106: 97 | B106: HINDALCO | C106: 333.05 | D106: 329.28 | E106: 320.42 | F106: 307.78 | G106: 298.92 | H106: 341.92 | I106: 350.78 | J106: 363.42 | K106: 338.15 | L106: 316.65 | M106: 506.7723
A107: 98 | B107: HINDPETRO | C107: 244.9 | D107: 245.50 | E107: 241.10 | F107: 237.30 | G107: 232.90 | H107: 249.30 | I107: 253.70 | J107: 257.50 | K107: 249.9 | L107: 241.7 | M107: 98.4808
A108: 99 | B108: HINDUNILVR | C108: 2179.25 | D108: 2180.60 | E108: 2168.85 | F108: 2158.45 | G108: 2146.70 | H108: 2191.00 | I108: 2202.75 | J108: 2213.15 | K108: 2192.35 | L108: 2170.2 | M108: 20.62144
A109: 100 | B109: HINDZINC | C109: 304.4 | D109: 304.17 | E109: 298.78 | F109: 293.17 | G109: 287.78 | H109: 309.78 | I109: 315.17 | J109: 320.78 | K109: 309.55 | L109: 298.55 | M109: 10.86718
A110: 101 | B110: HUDCO | C110: 44.35 | D110: 44.32 | E110: 43.53 | F110: 42.72 | G110: 41.93 | H110: 45.13 | I110: 45.92 | J110: 46.73 | K110: 45.1 | L110: 43.5 | M110: 24.53461
A111: 102 | B111: HDFC | C111: 2628.6 | D111: 2642.50 | E111: 2607.10 | F111: 2585.60 | G111: 2550.20 | H111: 2664.00 | I111: 2699.40 | J111: 2720.90 | K111: 2677.9 | L111: 2621 | M111: 30.22925
A112: 103 | B112: ICICIBANK | C112: 616.3 | D112: 616.13 | E112: 609.22 | F112: 602.13 | G112: 595.22 | H112: 623.22 | I112: 630.13 | J112: 637.22 | K112: 623.05 | L112: 609.05 | M112: 235.34585
A113: 104 | B113: ICICIGI | C113: 1499.45 | D113: 1491.15 | E113: 1468.30 | F113: 1437.15 | G113: 1414.30 | H113: 1522.30 | I113: 1545.15 | J113: 1576.30 | K113: 1514 | L113: 1460 | M113: 8.59167
A114: 105 | B114: ICICIPRULI | C114: 470.9 | D114: 468.12 | E114: 462.78 | F114: 454.67 | G114: 449.33 | H114: 476.23 | I114: 481.57 | J114: 489.68 | K114: 473.45 | L114: 460 | M114: 28.35512
A115: 106 | B115: ISEC | C115: 398.45 | D115: 399.65 | E115: 394.00 | F115: 389.55 | G115: 383.90 | H115: 404.10 | I115: 409.75 | J115: 414.20 | K115: 405.3 | L115: 395.2 | M115: 12.16379
A116: 107 | B116: IDFCFIRSTB | C116: 61.4 | D116: 61.95 | E116: 60.55 | F116: 59.70 | G116: 58.30 | H116: 62.80 | I116: 64.20 | J116: 65.05 | K116: 63.35 | L116: 61.1 | M116: 612.75241
A117: 108 | B117: ITC | C117: 208.5 | D117: 208.68 | E117: 206.82 | F117: 205.13 | G117: 203.27 | H117: 210.37 | I117: 212.23 | J117: 213.92 | K117: 210.55 | L117: 207 | M117: 266.75953
A118: 109 | B118: IBULHSGFIN | C118: 215.95 | D118: 218.48 | E118: 212.52 | F118: 209.08 | G118: 203.12 | H118: 221.92 | I118: 227.88 | J118: 231.32 | K118: 224.45 | L118: 215.05 | M118: 176.72256
A119: 110 | B119: INDHOTEL | C119: 118.15 | D119: 119.33 | E119: 116.82 | F119: 115.48 | G119: 112.97 | H119: 120.67 | I119: 123.18 | J119: 124.52 | K119: 121.85 | L119: 118 | M119: 22.19766
A120: 111 | B120: IOC | C120: 97.65 | D120: 97.58 | E120: 96.07 | F120: 94.48 | G120: 92.97 | H120: 99.17 | I120: 100.68 | J120: 102.27 | K120: 99.1 | L120: 96 | M120: 355.12683
A121: 112 | B121: IRCTC | C121: 1632.9 | D121: 1622.60 | E121: 1603.10 | F121: 1573.30 | G121: 1553.80 | H121: 1652.40 | I121: 1671.90 | J121: 1701.70 | K121: 1642.1 | L121: 1592.8 | M121: 9.37489
A122: 113 | B122: IGL | C122: 509.25 | D122: 515.33 | E122: 499.67 | F122: 490.08 | G122: 474.42 | H122: 524.92 | I122: 540.58 | J122: 550.17 | K122: 531 | L122: 505.75 | M122: 56.20748
A123: 114 | B123: INDUSTOWER | C123: 271.65 | D123: 272.10 | E123: 266.45 | F123: 261.25 | G123: 255.60 | H123: 277.30 | I123: 282.95 | J123: 288.15 | K123: 277.75 | L123: 266.9 | M123: 113.46327
A124: 115 | B124: INDUSINDBK | C124: 1048.3 | D124: 1040.08 | E124: 1026.22 | F124: 1004.13 | G124: 990.27 | H124: 1062.17 | I124: 1076.03 | J124: 1098.12 | K124: 1053.95 | L124: 1018 | M124: 71.60332
A125: 116 | B125: NAUKRI | C125: 5071.15 | D125: 5111.70 | E125: 4973.40 | F125: 4875.65 | G125: 4737.35 | H125: 5209.45 | I125: 5347.75 | J125: 5445.50 | K125: 5250 | L125: 5013.95 | M125: 9.44296
A126: 117 | B126: INFY | C126: 1266.35 | D126: 1271.63 | E126: 1252.27 | F126: 1238.18 | G126: 1218.82 | H126: 1285.72 | I126: 1305.08 | J126: 1319.17 | K126: 1291 | L126: 1257.55 | M126: 66.12942
A127: 118 | B127: INDIGO | C127: 1530.45 | D127: 1525.90 | E127: 1510.60 | F127: 1490.75 | G127: 1475.45 | H127: 1545.75 | I127: 1561.05 | J127: 1580.90 | K127: 1541.2 | L127: 1506.05 | M127: 10.62743
A128: 119 | B128: IPCALAB | C128: 1800.9 | D128: 1806.10 | E128: 1780.20 | F128: 1759.50 | G128: 1733.60 | H128: 1826.80 | I128: 1852.70 | J128: 1873.40 | K128: 1832 | L128: 1785.4 | M128: 2.74754
A129: 120 | B129: JSWENERGY | C129: 73.4 | D129: 73.30 | E129: 71.35 | F129: 69.30 | G129: 67.35 | H129: 75.35 | I129: 77.30 | J129: 79.35 | K129: 75.25 | L129: 71.25 | M129: 39.09384
A130: 121 | B130: JSWSTEEL | C130: 412.6 | D130: 411.63 | E130: 407.07 | F130: 401.53 | G130: 396.97 | H130: 417.17 | I130: 421.73 | J130: 427.27 | K130: 416.2 | L130: 406.1 | M130: 81.27742
A131: 122 | B131: JINDALSTEL | C131: 336.9 | D131: 333.35 | E131: 324.70 | F131: 312.50 | G131: 303.85 | H131: 345.55 | I131: 354.20 | J131: 366.40 | K131: 342 | L131: 321.15 | M131: 128.2467
A132: 123 | B132: JUBLFOOD | C132: 3203.75 | D132: 3146.42 | E132: 3077.33 | F132: 2950.92 | G132: 2881.83 | H132: 3272.83 | I132: 3341.92 | J132: 3468.33 | K132: 3215.5 | L132: 3020 | M132: 20.45885
A133: 124 | B133: KOTAKBANK | C133: 1872.95 | D133: 1901.32 | E133: 1837.63 | F133: 1802.32 | G133: 1738.63 | H133: 1936.63 | I133: 2000.32 | J133: 2035.63 | K133: 1965 | L133: 1866 | M133: 55.72402
A134: 125 | B134: L&TFH | C134: 98.75 | D134: 98.15 | E134: 96.90 | F134: 95.05 | G134: 93.80 | H134: 100.00 | I134: 101.25 | J134: 103.10 | K134: 99.4 | L134: 96.3 | M134: 166.54985
A135: 126 | B135: LTTS | C135: 2460.35 | D135: 2486.45 | E135: 2414.90 | F135: 2369.45 | G135: 2297.90 | H135: 2531.90 | I135: 2603.45 | J135: 2648.90 | K135: 2558 | L135: 2441 | M135: 1.31281
A136: 127 | B136: LICHSGFIN | C136: 429.75 | D136: 430.93 | E136: 424.67 | F136: 419.58 | G136: 413.32 | H136: 436.02 | I136: 442.28 | J136: 447.37 | K136: 437.2 | L136: 425.85 | M136: 48.58077
A137: 128 | B137: LTI | C137: 3754.55 | D137: 3785.18 | E137: 3719.37 | F137: 3684.18 | G137: 3618.37 | H137: 3820.37 | I137: 3886.18 | J137: 3921.37 | K137: 3851 | L137: 3750 | M137: 0.90928
A138: 129 | B138: LT | C138: 1486.3 | D138: 1481.43 | E138: 1464.87 | F138: 1443.43 | G138: 1426.87 | H138: 1502.87 | I138: 1519.43 | J138: 1540.87 | K138: 1498 | L138: 1460 | M138: 37.33776
A139: 130 | B139: LUPIN | C139: 1010.5 | D139: 1003.68 | E139: 992.47 | F139: 974.43 | G139: 963.22 | H139: 1021.72 | I139: 1032.93 | J139: 1050.97 | K139: 1014.9 | L139: 985.65 | M139: 23.48666
A140: 131 | B140: MRF | C140: 87558.5 | D140: 87154.52 | E140: 86203.98 | F140: 84849.47 | G140: 83898.93 | H140: 88509.03 | I140: 89459.57 | J140: 90814.08 | K140: 88105.05 | L140: 85800 | M140: 0.37383
A141: 132 | B141: MGL | C141: 1129.05 | D141: 1139.18 | E141: 1113.07 | F141: 1097.08 | G141: 1070.97 | H141: 1155.17 | I141: 1181.28 | J141: 1197.27 | K141: 1165.3 | L141: 1123.2 | M141: 5.09328
A142: 133 | B142: M&MFIN | C142: 209.1 | D142: 209.33 | E142: 206.17 | F142: 203.23 | G142: 200.07 | H142: 212.27 | I142: 215.43 | J142: 218.37 | K142: 212.5 | L142: 206.4 | M142: 55.02031
A143: 134 | B143: M&M | C143: 840.95 | D143: 839.00 | E143: 821.05 | F143: 801.15 | G143: 783.20 | H143: 858.90 | I143: 876.85 | J143: 896.75 | K143: 856.95 | L143: 819.1 | M143: 73.48084
A144: 135 | B144: MANAPPURAM | C144: 169.8 | D144: 169.43 | E144: 167.97 | F144: 166.13 | G144: 164.67 | H144: 171.27 | I144: 172.73 | J144: 174.57 | K144: 170.9 | L144: 167.6 | M144: 30.09489
A145: 136 | B145: MARICO | C145: 422.1 | D145: 421.40 | E145: 417.80 | F145: 413.50 | G145: 409.90 | H145: 425.70 | I145: 429.30 | J145: 433.60 | K145: 425 | L145: 417.1 | M145: 22.24637
A146: 137 | B146: MARUTI | C146: 6970.5 | D146: 7010.28 | E146: 6898.22 | F146: 6825.93 | G146: 6713.87 | H146: 7082.57 | I146: 7194.63 | J146: 7266.92 | K146: 7122.35 | L146: 6938 | M146: 15.89884
A147: 138 | B147: MFSL | C147: 850.15 | D147: 850.37 | E147: 838.78 | F147: 827.42 | G147: 815.83 | H147: 861.73 | I147: 873.32 | J147: 884.68 | K147: 861.95 | L147: 839 | M147: 21.72253
A148: 139 | B148: MINDTREE | C148: 1602.3 | D148: 1604.23 | E148: 1574.47 | F148: 1546.63 | G148: 1516.87 | H148: 1632.07 | I148: 1661.83 | J148: 1689.67 | K148: 1634 | L148: 1576.4 | M148: 9.2471
A149: 140 | B149: MOTHERSUMI | C149: 219.55 | D149: 219.02 | E149: 215.28 | F149: 211.02 | G149: 207.28 | H149: 223.28 | I149: 227.02 | J149: 231.28 | K149: 222.75 | L149: 214.75 | M149: 179.67193
A150: 141 | B150: MPHASIS | C150: 1745 | D150: 1747.62 | E150: 1707.43 | F150: 1669.87 | G150: 1629.68 | H150: 1785.18 | I150: 1825.37 | J150: 1862.93 | K150: 1787.8 | L150: 1710.05 | M150: 7.11692
A151: 142 | B151: MUTHOOTFIN | C151: 1286.45 | D151: 1293.27 | E151: 1273.18 | F151: 1259.92 | G151: 1239.83 | H151: 1306.53 | I151: 1326.62 | J151: 1339.88 | K151: 1313.35 | L151: 1280 | M151: 13.88642
A152: 143 | B152: NATCOPHARM | C152: 820.35 | D152: 810.97 | E152: 797.38 | F152: 774.42 | G152: 760.83 | H152: 833.93 | I152: 847.52 | J152: 870.48 | K152: 824.55 | L152: 788 | M152: 3.52674
A153: 144 | B153: NMDC | C153: 122.85 | D153: 122.85 | E153: 120.20 | F153: 117.55 | G153: 114.90 | H153: 125.50 | I153: 128.15 | J153: 130.80 | K153: 125.5 | L153: 120.2 | M153: 214.75807
A154: 145 | B154: NTPC | C154: 103.4 | D154: 102.70 | E154: 101.25 | F154: 99.10 | G154: 97.65 | H154: 104.85 | I154: 106.30 | J154: 108.45 | K154: 104.15 | L154: 100.55 | M154: 312.33104
A155: 146 | B155: NATIONALUM | C155: 55.25 | D155: 54.62 | E155: 53.58 | F155: 51.92 | G155: 50.88 | H155: 56.28 | I155: 57.32 | J155: 58.98 | K155: 55.65 | L155: 52.95 | M155: 416.00364
A156: 147 | B156: NAVINFLUOR | C156: 2509.05 | D156: 2520.23 | E156: 2472.92 | F156: 2436.78 | G156: 2389.47 | H156: 2556.37 | I156: 2603.68 | J156: 2639.82 | K156: 2567.55 | L156: 2484.1 | M156: 0.77929
A157: 148 | B157: NESTLEIND | C157: 16169.95 | D157: 16142.35 | E157: 16029.70 | F157: 15889.45 | G157: 15776.80 | H157: 16282.60 | I157: 16395.25 | J157: 16535.50 | K157: 16255 | L157: 16002.1 | M157: 1.42998
A158: 149 | B158: NAM-INDIA | C158: 328.9 | D158: 327.67 | E158: 319.43 | F158: 309.97 | G158: 301.73 | H158: 337.13 | I158: 345.37 | J158: 354.83 | K158: 335.9 | L158: 318.2 | M158: 6.6792
A159: 150 | B159: OBEROIRLTY | C159: 560.9 | D159: 561.92 | E159: 549.88 | F159: 538.87 | G159: 526.83 | H159: 572.93 | I159: 584.97 | J159: 595.98 | K159: 573.95 | L159: 550.9 | M159: 2.44366
A160: 151 | B160: ONGC | C160: 112.2 | D160: 112.02 | E160: 109.63 | F160: 107.07 | G160: 104.68 | H160: 114.58 | I160: 116.97 | J160: 119.53 | K160: 114.4 | L160: 109.45 | M160: 908.60972
A161: 152 | B161: OIL | C161: 125.6 | D161: 125.97 | E161: 123.38 | F161: 121.17 | G161: 118.58 | H161: 128.18 | I161: 130.77 | J161: 132.98 | K161: 128.55 | L161: 123.75 | M161: 62.17126
A162: 153 | B162: OFSS | C162: 3006.3 | D162: 3003.38 | E162: 2983.37 | F162: 2960.43 | G162: 2940.42 | H162: 3026.32 | I162: 3046.33 | J162: 3069.27 | K162: 3023.4 | L162: 2980.45 | M162: 0.27359
A163: 154 | B163: PIIND | C163: 2259.1 | D163: 2254.70 | E163: 2239.40 | F163: 2219.70 | G163: 2204.40 | H163: 2274.40 | I163: 2289.70 | J163: 2309.40 | K163: 2270 | L163: 2235 | M163: 2.23161
A164: 155 | B164: PAGEIND | C164: 29042.1 | D164: 28607.80 | E164: 27964.30 | F164: 26886.50 | G164: 26243.00 | H164: 29685.60 | I164: 30329.10 | J164: 31406.90 | K164: 29251.3 | L164: 27530 | M164: 0.60003
A165: 156 | B165: PETRONET | C165: 251.4 | D165: 252.32 | E165: 249.08 | F165: 246.77 | G165: 243.53 | H165: 254.63 | I165: 257.87 | J165: 260.18 | K165: 255.55 | L165: 250 | M165: 52.69453
A166: 157 | B166: PFIZER | C166: 4457.95 | D166: 4484.77 | E166: 4414.38 | F166: 4370.82 | G166: 4300.43 | H166: 4528.33 | I166: 4598.72 | J166: 4642.28 | K166: 4555.15 | L166: 4441.2 | M166: 0.53549
A167: 158 | B167: PIDILITIND | C167: 1725.85 | D167: 1734.92 | E167: 1705.93 | F167: 1686.02 | G167: 1657.03 | H167: 1754.83 | I167: 1783.82 | J167: 1803.73 | K167: 1763.9 | L167: 1715 | M167: 5.00564
A168: 159 | B168: PEL | C168: 1851.55 | D168: 1862.82 | E168: 1800.63 | F168: 1749.72 | G168: 1687.53 | H168: 1913.73 | I168: 1975.92 | J168: 2026.83 | K168: 1925 | L168: 1811.9 | M168: 28.68872
A169: 160 | B169: POLYCAB | C169: 1346.4 | D169: 1343.80 | E169: 1327.60 | F169: 1308.80 | G169: 1292.60 | H169: 1362.60 | I169: 1378.80 | J169: 1397.60 | K169: 1360 | L169: 1325 | M169: 1.20712
A170: 161 | B170: PFC | C170: 121.8 | D170: 121.98 | E170: 119.57 | F170: 117.33 | G170: 114.92 | H170: 124.22 | I170: 126.63 | J170: 128.87 | K170: 124.4 | L170: 119.75 | M170: 61.95403
A171: 162 | B171: POWERGRID | C171: 226.1 | D171: 226.62 | E171: 224.13 | F171: 222.17 | G171: 219.68 | H171: 228.58 | I171: 231.07 | J171: 233.03 | K171: 229.1 | L171: 224.65 | M171: 102.9013
A172: 163 | B172: PRESTIGE | C172: 298.4 | D172: 296.75 | E172: 285.60 | F172: 272.80 | G172: 261.65 | H172: 309.55 | I172: 320.70 | J172: 333.50 | K172: 307.9 | L172: 283.95 | M172: 16.80365
A173: 164 | B173: PGHH | C173: 12977.05 | D173: 12995.62 | E173: 12851.43 | F173: 12725.82 | G173: 12581.63 | H173: 13121.23 | I173: 13265.42 | J173: 13391.03 | K173: 13139.8 | L173: 12870 | M173: 0.07409
A174: 165 | B174: PNB | C174: 41 | D174: 41.28 | E174: 40.37 | F174: 39.73 | G174: 38.82 | H174: 41.92 | I174: 42.83 | J174: 43.47 | K174: 42.2 | L174: 40.65 | M174: 2179.40163
A175: 166 | B175: RBLBANK | C175: 236.05 | D175: 235.57 | E175: 231.78 | F175: 227.52 | G175: 223.73 | H175: 239.83 | I175: 243.62 | J175: 247.88 | K175: 239.35 | L175: 231.3 | M175: 130.36265
A176: 167 | B176: RECLTD | C176: 139.65 | D176: 140.22 | E176: 138.03 | F176: 136.42 | G176: 134.23 | H176: 141.83 | I176: 144.02 | J176: 145.63 | K176: 142.4 | L176: 138.6 | M176: 68.58197
A177: 168 | B177: RAJESHEXPO | C177: 487.55 | D177: 491.67 | E177: 481.73 | F177: 475.92 | G177: 465.98 | H177: 497.48 | I177: 507.42 | J177: 513.23 | K177: 501.6 | L177: 485.85 | M177: 1.83235
A178: 169 | B178: RELIANCE | C178: 2023.45 | D178: 2029.98 | E178: 2007.07 | F178: 1990.68 | G178: 1967.77 | H178: 2046.37 | I178: 2069.28 | J178: 2085.67 | K178: 2052.9 | L178: 2013.6 | M178: 118.34752
A179: 170 | B179: SBICARD | C179: 1029.3 | D179: 1025.32 | E179: 1015.98 | F179: 1002.67 | G179: 993.33 | H179: 1038.63 | I179: 1047.97 | J179: 1061.28 | K179: 1034.65 | L179: 1012 | M179: 10.43507
A180: 171 | B180: SBILIFE | C180: 869.7 | D180: 864.37 | E180: 854.33 | F180: 838.97 | G180: 828.93 | H180: 879.73 | I180: 889.77 | J180: 905.13 | K180: 874.4 | L180: 849 | M180: 14.80977
A181: 172 | B181: SRF | C181: 5410.7 | D181: 5411.55 | E181: 5369.15 | F181: 5327.60 | G181: 5285.20 | H181: 5453.10 | I181: 5495.50 | J181: 5537.05 | K181: 5453.95 | L181: 5370 | M181: 0.85858
A182: 173 | B182: SANOFI | C182: 7968.15 | D182: 7939.72 | E182: 7899.43 | F182: 7830.72 | G182: 7790.43 | H182: 8008.43 | I182: 8048.72 | J182: 8117.43 | K182: 7980 | L182: 7871 | M182: 0.31814
A183: 174 | B183: SHREECEM | C183: 27260.35 | D183: 27187.47 | E183: 26842.88 | F183: 26425.42 | G183: 26080.83 | H183: 27604.93 | I183: 27949.52 | J183: 28366.98 | K183: 27532.05 | L183: 26770 | M183: 0.46471
A184: 175 | B184: SRTRANSFIN | C184: 1377.45 | D184: 1369.55 | E184: 1344.10 | F184: 1310.75 | G184: 1285.30 | H184: 1402.90 | I184: 1428.35 | J184: 1461.70 | K184: 1395 | L184: 1336.2 | M184: 20.54617
A185: 176 | B185: SIEMENS | C185: 1868.95 | D185: 1853.38 | E185: 1824.57 | F185: 1780.18 | G185: 1751.37 | H185: 1897.77 | I185: 1926.58 | J185: 1970.97 | K185: 1882.2 | L185: 1809 | M185: 4.79481
A186: 177 | B186: SBIN | C186: 395.6 | D186: 394.77 | E186: 389.83 | F186: 384.07 | G186: 379.13 | H186: 400.53 | I186: 405.47 | J186: 411.23 | K186: 399.7 | L186: 389 | M186: 454.62768
A187: 178 | B187: SAIL | C187: 70.55 | D187: 69.55 | E187: 67.90 | F187: 65.25 | G187: 63.60 | H187: 72.20 | I187: 73.85 | J187: 76.50 | K187: 71.2 | L187: 66.9 | M187: 1002.67923
A188: 179 | B188: SUNPHARMA | C188: 604.05 | D188: 601.47 | E188: 594.58 | F188: 585.12 | G188: 578.23 | H188: 610.93 | I188: 617.82 | J188: 627.28 | K188: 608.35 | L188: 592 | M188: 75.64187
A189: 180 | B189: SUNTV | C189: 498.25 | D189: 499.70 | E189: 493.55 | F189: 488.85 | G189: 482.70 | H189: 504.40 | I189: 510.55 | J189: 515.25 | K189: 505.85 | L189: 495 | M189: 16.39909
A190: 181 | B190: SYNGENE | C190: 561.35 | D190: 560.32 | E190: 553.63 | F190: 545.92 | G190: 539.23 | H190: 568.03 | I190: 574.72 | J190: 582.43 | K190: 567 | L190: 552.6 | M190: 3.18206
A191: 182 | B191: TVSMOTOR | C191: 597.05 | D191: 594.12 | E191: 587.23 | F191: 577.42 | G191: 570.53 | H191: 603.93 | I191: 610.82 | J191: 620.63 | K191: 601 | L191: 584.3 | M191: 23.43076
A192: 183 | B192: TATACHEM | C192: 654 | D192: 650.23 | E192: 640.97 | F192: 627.93 | G192: 618.67 | H192: 663.27 | I192: 672.53 | J192: 685.57 | K192: 659.5 | L192: 637.2 | M192: 136.30689
A193: 184 | B193: TCS | C193: 2980.2 | D193: 2992.07 | E193: 2956.13 | F193: 2932.07 | G193: 2896.13 | H193: 3016.13 | I193: 3052.07 | J193: 3076.13 | K193: 3028 | L193: 2968 | M193: 38.32829
A194: 185 | B194: TATACONSUM | C194: 627.5 | D194: 626.17 | E194: 617.33 | F194: 607.17 | G194: 598.33 | H194: 636.33 | I194: 645.17 | J194: 655.33 | K194: 635 | L194: 616 | M194: 42.22282
A195: 186 | B195: TATAMOTORS | C195: 324 | D195: 320.47 | E195: 312.03 | F195: 300.07 | G195: 291.63 | H195: 332.43 | I195: 340.87 | J195: 352.83 | K195: 328.9 | L195: 308.5 | M195: 1333.10157
A196: 187 | B196: TATAPOWER | C196: 92.05 | D196: 91.75 | E196: 90.10 | F196: 88.15 | G196: 86.50 | H196: 93.70 | I196: 95.35 | J196: 97.30 | K196: 93.4 | L196: 89.8 | M196: 439.25417
A197: 188 | B197: TATASTEEL | C197: 729.3 | D197: 715.83 | E197: 695.67 | F197: 662.03 | G197: 641.87 | H197: 749.47 | I197: 769.63 | J197: 803.27 | K197: 736 | L197: 682.2 | M197: 389.07071
A198: 189 | B198: TECHM | C198: 945.75 | D198: 946.50 | E198: 930.25 | F198: 914.75 | G198: 898.50 | H198: 962.00 | I198: 978.25 | J198: 993.75 | K198: 962.75 | L198: 931 | M198: 41.20032
A199: 190 | B199: RAMCOCEM | C199: 960.2 | D199: 952.72 | E199: 938.98 | F199: 917.77 | G199: 904.03 | H199: 973.93 | I199: 987.67 | J199: 1008.88 | K199: 966.45 | L199: 931.5 | M199: 7.05725
A200: 191 | B200: TITAN | C200: 1424.05 | D200: 1420.38 | E200: 1403.82 | F200: 1383.58 | G200: 1367.02 | H200: 1440.62 | I200: 1457.18 | J200: 1477.42 | K200: 1436.95 | L200: 1400.15 | M200: 18.71135
A201: 192 | B201: TORNTPHARM | C201: 2425.4 | D201: 2436.87 | E201: 2408.73 | F201: 2392.07 | G201: 2363.93 | H201: 2453.53 | I201: 2481.67 | J201: 2498.33 | K201: 2465 | L201: 2420.2 | M201: 3.37498
A202: 193 | B202: TORNTPOWER | C202: 370 | D202: 374.38 | E202: 364.72 | F202: 359.43 | G202: 349.77 | H202: 379.67 | I202: 389.33 | J202: 394.62 | K202: 384.05 | L202: 369.1 | M202: 29.12324
A203: 194 | B203: TRENT | C203: 785.45 | D203: 799.63 | E203: 766.32 | F203: 747.18 | G203: 713.87 | H203: 818.77 | I203: 852.08 | J203: 871.22 | K203: 832.95 | L203: 780.5 | M203: 4.17058
A204: 195 | B204: UPL | C204: 566.4 | D204: 550.15 | E204: 530.30 | F204: 494.20 | G204: 474.35 | H204: 586.25 | I204: 606.10 | J204: 642.20 | K204: 570 | L204: 514.05 | M204: 208.67768
A205: 196 | B205: ULTRACEMCO | C205: 6268.45 | D205: 6249.13 | E205: 6150.37 | F205: 6032.28 | G205: 5933.52 | H205: 6367.22 | I205: 6465.98 | J205: 6584.07 | K205: 6347.9 | L205: 6131.05 | M205: 4.53805
... 29 more rows

Sheet MidCap Intra
L5: Back To Main Page
A6: FOR INTRA DAY TRADING | K6: =Main!B10 -> 2021-02-24
A9: Sr.no | B9: Scrip | C9: CLOSE RATE | D9: Pivot Point | E9: Supports | H9: Resistances
C10: Point | E10: S1 | F10: S2 | G10: S3 | H10: R1 | I10: R2 | J10: R3 | K10: HIGH | L10: LOW | M10: Total Trade Quanity in Lakhs
A11: 1 | B11: 3MINDIA | C11: 21015.8 | D11: 21110.75 | E11: 20771.50 | F11: 20527.20 | G11: 20187.95 | H11: 21355.05 | I11: 21694.30 | J11: 21938.60 | K11: 21450 | L11: 20866.45 | M11: 0.04487
A12: 2 | B12: ABB | C12: 1480 | D12: 1486.85 | E12: 1456.20 | F12: 1432.40 | G12: 1401.75 | H12: 1510.65 | I12: 1541.30 | J12: 1565.10 | K12: 1517.5 | L12: 1463.05 | M12: 0.86666
A13: 3 | B13: POWERINDIA | C13: 1506.05 | D13: 1495.02 | E13: 1451.03 | F13: 1396.02 | G13: 1352.03 | H13: 1550.03 | I13: 1594.02 | J13: 1649.03 | K13: 1539 | L13: 1440 | M13: 0.78975
A14: 4 | B14: ACC | C14: 1697.05 | D14: 1702.68 | E14: 1680.42 | F14: 1663.78 | G14: 1641.52 | H14: 1719.32 | I14: 1741.58 | J14: 1758.22 | K14: 1724.95 | L14: 1686.05 | M14: 7.35863
A15: 5 | B15: AIAENG | C15: 1842.45 | D15: 1835.73 | E15: 1799.72 | F15: 1756.98 | G15: 1720.97 | H15: 1878.47 | I15: 1914.48 | J15: 1957.22 | K15: 1871.75 | L15: 1793 | M15: 0.42936
A16: 6 | B16: APLAPOLLO | C16: 974.45 | D16: 968.15 | E16: 946.40 | F16: 918.35 | G16: 896.60 | H16: 996.20 | I16: 1017.95 | J16: 1046.00 | K16: 989.9 | L16: 940.1 | M16: 2.09052
A17: 7 | B17: AUBANK | C17: 1118.45 | D17: 1104.22 | E17: 1085.23 | F17: 1052.02 | G17: 1033.03 | H17: 1137.43 | I17: 1156.42 | J17: 1189.63 | K17: 1123.2 | L17: 1071 | M17: 6.72795
A18: 8 | B18: AARTIDRUGS | C18: 633.8 | D18: 637.72 | E18: 627.08 | F18: 620.37 | G18: 609.73 | H18: 644.43 | I18: 655.07 | J18: 661.78 | K18: 648.35 | L18: 631 | M18: 2.04805
A19: 9 | B19: AARTIIND | C19: 1241.5 | D19: 1236.98 | E19: 1222.52 | F19: 1203.53 | G19: 1189.07 | H19: 1255.97 | I19: 1270.43 | J19: 1289.42 | K19: 1251.45 | L19: 1218 | M19: 2.72911
A20: 10 | B20: AAVAS | C20: 2204.55 | D20: 2205.97 | E20: 2150.58 | F20: 2096.62 | G20: 2041.23 | H20: 2259.93 | I20: 2315.32 | J20: 2369.28 | K20: 2261.35 | L20: 2152 | M20: 0.57665
A21: 11 | B21: ABBOTINDIA | C21: 14471.3 | D21: 14558.23 | E21: 14367.57 | F21: 14263.83 | G21: 14073.17 | H21: 14661.97 | I21: 14852.63 | J21: 14956.37 | K21: 14748.9 | L21: 14454.5 | M21: 0.11319
A22: 12 | B22: ADANIENT | C22: 799.65 | D22: 805.32 | E22: 783.33 | F22: 767.02 | G22: 745.03 | H22: 821.63 | I22: 843.62 | J22: 859.93 | K22: 827.3 | L22: 789 | M22: 97.53081
A23: 13 | B23: ADANIGREEN | C23: 1196.2 | D23: 1185.23 | E23: 1171.97 | F23: 1147.73 | G23: 1134.47 | H23: 1209.47 | I23: 1222.73 | J23: 1246.97 | K23: 1198.5 | L23: 1161 | M23: 54.05934
A24: 14 | B24: ADANIPORTS | C24: 662 | D24: 667.98 | E24: 653.27 | F24: 644.53 | G24: 629.82 | H24: 676.72 | I24: 691.43 | J24: 700.17 | K24: 682.7 | L24: 659.25 | M24: 112.47164
A25: 15 | B25: ATGL | C25: 486 | D25: 490.82 | E25: 473.18 | F25: 460.37 | G25: 442.73 | H25: 503.63 | I25: 521.27 | J25: 534.08 | K25: 508.45 | L25: 478 | M25: 8.99932
A26: 16 | B26: ADANITRANS | C26: 734.5 | D26: 740.82 | E26: 714.68 | F26: 694.87 | G26: 668.73 | H26: 760.63 | I26: 786.77 | J26: 806.58 | K26: 766.95 | L26: 721 | M26: 8.1274
A27: 17 | B27: ABCAPITAL | C27: 112.8 | D27: 110.67 | E27: 107.43 | F27: 102.07 | G27: 98.83 | H27: 116.03 | I27: 119.27 | J27: 124.63 | K27: 113.9 | L27: 105.3 | M27: 166.31461
A28: 18 | B28: ABFRL | C28: 168.4 | D28: 168.10 | E28: 166.30 | F28: 164.20 | G28: 162.40 | H28: 170.20 | I28: 172.00 | J28: 174.10 | K28: 169.9 | L28: 166 | M28: 45.14222
A29: 19 | B29: ADVENZYMES | C29: 355.95 | D29: 361.67 | E29: 346.43 | F29: 336.92 | G29: 321.68 | H29: 371.18 | I29: 386.42 | J29: 395.93 | K29: 376.9 | L29: 352.15 | M29: 4.24534
A30: 20 | B30: AEGISCHEM | C30: 281.05 | D30: 283.57 | E30: 274.58 | F30: 268.12 | G30: 259.13 | H30: 290.03 | I30: 299.02 | J30: 305.48 | K30: 292.55 | L30: 277.1 | M30: 2.25837
A31: 21 | B31: AFFLE | C31: 5327.7 | D31: 5387.17 | E31: 5230.53 | F31: 5133.37 | G31: 4976.73 | H31: 5484.33 | I31: 5640.97 | J31: 5738.13 | K31: 5543.8 | L31: 5290 | M31: 0.80414
A32: 22 | B32: AJANTPHARM | C32: 1744.25 | D32: 1754.83 | E32: 1721.67 | F32: 1699.08 | G32: 1665.92 | H32: 1777.42 | I32: 1810.58 | J32: 1833.17 | K32: 1788 | L32: 1732.25 | M32: 0.72913
A33: 23 | B33: AKZOINDIA | C33: 2176.3 | D33: 2187.57 | E33: 2161.23 | F33: 2146.17 | G33: 2119.83 | H33: 2202.63 | I33: 2228.97 | J33: 2244.03 | K33: 2213.9 | L33: 2172.5 | M33: 0.42307
A34: 24 | B34: ALEMBICLTD | C34: 102.45 | D34: 102.28 | E34: 101.17 | F34: 99.88 | G34: 98.77 | H34: 103.57 | I34: 104.68 | J34: 105.97 | K34: 103.4 | L34: 101 | M34: 4.33131
A35: 25 | B35: APLLTD | C35: 892.3 | D35: 890.72 | E35: 876.63 | F35: 860.97 | G35: 846.88 | H35: 906.38 | I35: 920.47 | J35: 936.13 | K35: 904.8 | L35: 875.05 | M35: 1.86949
A36: 26 | B36: ALKEM | C36: 2724.7 | D36: 2760.38 | E36: 2676.27 | F36: 2627.83 | G36: 2543.72 | H36: 2808.82 | I36: 2892.93 | J36: 2941.37 | K36: 2844.5 | L36: 2711.95 | M36: 1.00733
A37: 27 | B37: ALKYLAMINE | C37: 4987.2 | D37: 5004.17 | E37: 4935.03 | F37: 4882.87 | G37: 4813.73 | H37: 5056.33 | I37: 5125.47 | J37: 5177.63 | K37: 5073.3 | L37: 4952 | M37: 0.18494
A38: 28 | B38: ALOKINDS | C38: 20.05 | D38: 20.15 | E38: 19.95 | F38: 19.85 | G38: 19.65 | H38: 20.25 | I38: 20.45 | J38: 20.55 | K38: 20.35 | L38: 20.05 | M38: 60.27367
A39: 29 | B39: AMARAJABAT | C39: 890.55 | D39: 892.85 | E39: 875.80 | F39: 861.05 | G39: 844.00 | H39: 907.60 | I39: 924.65 | J39: 939.40 | K39: 909.9 | L39: 878.1 | M39: 14.02291
A40: 30 | B40: AMBER | C40: 3093.75 | D40: 3110.90 | E40: 3045.80 | F40: 2997.85 | G40: 2932.75 | H40: 3158.85 | I40: 3223.95 | J40: 3271.90 | K40: 3176 | L40: 3062.95 | M40: 0.65246
A41: 31 | B41: AMBUJACEM | C41: 264.7 | D41: 266.23 | E41: 261.62 | F41: 258.53 | G41: 253.92 | H41: 269.32 | I41: 273.93 | J41: 277.02 | K41: 270.85 | L41: 263.15 | M41: 71.06597
A42: 32 | B42: APOLLOHOSP | C42: 2996.75 | D42: 2995.58 | E42: 2938.67 | F42: 2880.58 | G42: 2823.67 | H42: 3053.67 | I42: 3110.58 | J42: 3168.67 | K42: 3052.5 | L42: 2937.5 | M42: 14.6593
A43: 33 | B43: APOLLOTYRE | C43: 229.8 | D43: 228.58 | E43: 224.62 | F43: 219.43 | G43: 215.47 | H43: 233.77 | I43: 237.73 | J43: 242.92 | K43: 232.55 | L43: 223.4 | M43: 125.27522
A44: 34 | B44: ASHOKLEY | C44: 125.85 | D44: 124.90 | E44: 121.55 | F44: 117.25 | G44: 113.90 | H44: 129.20 | I44: 132.55 | J44: 136.85 | K44: 128.25 | L44: 120.6 | M44: 337.23741
A45: 35 | B45: ASHOKA | C45: 109.55 | D45: 108.73 | E45: 105.97 | F45: 102.38 | G45: 99.62 | H45: 112.32 | I45: 115.08 | J45: 118.67 | K45: 111.5 | L45: 105.15 | M45: 10.7483
A46: 36 | B46: ASIANPAINT | C46: 2372.2 | D46: 2362.40 | E46: 2324.80 | F46: 2277.40 | G46: 2239.80 | H46: 2409.80 | I46: 2447.40 | J46: 2494.80 | K46: 2400 | L46: 2315 | M46: 32.67268
A47: 37 | B47: ASTERDM | C47: 149.55 | D47: 148.58 | E47: 145.17 | F47: 140.78 | G47: 137.37 | H47: 152.97 | I47: 156.38 | J47: 160.77 | K47: 152 | L47: 144.2 | M47: 3.75702
A48: 38 | B48: ASTRAZEN | C48: 3457.85 | D48: 3483.97 | E48: 3413.88 | F48: 3369.92 | G48: 3299.83 | H48: 3527.93 | I48: 3598.02 | J48: 3641.98 | K48: 3554.05 | L48: 3440 | M48: 0.53732
A49: 39 | B49: ASTRAL | C49: 2067 | D49: 2077.95 | E49: 2030.90 | F49: 1994.80 | G49: 1947.75 | H49: 2114.05 | I49: 2161.10 | J49: 2197.20 | K49: 2125 | L49: 2041.85 | M49: 4.19846
A50: 40 | B50: ATUL | C50: 6557.15 | D50: 6534.05 | E50: 6434.10 | F50: 6311.05 | G50: 6211.10 | H50: 6657.10 | I50: 6757.05 | J50: 6880.10 | K50: 6634 | L50: 6411 | M50: 0.20632
A51: 41 | B51: AUROPHARMA | C51: 853.6 | D51: 851.10 | E51: 839.50 | F51: 825.40 | G51: 813.80 | H51: 865.20 | I51: 876.80 | J51: 890.90 | K51: 862.7 | L51: 837 | M51: 30.21328
A52: 42 | B52: AVANTIFEED | C52: 482.75 | D52: 483.47 | E52: 479.28 | F52: 475.82 | G52: 471.63 | H52: 486.93 | I52: 491.12 | J52: 494.58 | K52: 487.65 | L52: 480 | M52: 1.34987
A53: 43 | B53: DMART | C53: 3151.95 | D53: 3104.42 | E53: 3034.83 | F53: 2917.72 | G53: 2848.13 | H53: 3221.53 | I53: 3291.12 | J53: 3408.23 | K53: 3174 | L53: 2987.3 | M53: 6.05901
A54: 44 | B54: AXISBANK | C54: 715.95 | D54: 721.17 | E54: 707.38 | F54: 698.82 | G54: 685.03 | H54: 729.73 | I54: 743.52 | J54: 752.08 | K54: 734.95 | L54: 712.6 | M54: 168.04763
A55: 45 | B55: BASF | C55: 1996.85 | D55: 1998.90 | E55: 1958.80 | F55: 1920.75 | G55: 1880.65 | H55: 2036.95 | I55: 2077.05 | J55: 2115.10 | K55: 2039 | L55: 1960.85 | M55: 0.34939
A56: 46 | B56: BEML | C56: 971.95 | D56: 968.07 | E56: 954.13 | F56: 936.32 | G56: 922.38 | H56: 985.88 | I56: 999.82 | J56: 1017.63 | K56: 982 | L56: 950.25 | M56: 3.83588
A57: 47 | B57: BSE | C57: 572.15 | D57: 575.47 | E57: 567.68 | F57: 563.22 | G57: 555.43 | H57: 579.93 | I57: 587.72 | J57: 592.18 | K57: 583.25 | L57: 571 | M57: 4.09784
A58: 48 | B58: BAJAJ-AUTO | C58: 3912.25 | D58: 3933.72 | E58: 3868.73 | F58: 3825.22 | G58: 3760.23 | H58: 3977.23 | I58: 4042.22 | J58: 4085.73 | K58: 3998.7 | L58: 3890.2 | M58: 8.02871
A59: 49 | B59: BAJAJCON | C59: 246.45 | D59: 248.15 | E59: 242.30 | F59: 238.15 | G59: 232.30 | H59: 252.30 | I59: 258.15 | J59: 262.30 | K59: 254 | L59: 244 | M59: 8.01366
A60: 50 | B60: BAJAJELEC | C60: 967.85 | D60: 963.58 | E60: 937.32 | F60: 906.78 | G60: 880.52 | H60: 994.12 | I60: 1020.38 | J60: 1050.92 | K60: 989.85 | L60: 933.05 | M60: 4.74554
A61: 51 | B61: BAJFINANCE | C61: 5383.7 | D61: 5412.78 | E61: 5320.92 | F61: 5258.13 | G61: 5166.27 | H61: 5475.57 | I61: 5567.43 | J61: 5630.22 | K61: 5504.65 | L61: 5350 | M61: 21.90245
A62: 52 | B62: BAJAJFINSV | C62: 10008.65 | D62: 10044.27 | E62: 9893.53 | F62: 9778.42 | G62: 9627.68 | H62: 10159.38 | I62: 10310.12 | J62: 10425.23 | K62: 10195 | L62: 9929.15 | M62: 3.4261
A63: 53 | B63: BAJAJHLDNG | C63: 3651.5 | D63: 3632.35 | E63: 3591.60 | F63: 3531.70 | G63: 3490.95 | H63: 3692.25 | I63: 3733.00 | J63: 3792.90 | K63: 3673.1 | L63: 3572.45 | M63: 0.38894
A64: 54 | B64: BALKRISIND | C64: 1590.7 | D64: 1568.12 | E64: 1539.23 | F64: 1487.77 | G64: 1458.88 | H64: 1619.58 | I64: 1648.47 | J64: 1699.93 | K64: 1597 | L64: 1516.65 | M64: 11.43003
A65: 55 | B65: BALMLAWRIE | C65: 114.45 | D65: 114.75 | E65: 113.70 | F65: 112.95 | G65: 111.90 | H65: 115.50 | I65: 116.55 | J65: 117.30 | K65: 115.8 | L65: 114 | M65: 1.41847
A66: 56 | B66: BALRAMCHIN | C66: 179.4 | D66: 176.67 | E66: 171.33 | F66: 163.27 | G66: 157.93 | H66: 184.73 | I66: 190.07 | J66: 198.13 | K66: 182 | L66: 168.6 | M66: 30.93708
A67: 57 | B67: BANDHANBNK | C67: 325.3 | D67: 326.22 | E67: 321.73 | F67: 318.17 | G67: 313.68 | H67: 329.78 | I67: 334.27 | J67: 337.83 | K67: 330.7 | L67: 322.65 | M67: 53.97776
A68: 58 | B68: BANKBARODA | C68: 86.85 | D68: 88.17 | E68: 84.73 | F68: 82.62 | G68: 79.18 | H68: 90.28 | I68: 93.72 | J68: 95.83 | K68: 91.6 | L68: 86.05 | M68: 685.92567
A69: 59 | B69: BANKINDIA | C69: 83.55 | D69: 84.83 | E69: 81.37 | F69: 79.18 | G69: 75.72 | H69: 87.02 | I69: 90.48 | J69: 92.67 | K69: 88.3 | L69: 82.65 | M69: 140.36172
A70: 60 | B70: MAHABANK | C70: 21.35 | D70: 21.68 | E70: 20.17 | F70: 18.98 | G70: 17.47 | H70: 22.87 | I70: 24.38 | J70: 25.57 | K70: 23.2 | L70: 20.5 | M70: 259.82613
A71: 61 | B71: BATAINDIA | C71: 1479 | D71: 1469.67 | E71: 1449.33 | F71: 1419.67 | G71: 1399.33 | H71: 1499.33 | I71: 1519.67 | J71: 1549.33 | K71: 1490 | L71: 1440 | M71: 7.83425
A72: 62 | B72: BAYERCROP | C72: 5058.15 | D72: 5082.60 | E72: 5000.20 | F72: 4942.25 | G72: 4859.85 | H72: 5140.55 | I72: 5222.95 | J72: 5280.90 | K72: 5165 | L72: 5024.65 | M72: 0.22714
A73: 63 | B73: BERGEPAINT | C73: 721.7 | D73: 723.05 | E73: 709.40 | F73: 697.10 | G73: 683.45 | H73: 735.35 | I73: 749.00 | J73: 761.30 | K73: 736.7 | L73: 710.75 | M73: 9.44425
A74: 64 | B74: BDL | C74: 345.3 | D74: 347.67 | E74: 340.33 | F74: 335.37 | G74: 328.03 | H74: 352.63 | I74: 359.97 | J74: 364.93 | K74: 355 | L74: 342.7 | M74: 3.40918
A75: 65 | B75: BEL | C75: 134.2 | D75: 133.35 | E75: 131.10 | F75: 128.00 | G75: 125.75 | H75: 136.45 | I75: 138.70 | J75: 141.80 | K75: 135.6 | L75: 130.25 | M75: 107.06432
A76: 66 | B76: BHARATFORG | C76: 608.55 | D76: 605.83 | E76: 591.67 | F76: 574.78 | G76: 560.62 | H76: 622.72 | I76: 636.88 | J76: 653.77 | K76: 620 | L76: 588.95 | M76: 53.35514
A77: 67 | B77: BHEL | C77: 40.7 | D77: 40.55 | E77: 39.65 | F77: 38.60 | G77: 37.70 | H77: 41.60 | I77: 42.50 | J77: 43.55 | K77: 41.45 | L77: 39.5 | M77: 430.31158
A78: 68 | B78: BPCL | C78: 435.25 | D78: 434.58 | E78: 426.47 | F78: 417.68 | G78: 409.57 | H78: 443.37 | I78: 451.48 | J78: 460.27 | K78: 442.7 | L78: 425.8 | M78: 143.97828
A79: 69 | B79: BHARATRAS | C79: 9798.3 | D79: 9791.95 | E79: 9754.90 | F79: 9711.50 | G79: 9674.45 | H79: 9835.35 | I79: 9872.40 | J79: 9915.80 | K79: 9829 | L79: 9748.55 | M79: 0.02245
A80: 70 | B80: BHARTIARTL | C80: 565.55 | D80: 568.85 | E80: 560.70 | F80: 555.85 | G80: 547.70 | H80: 573.70 | I80: 581.85 | J80: 586.70 | K80: 577 | L80: 564 | M80: 233.26447
A81: 71 | B81: BIOCON | C81: 385.35 | D81: 390.07 | E81: 379.38 | F81: 373.42 | G81: 362.73 | H81: 396.03 | I81: 406.72 | J81: 412.68 | K81: 400.75 | L81: 384.1 | M81: 91.03379
A82: 72 | B82: BIRLACORPN | C82: 861.6 | D82: 855.63 | E82: 844.82 | F82: 828.03 | G82: 817.22 | H82: 872.42 | I82: 883.23 | J82: 900.02 | K82: 866.45 | L82: 838.85 | M82: 0.95508
A83: 73 | B83: BSOFT | C83: 235.45 | D83: 234.13 | E83: 228.32 | F83: 221.18 | G83: 215.37 | H83: 241.27 | I83: 247.08 | J83: 254.22 | K83: 239.95 | L83: 227 | M83: 13.33126
A84: 74 | B84: BLISSGVS | C84: 172.15 | D84: 173.83 | E84: 169.82 | F84: 167.48 | G84: 163.47 | H84: 176.17 | I84: 180.18 | J84: 182.52 | K84: 177.85 | L84: 171.5 | M84: 6.17789
A85: 75 | B85: BLUEDART | C85: 4582.15 | D85: 4594.05 | E85: 4489.10 | F85: 4396.05 | G85: 4291.10 | H85: 4687.10 | I85: 4792.05 | J85: 4885.10 | K85: 4699 | L85: 4501 | M85: 0.19483
A86: 76 | B86: BLUESTARCO | C86: 832.8 | D86: 826.97 | E86: 812.18 | F86: 791.57 | G86: 776.78 | H86: 847.58 | I86: 862.37 | J86: 882.98 | K86: 841.75 | L86: 806.35 | M86: 1.15331
A87: 77 | B87: BBTC | C87: 1152.55 | D87: 1160.42 | E87: 1142.13 | F87: 1131.72 | G87: 1113.43 | H87: 1170.83 | I87: 1189.12 | J87: 1199.53 | K87: 1178.7 | L87: 1150 | M87: 0.42427
A88: 78 | B88: BOMDYEING | C88: 73.9 | D88: 73.88 | E88: 71.12 | F88: 68.33 | G88: 65.57 | H88: 76.67 | I88: 79.43 | J88: 82.22 | K88: 76.65 | L88: 71.1 | M88: 31.97549
A89: 79 | B89: BOSCHLTD | C89: 14742.6 | D89: 14830.92 | E89: 14563.83 | F89: 14385.07 | G89: 14117.98 | H89: 15009.68 | I89: 15276.77 | J89: 15455.53 | K89: 15098 | L89: 14652.15 | M89: 0.56624
A90: 80 | B90: BRIGADE | C90: 289.25 | D90: 288.43 | E90: 283.47 | F90: 277.68 | G90: 272.72 | H90: 294.22 | I90: 299.18 | J90: 304.97 | K90: 293.4 | L90: 282.65 | M90: 4.31994
A91: 81 | B91: BRITANNIA | C91: 3335.95 | D91: 3343.08 | E91: 3318.17 | F91: 3300.38 | G91: 3275.47 | H91: 3360.87 | I91: 3385.78 | J91: 3403.57 | K91: 3368 | L91: 3325.3 | M91: 4.84686
A92: 82 | B92: CARERATING | C92: 476.45 | D92: 477.98 | E92: 472.07 | F92: 467.68 | G92: 461.77 | H92: 482.37 | I92: 488.28 | J92: 492.67 | K92: 483.9 | L92: 473.6 | M92: 0.63639
A93: 83 | B93: CCL | C93: 234.1 | D93: 233.28 | E93: 229.57 | F93: 225.03 | G93: 221.32 | H93: 237.82 | I93: 241.53 | J93: 246.07 | K93: 237 | L93: 228.75 | M93: 2.82844
A94: 84 | B94: CESC | C94: 603.45 | D94: 603.42 | E94: 590.03 | F94: 576.62 | G94: 563.23 | H94: 616.83 | I94: 630.22 | J94: 643.63 | K94: 616.8 | L94: 590 | M94: 5.61163
A95: 85 | B95: CRISIL | C95: 1922.05 | D95: 1920.42 | E95: 1902.73 | F95: 1883.42 | G95: 1865.73 | H95: 1939.73 | I95: 1957.42 | J95: 1976.73 | K95: 1938.1 | L95: 1901.1 | M95: 0.18224
A96: 86 | B96: CSBBANK | C96: 225 | D96: 225.17 | E96: 220.33 | F96: 215.67 | G96: 210.83 | H96: 229.83 | I96: 234.67 | J96: 239.33 | K96: 230 | L96: 220.5 | M96: 2.12514
A97: 87 | B97: CADILAHC | C97: 430.5 | D97: 430.10 | E97: 421.40 | F97: 412.30 | G97: 403.60 | H97: 439.20 | I97: 447.90 | J97: 457.00 | K97: 438.8 | L97: 421 | M97: 38.53845
A98: 88 | B98: CANFINHOME | C98: 485.85 | D98: 491.33 | E98: 478.82 | F98: 471.78 | G98: 459.27 | H98: 498.37 | I98: 510.88 | J98: 517.92 | K98: 503.85 | L98: 484.3 | M98: 4.44424
A99: 89 | B99: CANBK | C99: 159.3 | D99: 158.33 | E99: 155.97 | F99: 152.63 | G99: 150.27 | H99: 161.67 | I99: 164.03 | J99: 167.37 | K99: 160.7 | L99: 155 | M99: 202.24578
A100: 90 | B100: CAPLIPOINT | C100: 469.1 | D100: 469.47 | E100: 460.28 | F100: 451.47 | G100: 442.28 | H100: 478.28 | I100: 487.47 | J100: 496.28 | K100: 478.65 | L100: 460.65 | M100: 1.91598
A101: 91 | B101: CGCL | C101: 342.75 | D101: 348.35 | E101: 332.15 | F101: 321.55 | G101: 305.35 | H101: 358.95 | I101: 375.15 | J101: 385.75 | K101: 364.55 | L101: 337.75 | M101: 2.84344
A102: 92 | B102: CARBORUNIV | C102: 483 | D102: 489.57 | E102: 469.68 | F102: 456.37 | G102: 436.48 | H102: 502.88 | I102: 522.77 | J102: 536.08 | K102: 509.45 | L102: 476.25 | M102: 4.02822
A103: 93 | B103: CASTROLIND | C103: 123.9 | D103: 124.65 | E103: 122.45 | F103: 121.00 | G103: 118.80 | H103: 126.10 | I103: 128.30 | J103: 129.75 | K103: 126.85 | L103: 123.2 | M103: 16.93781
A104: 94 | B104: CEATLTD | C104: 1528.95 | D104: 1544.42 | E104: 1479.58 | F104: 1430.22 | G104: 1365.38 | H104: 1593.78 | I104: 1658.62 | J104: 1707.98 | K104: 1609.25 | L104: 1495.05 | M104: 2.65598
A105: 95 | B105: CENTRALBK | C105: 17.9 | D105: 18.28 | E105: 17.37 | F105: 16.83 | G105: 15.92 | H105: 18.82 | I105: 19.73 | J105: 20.27 | K105: 19.2 | L105: 17.75 | M105: 588.82426
A106: 96 | B106: CDSL | C106: 605.25 | D106: 607.08 | E106: 595.17 | F106: 585.08 | G106: 573.17 | H106: 617.17 | I106: 629.08 | J106: 639.17 | K106: 619 | L106: 597 | M106: 28.79227
A107: 97 | B107: CENTURYPLY | C107: 299.35 | D107: 301.62 | E107: 294.23 | F107: 289.12 | G107: 281.73 | H107: 306.73 | I107: 314.12 | J107: 319.23 | K107: 309 | L107: 296.5 | M107: 1.45831
A108: 98 | B108: CENTURYTEX | C108: 487.35 | D108: 487.20 | E108: 481.15 | F108: 474.95 | G108: 468.90 | H108: 493.40 | I108: 499.45 | J108: 505.65 | K108: 493.25 | L108: 481 | M108: 4.99443
A109: 99 | B109: CERA | C109: 3937.3 | D109: 3918.67 | E109: 3846.28 | F109: 3755.27 | G109: 3682.88 | H109: 4009.68 | I109: 4082.07 | J109: 4173.08 | K109: 3991.05 | L109: 3827.65 | M109: 0.08749
A110: 100 | B110: CHALET | C110: 167.1 | D110: 168.15 | E110: 165.50 | F110: 163.90 | G110: 161.25 | H110: 169.75 | I110: 172.40 | J110: 174.00 | K110: 170.8 | L110: 166.55 | M110: 8.30611
A111: 101 | B111: CHAMBLFERT | C111: 229.4 | D111: 231.12 | E111: 226.28 | F111: 223.17 | G111: 218.33 | H111: 234.23 | I111: 239.07 | J111: 242.18 | K111: 235.95 | L111: 228 | M111: 4.48224
A112: 102 | B112: CHENNPETRO | C112: 96.3 | D112: 96.80 | E112: 94.80 | F112: 93.30 | G112: 91.30 | H112: 98.30 | I112: 100.30 | J112: 101.80 | K112: 98.8 | L112: 95.3 | M112: 7.96702
A113: 103 | B113: CHOLAHLDNG | C113: 599 | D113: 595.55 | E113: 590.10 | F113: 581.20 | G113: 575.75 | H113: 604.45 | I113: 609.90 | J113: 618.80 | K113: 601 | L113: 586.65 | M113: 0.2901
A114: 104 | B114: CHOLAFIN | C114: 517.8 | D114: 522.15 | E114: 506.30 | F114: 494.80 | G114: 478.95 | H114: 533.65 | I114: 549.50 | J114: 561.00 | K114: 538 | L114: 510.65 | M114: 55.12994
A115: 105 | B115: CIPLA | C115: 790.95 | D115: 794.17 | E115: 785.18 | F115: 779.42 | G115: 770.43 | H115: 799.93 | I115: 808.92 | J115: 814.68 | K115: 803.15 | L115: 788.4 | M115: 32.64477
A116: 106 | B116: CUB | C116: 161.15 | D116: 161.70 | E116: 159.45 | F116: 157.75 | G116: 155.50 | H116: 163.40 | I116: 165.65 | J116: 167.35 | K116: 163.95 | L116: 160 | M116: 17.98376
A117: 107 | B117: COALINDIA | C117: 136.9 | D117: 137.23 | E117: 135.87 | F117: 134.83 | G117: 133.47 | H117: 138.27 | I117: 139.63 | J117: 140.67 | K117: 138.6 | L117: 136.2 | M117: 191.78437
A118: 108 | B118: COCHINSHIP | C118: 380.4 | D118: 374.82 | E118: 355.63 | F118: 330.87 | G118: 311.68 | H118: 399.58 | I118: 418.77 | J118: 443.53 | K118: 394 | L118: 350.05 | M118: 39.62052
A119: 109 | B119: COFORGE | C119: 2465.35 | D119: 2480.12 | E119: 2435.23 | F119: 2405.12 | G119: 2360.23 | H119: 2510.23 | I119: 2555.12 | J119: 2585.23 | K119: 2525 | L119: 2450 | M119: 1.79812
A120: 110 | B120: COLPAL | C120: 1554.85 | D120: 1557.28 | E120: 1541.57 | F120: 1528.28 | G120: 1512.57 | H120: 1570.57 | I120: 1586.28 | J120: 1599.57 | K120: 1573 | L120: 1544 | M120: 4.78816
A121: 111 | B121: CONCOR | C121: 557.3 | D121: 558.82 | E121: 546.63 | F121: 535.97 | G121: 523.78 | H121: 569.48 | I121: 581.67 | J121: 592.33 | K121: 571 | L121: 548.15 | M121: 31.49822
A122: 112 | B122: COROMANDEL | C122: 759 | D122: 754.93 | E122: 747.57 | F122: 736.13 | G122: 728.77 | H122: 766.37 | I122: 773.73 | J122: 785.17 | K122: 762.3 | L122: 743.5 | M122: 2.80077
A123: 113 | B123: CREDITACC | C123: 689.65 | D123: 680.12 | E123: 666.58 | F123: 643.52 | G123: 629.98 | H123: 703.18 | I123: 716.72 | J123: 739.78 | K123: 693.65 | L123: 657.05 | M123: 1.94849
A124: 114 | B124: CROMPTON | C124: 382.2 | D124: 383.83 | E124: 376.72 | F124: 371.23 | G124: 364.12 | H124: 389.32 | I124: 396.43 | J124: 401.92 | K124: 390.95 | L124: 378.35 | M124: 12.01021
A125: 115 | B125: CUMMINSIND | C125: 801.5 | D125: 791.75 | E125: 774.75 | F125: 748.00 | G125: 731.00 | H125: 818.50 | I125: 835.50 | J125: 862.25 | K125: 808.75 | L125: 765 | M125: 24.16382
A126: 116 | B126: CYIENT | C126: 643.25 | D126: 647.10 | E126: 630.25 | F126: 617.25 | G126: 600.40 | H126: 660.10 | I126: 676.95 | J126: 689.95 | K126: 663.95 | L126: 634.1 | M126: 14.0258
A127: 117 | B127: DBCORP | C127: 92 | D127: 92.48 | E127: 91.07 | F127: 90.13 | G127: 88.72 | H127: 93.42 | I127: 94.83 | J127: 95.77 | K127: 93.9 | L127: 91.55 | M127: 3.96004
A128: 118 | B128: DCBBANK | C128: 111.65 | D128: 111.65 | E128: 110.55 | F128: 109.45 | G128: 108.35 | H128: 112.75 | I128: 113.85 | J128: 114.95 | K128: 112.75 | L128: 110.55 | M128: 8.75306
A129: 119 | B129: DCMSHRIRAM | C129: 472.15 | D129: 467.28 | E129: 459.87 | F129: 447.58 | G129: 440.17 | H129: 479.57 | I129: 486.98 | J129: 499.27 | K129: 474.7 | L129: 455 | M129: 1.42552
A130: 120 | B130: DLF | C130: 305.4 | D130: 304.10 | E130: 297.50 | F130: 289.60 | G130: 283.00 | H130: 312.00 | I130: 318.60 | J130: 326.50 | K130: 310.7 | L130: 296.2 | M130: 215.74486
A131: 121 | B131: DABUR | C131: 500.05 | D131: 501.43 | E131: 497.37 | F131: 494.68 | G131: 490.62 | H131: 504.12 | I131: 508.18 | J131: 510.87 | K131: 505.5 | L131: 498.75 | M131: 30.11786
A132: 122 | B132: DALBHARAT | C132: 1448.35 | D132: 1457.98 | E132: 1421.47 | F132: 1394.58 | G132: 1358.07 | H132: 1484.87 | I132: 1521.38 | J132: 1548.27 | K132: 1494.5 | L132: 1431.1 | M132: 1.00953
A133: 123 | B133: DEEPAKNTR | C133: 1286.55 | D133: 1281.90 | E133: 1260.80 | F133: 1235.05 | G133: 1213.95 | H133: 1307.65 | I133: 1328.75 | J133: 1354.50 | K133: 1303 | L133: 1256.15 | M133: 3.8357
A134: 124 | B134: DELTACORP | C134: 146.9 | D134: 147.12 | E134: 145.03 | F134: 143.17 | G134: 141.08 | H134: 148.98 | I134: 151.07 | J134: 152.93 | K134: 149.2 | L134: 145.25 | M134: 18.20423
A135: 125 | B135: DHANI | C135: 339.35 | D135: 343.87 | E135: 331.08 | F135: 322.82 | G135: 310.03 | H135: 352.13 | I135: 364.92 | J135: 373.18 | K135: 356.65 | L135: 335.6 | M135: 6.59388
A136: 126 | B136: DHANUKA | C136: 737.05 | D136: 739.35 | E136: 728.70 | F136: 720.35 | G136: 709.70 | H136: 747.70 | I136: 758.35 | J136: 766.70 | K136: 750 | L136: 731 | M136: 0.27068
A137: 127 | B137: DBL | C137: 630.1 | D137: 632.93 | E137: 622.17 | F137: 614.23 | G137: 603.47 | H137: 640.87 | I137: 651.63 | J137: 659.57 | K137: 643.7 | L137: 625 | M137: 5.05641
A138: 128 | B138: DISHTV | C138: 11.35 | D138: 11.38 | E138: 11.22 | F138: 11.08 | G138: 10.92 | H138: 11.52 | I138: 11.68 | J138: 11.82 | K138: 11.55 | L138: 11.25 | M138: 39.99778
A139: 129 | B139: DCAL | C139: 120.7 | D139: 120.73 | E139: 118.97 | F139: 117.23 | G139: 115.47 | H139: 122.47 | I139: 124.23 | J139: 125.97 | K139: 122.5 | L139: 119 | M139: 3.14535
A140: 130 | B140: DIVISLAB | C140: 3448.25 | D140: 3469.37 | E140: 3419.73 | F140: 3391.22 | G140: 3341.58 | H140: 3497.88 | I140: 3547.52 | J140: 3576.03 | K140: 3519 | L140: 3440.85 | M140: 5.11326
A141: 131 | B141: DIXON | C141: 19244.35 | D141: 19066.45 | E141: 18657.90 | F141: 18071.45 | G141: 17662.90 | H141: 19652.90 | I141: 20061.45 | J141: 20647.90 | K141: 19475 | L141: 18480 | M141: 0.68709
A142: 132 | B142: LALPATHLAB | C142: 2285.6 | D142: 2338.20 | E142: 2227.40 | F142: 2169.20 | G142: 2058.40 | H142: 2396.40 | I142: 2507.20 | J142: 2565.40 | K142: 2449 | L142: 2280 | M142: 4.70027
A143: 133 | B143: DRREDDY | C143: 4495.15 | D143: 4483.32 | E143: 4432.33 | F143: 4369.52 | G143: 4318.53 | H143: 4546.13 | I143: 4597.12 | J143: 4659.93 | K143: 4534.3 | L143: 4420.5 | M143: 10.63418
A144: 134 | B144: EIDPARRY | C144: 320.35 | D144: 319.48 | E144: 314.47 | F144: 308.58 | G144: 303.57 | H144: 325.37 | I144: 330.38 | J144: 336.27 | K144: 324.5 | L144: 313.6 | M144: 4.82954
A145: 135 | B145: EIHOTEL | C145: 96.95 | D145: 97.12 | E145: 96.18 | F145: 95.42 | G145: 94.48 | H145: 97.88 | I145: 98.82 | J145: 99.58 | K145: 98.05 | L145: 96.35 | M145: 7.13972
A146: 136 | B146: EPL | C146: 215.15 | D146: 217.95 | E146: 211.20 | F146: 207.25 | G146: 200.50 | H146: 221.90 | I146: 228.65 | J146: 232.60 | K146: 224.7 | L146: 214 | M146: 5.98514
A147: 137 | B147: ESABINDIA | C147: 1940.95 | D147: 1963.32 | E147: 1908.63 | F147: 1876.32 | G147: 1821.63 | H147: 1995.63 | I147: 2050.32 | J147: 2082.63 | K147: 2018 | L147: 1931 | M147: 0.11196
A148: 138 | B148: EDELWEISS | C148: 62.9 | D148: 62.88 | E148: 62.32 | F148: 61.73 | G148: 61.17 | H148: 63.47 | I148: 64.03 | J148: 64.62 | K148: 63.45 | L148: 62.3 | M148: 16.26812
A149: 139 | B149: EICHERMOT | C149: 2514.7 | D149: 2507.12 | E149: 2464.43 | F149: 2414.17 | G149: 2371.48 | H149: 2557.38 | I149: 2600.07 | J149: 2650.33 | K149: 2549.8 | L149: 2456.85 | M149: 18.21712
A150: 140 | B150: ELGIEQUIP | C150: 162.45 | D150: 161.90 | E150: 160.20 | F150: 157.95 | G150: 156.25 | H150: 164.15 | I150: 165.85 | J150: 168.10 | K150: 163.6 | L150: 159.65 | M150: 0.57529
A151: 141 | B151: EMAMILTD | C151: 470.05 | D151: 473.35 | E151: 464.50 | F151: 458.95 | G151: 450.10 | H151: 478.90 | I151: 487.75 | J151: 493.30 | K151: 482.2 | L151: 467.8 | M151: 4.16634
A152: 142 | B152: ENDURANCE | C152: 1364.8 | D152: 1357.93 | E152: 1331.87 | F152: 1298.93 | G152: 1272.87 | H152: 1390.87 | I152: 1416.93 | J152: 1449.87 | K152: 1384 | L152: 1325 | M152: 1.38294
A153: 143 | B153: ENGINERSIN | C153: 72.05 | D153: 72.42 | E153: 71.53 | F153: 71.02 | G153: 70.13 | H153: 72.93 | I153: 73.82 | J153: 74.33 | K153: 73.3 | L153: 71.9 | M153: 25.3731
A154: 144 | B154: EQUITAS | C154: 88.2 | D154: 87.43 | E154: 86.22 | F154: 84.23 | G154: 83.02 | H154: 89.42 | I154: 90.63 | J154: 92.62 | K154: 88.65 | L154: 85.45 | M154: 11.29522
A155: 145 | B155: ERIS | C155: 584.55 | D155: 585.17 | E155: 582.03 | F155: 579.52 | G155: 576.38 | H155: 587.68 | I155: 590.82 | J155: 593.33 | K155: 588.3 | L155: 582.65 | M155: 1.93802
A156: 146 | B156: ESCORTS | C156: 1296.85 | D156: 1283.50 | E156: 1261.00 | F156: 1225.15 | G156: 1202.65 | H156: 1319.35 | I156: 1341.85 | J156: 1377.70 | K156: 1306 | L156: 1247.65 | M156: 16.82554
A157: 147 | B157: EXIDEIND | C157: 200.6 | D157: 200.97 | E157: 198.03 | F157: 195.47 | G157: 192.53 | H157: 203.53 | I157: 206.47 | J157: 209.03 | K157: 203.9 | L157: 198.4 | M157: 41.85233
A158: 148 | B158: FDC | C158: 284.15 | D158: 285.12 | E158: 278.48 | F158: 272.82 | G158: 266.18 | H158: 290.78 | I158: 297.42 | J158: 303.08 | K158: 291.75 | L158: 279.45 | M158: 1.62771
A159: 149 | B159: FEDERALBNK | C159: 81.25 | D159: 81.18 | E159: 80.07 | F159: 78.88 | G159: 77.77 | H159: 82.37 | I159: 83.48 | J159: 84.67 | K159: 82.3 | L159: 80 | M159: 211.66182
A160: 150 | B160: FINEORG | C160: 2362.8 | D160: 2368.90 | E160: 2347.90 | F160: 2333.00 | G160: 2312.00 | H160: 2383.80 | I160: 2404.80 | J160: 2419.70 | K160: 2389.9 | L160: 2354 | M160: 0.11958
A161: 151 | B161: FINCABLES | C161: 382 | D161: 384.62 | E161: 377.43 | F161: 372.87 | G161: 365.68 | H161: 389.18 | I161: 396.37 | J161: 400.93 | K161: 391.8 | L161: 380.05 | M161: 1.57361
A162: 152 | B162: FINPIPE | C162: 605.05 | D162: 614.35 | E162: 590.70 | F162: 576.35 | G162: 552.70 | H162: 628.70 | I162: 652.35 | J162: 666.70 | K162: 638 | L162: 600 | M162: 2.48912
A163: 153 | B163: FSL | C163: 104.45 | D163: 104.77 | E163: 102.73 | F163: 101.02 | G163: 98.98 | H163: 106.48 | I163: 108.52 | J163: 110.23 | K163: 106.8 | L163: 103.05 | M163: 128.34109
A164: 154 | B164: FORTIS | C164: 162.55 | D164: 162.28 | E164: 159.62 | F164: 156.68 | G164: 154.02 | H164: 165.22 | I164: 167.88 | J164: 170.82 | K164: 164.95 | L164: 159.35 | M164: 28.24089
A165: 155 | B165: FCONSUMER | C165: 7.85 | D165: 7.88 | E165: 7.77 | F165: 7.68 | G165: 7.57 | H165: 7.97 | I165: 8.08 | J165: 8.17 | K165: 8 | L165: 7.8 | M165: 31.28104
A166: 156 | B166: FRETAIL | C166: 69.4 | D166: 70.00 | E166: 68.00 | F166: 66.60 | G166: 64.60 | H166: 71.40 | I166: 73.40 | J166: 74.80 | K166: 72 | L166: 68.6 | M166: 52.56673
A167: 157 | B167: GAIL | C167: 147.35 | D167: 146.40 | E167: 144.05 | F167: 140.75 | G167: 138.40 | H167: 149.70 | I167: 152.05 | J167: 155.35 | K167: 148.75 | L167: 143.1 | M167: 302.52701
A168: 158 | B168: GEPIL | C168: 276.35 | D168: 276.92 | E168: 274.13 | F168: 271.92 | G168: 269.13 | H168: 279.13 | I168: 281.92 | J168: 284.13 | K168: 279.7 | L168: 274.7 | M168: 0.47683
A169: 159 | B169: GHCL | C169: 218.65 | D169: 218.20 | E169: 215.65 | F169: 212.65 | G169: 210.10 | H169: 221.20 | I169: 223.75 | J169: 226.75 | K169: 220.75 | L169: 215.2 | M169: 2.1872
A170: 160 | B170: GMMPFAUDLR | C170: 4244 | D170: 4196.33 | E170: 4087.67 | F170: 3931.33 | G170: 3822.67 | H170: 4352.67 | I170: 4461.33 | J170: 4617.67 | K170: 4305 | L170: 4040 | M170: 1.28444
A171: 161 | B171: GMRINFRA | C171: 25.4 | D171: 25.33 | E171: 24.92 | F171: 24.43 | G171: 24.02 | H171: 25.82 | I171: 26.23 | J171: 26.72 | K171: 25.75 | L171: 24.85 | M171: 119.23761
A172: 162 | B172: GALAXYSURF | C172: 2164.25 | D172: 2173.08 | E172: 2131.17 | F172: 2098.08 | G172: 2056.17 | H172: 2206.17 | I172: 2248.08 | J172: 2281.17 | K172: 2215 | L172: 2140 | M172: 0.27419
A173: 163 | B173: GRSE | C173: 197.95 | D173: 199.28 | E173: 195.67 | F173: 193.38 | G173: 189.77 | H173: 201.57 | I173: 205.18 | J173: 207.47 | K173: 202.9 | L173: 197 | M173: 1.26481
A174: 164 | B174: GARFIBRES | C174: 2361.5 | D174: 2389.92 | E174: 2317.48 | F174: 2273.47 | G174: 2201.03 | H174: 2433.93 | I174: 2506.37 | J174: 2550.38 | K174: 2462.35 | L174: 2345.9 | M174: 0.18918
A175: 165 | B175: GICRE | C175: 196.35 | D175: 190.98 | E175: 178.17 | F175: 159.98 | G175: 147.17 | H175: 209.17 | I175: 221.98 | J175: 240.17 | K175: 203.8 | L175: 172.8 | M175: 60.82179
A176: 166 | B176: GILLETTE | C176: 5516.7 | D176: 5529.85 | E176: 5486.65 | F176: 5456.60 | G176: 5413.40 | H176: 5559.90 | I176: 5603.10 | J176: 5633.15 | K176: 5573.05 | L176: 5499.8 | M176: 0.0453
A177: 167 | B177: GLAXO | C177: 1453.55 | D177: 1460.85 | E177: 1437.70 | F177: 1421.85 | G177: 1398.70 | H177: 1476.70 | I177: 1499.85 | J177: 1515.70 | K177: 1484 | L177: 1445 | M177: 0.44699
A178: 168 | B178: GLENMARK | C178: 466.45 | D178: 467.88 | E178: 459.57 | F178: 452.68 | G178: 444.37 | H178: 474.77 | I178: 483.08 | J178: 489.97 | K178: 476.2 | L178: 461 | M178: 14.6819
A179: 169 | B179: GODFRYPHLP | C179: 911.4 | D179: 914.87 | E179: 905.33 | F179: 899.27 | G179: 889.73 | H179: 920.93 | I179: 930.47 | J179: 936.53 | K179: 924.4 | L179: 908.8 | M179: 0.28526
A180: 170 | B180: GODREJAGRO | C180: 483.35 | D180: 482.70 | E180: 477.05 | F180: 470.75 | G180: 465.10 | H180: 489.00 | I180: 494.65 | J180: 500.95 | K180: 488.35 | L180: 476.4 | M180: 1.272
A181: 171 | B181: GODREJCP | C181: 680.1 | D181: 686.78 | E181: 671.27 | F181: 662.43 | G181: 646.92 | H181: 695.62 | I181: 711.13 | J181: 719.97 | K181: 702.3 | L181: 677.95 | M181: 35.96099
A182: 172 | B182: GODREJIND | C182: 447.8 | D182: 443.32 | E182: 436.78 | F182: 425.77 | G182: 419.23 | H182: 454.33 | I182: 460.87 | J182: 471.88 | K182: 449.85 | L182: 432.3 | M182: 1.7537
A183: 173 | B183: GODREJPROP | C183: 1496.25 | D183: 1483.78 | E183: 1462.47 | F183: 1428.68 | G183: 1407.37 | H183: 1517.57 | I183: 1538.88 | J183: 1572.67 | K183: 1505.1 | L183: 1450 | M183: 15.90385
A184: 174 | B184: GRANULES | C184: 321.6 | D184: 321.23 | E184: 315.47 | F184: 309.33 | G184: 303.57 | H184: 327.37 | I184: 333.13 | J184: 339.27 | K184: 327 | L184: 315.1 | M184: 15.14625
A185: 175 | B185: GRAPHITE | C185: 474.55 | D185: 474.52 | E185: 461.03 | F185: 447.52 | G185: 434.03 | H185: 488.03 | I185: 501.52 | J185: 515.03 | K185: 488 | L185: 461 | M185: 11.42713
A186: 176 | B186: GRASIM | C186: 1231.5 | D186: 1234.33 | E186: 1218.77 | F186: 1206.03 | G186: 1190.47 | H186: 1247.07 | I186: 1262.63 | J186: 1275.37 | K186: 1249.9 | L186: 1221.6 | M186: 14.34663
A187: 177 | B187: GESHIP | C187: 281.25 | D187: 280.10 | E187: 271.70 | F187: 262.15 | G187: 253.75 | H187: 289.65 | I187: 298.05 | J187: 307.60 | K187: 288.5 | L187: 270.55 | M187: 8.61416
A188: 178 | B188: GREAVESCOT | C188: 119.4 | D188: 117.42 | E188: 112.33 | F188: 105.27 | G188: 100.18 | H188: 124.48 | I188: 129.57 | J188: 136.63 | K188: 122.5 | L188: 110.35 | M188: 84.65374
A189: 179 | B189: GRINDWELL | C189: 821.45 | D189: 827.98 | E189: 809.47 | F189: 797.48 | G189: 778.97 | H189: 839.97 | I189: 858.48 | J189: 870.47 | K189: 846.5 | L189: 816 | M189: 0.35387
A190: 180 | B190: GUJALKALI | C190: 315 | D190: 313.13 | E190: 306.57 | F190: 298.13 | G190: 291.57 | H190: 321.57 | I190: 328.13 | J190: 336.57 | K190: 319.7 | L190: 304.7 | M190: 2.66053
A191: 181 | B191: GAEL | C191: 125.4 | D191: 126.23 | E191: 122.47 | F191: 119.53 | G191: 115.77 | H191: 129.17 | I191: 132.93 | J191: 135.87 | K191: 130 | L191: 123.3 | M191: 1.84512
A192: 182 | B192: FLUOROCHEM | C192: 530.85 | D192: 532.08 | E192: 524.77 | F192: 518.68 | G192: 511.37 | H192: 538.17 | I192: 545.48 | J192: 551.57 | K192: 539.4 | L192: 526 | M192: 1.31661
A193: 183 | B193: GUJGASLTD | C193: 490.75 | D193: 491.33 | E193: 485.22 | F193: 479.68 | G193: 473.57 | H193: 496.87 | I193: 502.98 | J193: 508.52 | K193: 497.45 | L193: 485.8 | M193: 4.58757
A194: 184 | B194: GMDCLTD | C194: 58.8 | D194: 58.42 | E194: 56.43 | F194: 54.07 | G194: 52.08 | H194: 60.78 | I194: 62.77 | J194: 65.13 | K194: 60.4 | L194: 56.05 | M194: 49.04691
A195: 185 | B195: GNFC | C195: 252.1 | D195: 248.38 | E195: 242.02 | F195: 231.93 | G195: 225.57 | H195: 258.47 | I195: 264.83 | J195: 274.92 | K195: 254.75 | L195: 238.3 | M195: 41.41401
A196: 186 | B196: GPPL | C196: 97.6 | D196: 98.57 | E196: 95.13 | F196: 92.67 | G196: 89.23 | H196: 101.03 | I196: 104.47 | J196: 106.93 | K196: 102 | L196: 96.1 | M196: 22.98074
A197: 187 | B197: GSFC | C197: 78.25 | D197: 78.30 | E197: 77.10 | F197: 75.95 | G197: 74.75 | H197: 79.45 | I197: 80.65 | J197: 81.80 | K197: 79.5 | L197: 77.15 | M197: 12.74637
A198: 188 | B198: GSPL | C198: 247.8 | D198: 244.40 | E198: 236.85 | F198: 225.90 | G198: 218.35 | H198: 255.35 | I198: 262.90 | J198: 273.85 | K198: 251.95 | L198: 233.45 | M198: 15.14086
A199: 189 | B199: GULFOILLUB | C199: 712.9 | D199: 718.65 | E199: 704.40 | F199: 695.90 | G199: 681.65 | H199: 727.15 | I199: 741.40 | J199: 749.90 | K199: 732.9 | L199: 710.15 | M199: 0.06639
A200: 190 | B200: HEG | C200: 1436 | D200: 1453.33 | E200: 1407.67 | F200: 1379.33 | G200: 1333.67 | H200: 1481.67 | I200: 1527.33 | J200: 1555.67 | K200: 1499 | L200: 1425 | M200: 3.26328
A201: 191 | B201: HCLTECH | C201: 909.95 | D201: 915.50 | E201: 901.00 | F201: 892.05 | G201: 877.55 | H201: 924.45 | I201: 938.95 | J201: 947.90 | K201: 930 | L201: 906.55 | M201: 59.16942
A202: 192 | B202: HDFCAMC | C202: 2882.8 | D202: 2892.27 | E202: 2854.58 | F202: 2826.37 | G202: 2788.68 | H202: 2920.48 | I202: 2958.17 | J202: 2986.38 | K202: 2929.95 | L202: 2864.05 | M202: 1.45368
A203: 193 | B203: HDFCBANK | C203: 1529.15 | D203: 1536.50 | E203: 1515.30 | F203: 1501.45 | G203: 1480.25 | H203: 1550.35 | I203: 1571.55 | J203: 1585.40 | K203: 1557.7 | L203: 1522.65 | M203: 91.19953
A204: 194 | B204: HDFCLIFE | C204: 705.7 | D204: 702.90 | E204: 692.95 | F204: 680.20 | G204: 670.25 | H204: 715.65 | I204: 725.60 | J204: 738.35 | K204: 712.85 | L204: 690.15 | M204: 46.9357
A205: 195 | B205: HFCL | C205: 29.85 | D205: 29.85 | E205: 29.30 | F205: 28.75 | G205: 28.20 | H205: 30.40 | I205: 30.95 | J205: 31.50 | K205: 30.4 | L205: 29.3 | M205: 84.60883
A206: 196 | B206: HATHWAY | C206: 29.6 | D206: 29.70 | E206: 29.40 | F206: 29.20 | G206: 28.90 | H206: 29.90 | I206: 30.20 | J206: 30.40 | K206: 30 | L206: 29.5 | M206: 2.04764
... 321 more rows

Sheet Bulk Deals
E6: Back To Main Page
A7: Subject : | B7: BULK DEAL | D7: =Main!B10 -> 2021-02-24
A9: Date | B9: Scrip code | C9: Scrip Name | D9: Client Name | E9: Buy / Sell | F9: Quantity Traded | G9: Trade Price / Wt.Avg.trade price | H9: Exchange
A10: 2021-02-23 | B10: 539544 | C10: ABHIINFRA | D10: RAGHU VEMULAPALLI | E10: SELL | F10: 30,000 | G10: 2.08 | H10: BSE
A11: 2021-02-23 | B11: 539544 | C11: ABHIINFRA | D11: VISHNU MURTHY SHARVIRALA | E11: BUY | F11: 29,436 | G11: 2.08 | H11: BSE
A12: 2021-02-23 | B12: 540545 | C12: BGJL | D12: ADROIT FINANCIAL SERVICES PRIVATE LIMITED | E12: BUY | F12: 63,093 | G12: 80.6 | H12: BSE
A13: 2021-02-23 | B13: 540545 | C13: BGJL | D13: ADROIT FINANCIAL SERVICES PRIVATE LIMITED | E13: SELL | F13: 63,093 | G13: 80.19 | H13: BSE
A14: 2021-02-23 | B14: 540545 | C14: BGJL | D14: RATHOD MANOJ CHHAGANLAL HUF | E14: BUY | F14: 96,130 | G14: 80.26 | H14: BSE
A15: 2021-02-23 | B15: 540545 | C15: BGJL | D15: RATHOD MANOJ CHHAGANLAL HUF | E15: SELL | F15: 164,818 | G15: 79.84 | H15: BSE
A16: 2021-02-23 | B16: 540545 | C16: BGJL | D16: B M TRADERS | E16: BUY | F16: 145,363 | G16: 82.81 | H16: BSE
A17: 2021-02-23 | B17: 540545 | C17: BGJL | D17: B M TRADERS | E17: SELL | F17: 120,363 | G17: 79.74 | H17: BSE
A18: 2021-02-23 | B18: 540545 | C18: BGJL | D18: ELIXIR WEALTH MANAGEMENT PRIVATE LIMITED | E18: BUY | F18: 2 | G18: 83 | H18: BSE
A19: 2021-02-23 | B19: 540545 | C19: BGJL | D19: ELIXIR WEALTH MANAGEMENT PRIVATE LIMITED | E19: SELL | F19: 61,002 | G19: 81.1 | H19: BSE
A20: 2021-02-23 | B20: 540545 | C20: BGJL | D20: NIRMALABEN HASHMUKHBHAI VORA | E20: BUY | F20: 55,000 | G20: 80.12 | H20: BSE
A21: 2021-02-23 | B21: 540545 | C21: BGJL | D21: NIRMALABEN HASHMUKHBHAI VORA | E21: SELL | F21: 30,392 | G21: 83.3 | H21: BSE
A22: 2021-02-23 | B22: 526737 | C22: CORPOCO | D22: SUKANT MURLIDHAR DOLE | E22: BUY | F22: 82,000 | G22: 3.1 | H22: BSE
A23: 2021-02-23 | B23: 526737 | C23: CORPOCO | D23: PRAKASH PRIYA | E23: SELL | F23: 87,000 | G23: 3.1 | H23: BSE
A24: 2021-02-23 | B24: 542803 | C24: ELLORATRAD | D24: MAUNESH HARGOVINDDAS DEVARA | E24: BUY | F24: 600 | G24: 112.68 | H24: BSE
A25: 2021-02-23 | B25: 542803 | C25: ELLORATRAD | D25: MAUNESH HARGOVINDDAS DEVARA | E25: SELL | F25: 10,100 | G25: 113.31 | H25: BSE
A26: 2021-02-23 | B26: 542803 | C26: ELLORATRAD | D26: SAURIN JAYANTILAL SHAH | E26: BUY | F26: 10,000 | G26: 113.1 | H26: BSE
A27: 2021-02-23 | B27: 542803 | C27: ELLORATRAD | D27: DASHRATHBHAI MAHESHBHAI VADA | E27: BUY | F27: 682 | G27: 112.67 | H27: BSE
A28: 2021-02-23 | B28: 542803 | C28: ELLORATRAD | D28: DASHRATHBHAI MAHESHBHAI VADA | E28: SELL | F28: 7,000 | G28: 112.77 | H28: BSE
A29: 2021-02-23 | B29: 542803 | C29: ELLORATRAD | D29: ANKUR ANILBHAI MODESRA | E29: SELL | F29: 7,089 | G29: 112.68 | H29: BSE
A30: 2021-02-23 | B30: 542803 | C30: ELLORATRAD | D30: VISHNUPRASAD SOMABHAI PATEL | E30: SELL | F30: 9,500 | G30: 113 | H30: BSE
A31: 2021-02-23 | B31: 532959 | C31: GAMMNINFRA | D31: LGOF GLOBAL OPPORTUNITIES LIMITED | E31: BUY | F31: 23,000,000 | G31: 0.75 | H31: BSE
A32: 2021-02-23 | B32: 532959 | C32: GAMMNINFRA | D32: ICICI BANK LIMITED | E32: SELL | F32: 23,000,000 | G32: 0.75 | H32: BSE
A33: 2021-02-23 | B33: 530663 | C33: GOYALASS | D33: ADHP INVESTMENT & TRADING PRIVATE LIMITED | E33: BUY | F33: 376,853 | G33: 2.66 | H33: BSE
A34: 2021-02-23 | B34: 531387 | C34: HASTIFIN | D34: RAJESH JOSHI | E34: SELL | F34: 87,706 | G34: 4.55 | H34: BSE
A35: 2021-02-23 | B35: 531387 | C35: HASTIFIN | D35: SNEH JAIN | E35: BUY | F35: 87,500 | G35: 4.55 | H35: BSE
A36: 2021-02-23 | B36: 500184 | C36: HSCL | D36: BC INDIA INVESTMENTS | E36: SELL | F36: 5,000,000 | G36: 40.28 | H36: BSE
A37: 2021-02-23 | B37: 500233 | C37: KAJARIACER | D37: SMALLCAP WORLD FUND, INC. | E37: BUY | F37: 1,081,397 | G37: 966.36 | H37: BSE
A38: 2021-02-23 | B38: 500233 | C38: KAJARIACER | D38: SMALLCAP WORLD FUND INC. | E38: SELL | F38: 1,607,151 | G38: 966.39 | H38: BSE
A39: 2021-02-23 | B39: 530577 | C39: LADDERUP | D39: CASANOSTRA ESTATES PRIVATE LIMITED | E39: SELL | F39: 185,000 | G39: 13.5 | H39: BSE
A40: 2021-02-23 | B40: 530577 | C40: LADDERUP | D40: QUIET ENTERPRISES LLP | E40: BUY | F40: 185,000 | G40: 13.5 | H40: BSE
A41: 2021-02-23 | B41: 539519 | C41: MAYUKH | D41: SHIV PARVATI LEASING PRIVATE LIMITED | E41: SELL | F41: 68,000 | G41: 18.81 | H41: BSE
A42: 2021-02-23 | B42: 539519 | C42: MAYUKH | D42: MEHTA MANISHKUMAR INDRAVADAN | E42: BUY | F42: 20,000 | G42: 18.78 | H42: BSE
A43: 2021-02-23 | B43: 538836 | C43: MONTECARLO | D43: ALPHA LEON ENTERPRISES LLP | E43: BUY | F43: 167,779 | G43: 225.33 | H43: BSE
A44: 2021-02-23 | B44: 538836 | C44: MONTECARLO | D44: ALPHA LEON ENTERPRISES LLP | E44: SELL | F44: 157,426 | G44: 224.58 | H44: BSE
A45: 2021-02-23 | B45: 538836 | C45: MONTECARLO | D45: KANCHI INVESTMENTS LIMITED | E45: SELL | F45: 1,000,000 | G45: 225.16 | H45: BSE
A46: 2021-02-23 | B46: 538836 | C46: MONTECARLO | D46: GIRNAR INVESTMENT LTD | E46: BUY | F46: 314,942 | G46: 224.99 | H46: BSE
A47: 2021-02-23 | B47: 538836 | C47: MONTECARLO | D47: NAGDEVI TRADING AND INVESTMENT COMPANY LIMITED | E47: BUY | F47: 445,000 | G47: 224.68 | H47: BSE
A48: 2021-02-23 | B48: 540080 | C48: NARAYANI | D48: JITESHKUMAR SHASHIKANTBHAI TIKADIYA | E48: BUY | F48: 74,353 | G48: 18.52 | H48: BSE
A49: 2021-02-23 | B49: 540080 | C49: NARAYANI | D49: JITESHKUMAR SHASHIKANTBHAI TIKADIYA | E49: SELL | F49: 56,469 | G49: 18.45 | H49: BSE
A50: 2021-02-23 | B50: 539291 | C50: OZONEWORLD | D50: NARENDRA SHANKARLAL TANNA | E50: BUY | F50: 125,000 | G50: 90 | H50: BSE
A51: 2021-02-23 | B51: 539291 | C51: OZONEWORLD | D51: PATEL PRAKASH CHANDULAL | E51: SELL | F51: 115,221 | G51: 90 | H51: BSE
A52: 2021-02-23 | B52: 523862 | C52: PIFL | D52: JUMMAGANI | E52: BUY | F52: 48,500 | G52: 1.9 | H52: BSE
A53: 2021-02-23 | B53: 523862 | C53: PIFL | D53: P C DHOOT HUF | E53: SELL | F53: 27,744 | G53: 1.9 | H53: BSE
A54: 2021-02-23 | B54: 534060 | C54: PMCFIN | D54: ALPHA LEON ENTERPRISES LLP | E54: BUY | F54: 1,314,540 | G54: 1.05 | H54: BSE
A55: 2021-02-23 | B55: 534060 | C55: PMCFIN | D55: ALPHA LEON ENTERPRISES LLP | E55: SELL | F55: 3,312,264 | G55: 1.15 | H55: BSE
A56: 2021-02-23 | B56: 531257 | C56: PRATIKSH | D56: JAYESH KANTILAL PATEL | E56: BUY | F56: 52,140 | G56: 5.5 | H56: BSE
A57: 2021-02-23 | B57: 531257 | C57: PRATIKSH | D57: VANITABEN PATEL | E57: SELL | F57: 52,140 | G57: 5.5 | H57: BSE
A58: 2021-02-23 | B58: 512217 | C58: PRISMMEDI | D58: MANISH NITIN THAKUR . | E58: SELL | F58: 42,035 | G58: 29.87 | H58: BSE
A59: 2021-02-23 | B59: 512217 | C59: PRISMMEDI | D59: PRUDENTIAL INVESTMENT SOLUTION | E59: SELL | F59: 43,279 | G59: 29.99 | H59: BSE
A60: 2021-02-23 | B60: 539760 | C60: RELICAB | D60: VINOD HARILAL JHAVERI | E60: BUY | F60: 72,000 | G60: 42 | H60: BSE
A61: 2021-02-23 | B61: 539760 | C61: RELICAB | D61: JAGDISH DEDHIA | E61: SELL | F61: 33,000 | G61: 42 | H61: BSE
A62: 2021-02-23 | B62: 540259 | C62: SHANGAR | D62: HEMALBEN SANJAY SHAH | E62: SELL | F62: 62,674 | G62: 18.75 | H62: BSE
A63: 2021-02-23 | B63: 539026 | C63: SSPNFIN | D63: SANGEETA CHANDU JAIN | E63: SELL | F63: 36,000 | G63: 32.39 | H63: BSE
A64: 2021-02-23 | B64: 539026 | C64: SSPNFIN | D64: SHIVA KUMAR | E64: BUY | F64: 44,000 | G64: 27.41 | H64: BSE
A65: 2021-02-23 | B65: 539026 | C65: SSPNFIN | D65: SHIVA KUMAR | E65: SELL | F65: 8,000 | G65: 26 | H65: BSE
A66: 2021-02-23 | B66: 539026 | C66: SSPNFIN | D66: ASHOK KUMAR SINGH | E66: BUY | F66: 32,000 | G66: 30 | H66: BSE
A67: 2021-02-23 | B67: 539026 | C67: SSPNFIN | D67: DEVJEET CHAKRABORTY | E67: BUY | F67: 40,000 | G67: 32.15 | H67: BSE
A68: 2021-02-23 | B68: 539026 | C68: SSPNFIN | D68: DEVJEET CHAKRABORTY | E68: SELL | F68: 36,000 | G68: 30 | H68: BSE
A69: 2021-02-23 | B69: 539026 | C69: SSPNFIN | D69: ASHOK KUMAR SINGH | E69: SELL | F69: 44,000 | G69: 27.41 | H69: BSE
A70: 2021-02-23 | B70: 540570 | C70: VARIMAN | D70: RAMU PULI | E70: SELL | F70: 90,000 | G70: 14.83 | H70: BSE
A71: 2021-02-23 | B71: 590013 | C71: XPROINDIA | D71: SHARAD KANAYALAL SHAH | E71: SELL | F71: 46,000 | G71: 57.3 | H71: BSE
A72: 2021-02-23 | B72: ASLIND | C72: ASL Industries Limited | D72: ANUPAM NARAIN GUPTA | E72: BUY | F72: 100,000 | G72: 17.6 | H72: NSE
A73: 2021-02-23 | B73: BCP | C73: B.C. Power Controls Ltd | D73: COMFORT COMMOTRADE PRIVATE LIMITED | E73: BUY | F73: 544,683 | G73: 4.52 | H73: NSE
A74: 2021-02-23 | B74: COMPINFO | C74: Compuage Infocom Ltd | D74: OLGA TRADING PRIVATE LIMITED | E74: BUY | F74: 461,680 | G74: 16.11 | H74: NSE
A75: 2021-02-23 | B75: MOHOTAIND | C75: Mohota Industries Ltd. | D75: VIKRAMKUMAR KARANRAJ SAKARIA HUF DAKSH CORPORATION | E75: BUY | F75: 94,977 | G75: 7.5 | H75: NSE
A76: 2021-02-23 | B76: RAYMOND | C76: Raymond Ltd. | D76: XTX MARKETS LLP | E76: BUY | F76: 456,137 | G76: 381.34 | H76: NSE
A77: 2021-02-23 | B77: RPOWER | C77: Reliance Power Limited | D77: TOPGAIN FINANCE PRIVATE LIMITED | E77: BUY | F77: 19,320,442 | G77: 3.69 | H77: NSE
A78: 2021-02-23 | B78: SANGHIIND | C78: Sanghi Industries Ltd | D78: MITHUN SECURITIES PVT. LTD. | E78: BUY | F78: 1,592,587 | G78: 39.14 | H78: NSE
A79: 2021-02-23 | B79: SONATSOFTW | C79: Sonata Software Ltd | D79: GRAVITON RESEARCH CAPITAL LLP | E79: BUY | F79: 539,493 | G79: 495.67 | H79: NSE
A80: 2021-02-23 | B80: SONATSOFTW | C80: Sonata Software Ltd | D80: XTX MARKETS LLP | E80: BUY | F80: 553,836 | G80: 494.1 | H80: NSE
A81: 2021-02-23 | B81: SRIRAM | C81: Shri Ram Switchgears Ltd | D81: A F ENTERPRISES LIMITED . | E81: BUY | F81: 78,000 | G81: 13.2 | H81: NSE
A82: 2021-02-23 | B82: VIVIMEDLAB | C82: Vivimed Labs Limited | D82: ALPHA LEON ENTERPRISES LLP | E82: BUY | F82: 946,342 | G82: 14.32 | H82: NSE
A83: 2021-02-23 | B83: ASLIND | C83: ASL Industries Limited | D83: NU HEIGHTS AGENCY PRIVATE LIMITED | E83: SELL | F83: 64,000 | G83: 17.6 | H83: NSE
A84: 2021-02-23 | B84: BCP | C84: B.C. Power Controls Ltd | D84: COMFORT COMMOTRADE PRIVATE LIMITED | E84: SELL | F84: 544,683 | G84: 4.48 | H84: NSE
A85: 2021-02-23 | B85: BCP | C85: B.C. Power Controls Ltd | D85: AGARWAL APOORV | E85: SELL | F85: 800,000 | G85: 4.52 | H85: NSE
A86: 2021-02-23 | B86: COMPINFO | C86: Compuage Infocom Ltd | D86: OLGA TRADING PRIVATE LIMITED | E86: SELL | F86: 461,680 | G86: 16.23 | H86: NSE
A87: 2021-02-23 | B87: MAJESCO | C87: Majesco Limited | D87: NIHAR NANDAN NILEKANI | E87: SELL | F87: 211,000 | G87: 91.65 | H87: NSE
A88: 2021-02-23 | B88: MAJESCO | C88: Majesco Limited | D88: INDIA ACORN ICAV | E88: SELL | F88: 314,935 | G88: 91.65 | H88: NSE
A89: 2021-02-23 | B89: MOHOTAIND | C89: Mohota Industries Ltd. | D89: ERROR-SALTLAKE(INSIGHT SHARE BROKERS LTD) | E89: SELL | F89: 100,000 | G89: 7.5 | H89: NSE
A90: 2021-02-23 | B90: RAYMOND | C90: Raymond Ltd. | D90: XTX MARKETS LLP | E90: SELL | F90: 460,963 | G90: 381.81 | H90: NSE
A91: 2021-02-23 | B91: RPOWER | C91: Reliance Power Limited | D91: TOPGAIN FINANCE PRIVATE LIMITED | E91: SELL | F91: 20,282,257 | G91: 3.7 | H91: NSE
A92: 2021-02-23 | B92: SANGHIIND | C92: Sanghi Industries Ltd | D92: MITHUN SECURITIES PVT. LTD. | E92: SELL | F92: 1,592,587 | G92: 39.22 | H92: NSE
A93: 2021-02-23 | B93: SONATSOFTW | C93: Sonata Software Ltd | D93: GRAVITON RESEARCH CAPITAL LLP | E93: SELL | F93: 539,493 | G93: 496.29 | H93: NSE
A94: 2021-02-23 | B94: SONATSOFTW | C94: Sonata Software Ltd | D94: XTX MARKETS LLP | E94: SELL | F94: 548,041 | G94: 495.38 | H94: NSE
A95: 2021-02-23 | B95: VIVIMEDLAB | C95: Vivimed Labs Limited | D95: ALPHA LEON ENTERPRISES LLP | E95: SELL | F95: 693,755 | G95: 14.36 | H95: NSE
A96: 2021-02-23 | B96: VIVIMEDLAB | C96: Vivimed Labs Limited | D96: AMBIT FINVEST PRIVATE LIMITED | E96: SELL | F96: 2,486,805 | G96: 14.49 | H96: NSE

Sheet Call Tracker (Equity & F&O)
M5: Back To Main Page
A6: Retail Research Technical Calls & Fundamental Performance Report for the month of February-2021
M7: =Main!B10 -> 2021-02-24
B8: Positional Call
A9: Sr.no | B9: Date | D9: Company | E9: Rec | F9: Rec Price | G9: Stop Loss*** | H9: Call Closed At | I9: Target | J9: Remark | K9: Profit / Loss per Share | L9: All charges | M9: Net Gain / Loss % | N9: Status | O9: Closed Date
A10: 1 | B10: 2020-12-10 | D10: IRCTC | E10: Buy | F10: 1427.5 | G10: 1330 | H10: 1535 | I10: 1550-1600 | J10: Profit of Rs.107.5/- | K10: =H10-F10 -> 107.5 | L10: =(F10*-0.8)/100 -> -11.42 | M10: =(K10+L10)/F10 -> 6.73% | N10: Successful | O10: 2021-02-04 | R10: H
A11: 2 | B11: 2021-01-05 | D11: BRITANNIA | E11: Buy | F11: 3540 | G11: 3295 | H11: =(3682.5+3520)/2 -> 3601.25 | I11: 3900-4000 | J11: Profit of Rs.61.25/- | K11: =H11-F11 -> 61.25 | L11: =(F11*-0.8)/100 -> -28.32 | M11: =(K11+L11)/F11 -> 0.93% | N11: Successful | O11: 2021-02-01 | R11: H
A12: 3 | B12: 2021-02-02 | D12: JKCEMENT | E12: Buy | F12: 2197.5 | G12: 2070 | H12: 2357.5 | I12: 2400-2450 | J12: Profit of Rs.160/- | K12: 160 | L12: =(F12*-0.8)/100 -> -17.58 | M12: =(K12+L12)/F12 -> 6.48% | N12: Successful | O12: 2020-02-08 | R12: H
A13: 4 | B13: 2021-02-02 | D13: HINDUNILVR | E13: Buy | F13: 2235-2245 | G13: 2090 | I13: 2500-2550 | J13: Open | R13: H
A14: 5 | B14: 2021-02-04 | D14: PIIND | E14: Buy | F14: 2190 | G14: 1995 | H14: 2330 | I14: 2500 | J14: Profit of Rs.140/- | K14: =H14-F14 -> 140 | L14: =(F14*-0.07)/100 -> -1.53 | M14: =(K14+L14)/F14 -> 6.32% | N14: Successful | O14: 2020-02-04 | R14: H
A15: 6 | B15: 2021-02-09 | D15: IRCTC | E15: Buy | F15: 1597.5 | G15: 1514 | H15: 1702.5 | I15: 1750-1800 | J15: Profit of Rs.105/- | K15: 105 | L15: =(F15*-0.8)/100 -> -12.78 | M15: 5.77% | N15: Successful | O15: 2020-02-12 | R15: H
A16: 7 | B16: 2021-02-09 | D16: PIIND | E16: Buy | F16: 2200-2210 | G16: 2070 | I16: 2400-2500 | J16: Open | R16: H
A17: 8 | B17: 2021-02-19 | D17: PNB | E17: Buy | F17: 43.9 | G17: 41.4 | H17: 41.75 | I17: 49-50 | J17: Loss of Rs.2.15/- | K17: =H17-F17 -> -2.15 | L17: =(F17*-0.07)/100 -> -0.03 | M17: =(K17+L17)/F17 -> -4.97% | N17: Unsuccessful | O17: 2020-02-19 | R17: H
A18: 9 | B18: 2021-02-19 | D18: ENGINERSIN | E18: Buy | F18: 74.5-75 | G18: 70 | I18: 84-86 | J18: Open | R18: H
A19: 10 | B19: 2021-02-22 | D19: SUDARSCHEM | E19: Buy | F19: 505.5 | G19: 475 | H19: 546 | I19: 550-560 | J19: Profit of Rs.40.5/- | K19: =H19-F19 -> 40.5 | L19: =(F19*-0.8)/100 -> -4.04 | M19: =(K19+L19)/F19 -> 7.21% | N19: Successful | O19: 2020-02-23 | R19: N
A23: CLBS = Closing Basis ***
A24: Dividend adjusted <> | F24: Reinitiated $
A25: Part book {} | F25: Revised stoploss #
B27: Momentum Call
A28: Sr.no | B28: Date | D28: Company | E28: Rec | F28: Rec Price | G28: Stop Loss | H28: Call Closed At | I28: Target | J28: Remark | K28: Profit / Loss per Share/Lot | L28: All charges | M28: Net Gain / Loss % | N28: Status | O28: Closed Date
A29: 1 | B29: 2021-02-01 | D29: BHARTIARTL | E29: Buy | F29: 566 | G29: 548 | H29: 577 | I29: 600 | J29: Profit of Rs.11/- | K29: =H29-F29 -> 11 | L29: =(F29*-0.07)/100 -> -0.40 | M29: =(K29+L29)/F29 -> 1.87% | N29: Successful | O29: 2021-02-01 | R29: H
A30: 2 | B30: 2021-02-02 | D30: CESC | E30: Buy | F30: 627.5 | G30: 609 | H30: 608.5 | I30: 660 | J30: Loss of Rs.19/- | K30: -19 | L30: =(F30*-0.7)/100 -> -4.39 | M30: -3.73% | N30: Unsuccessful | O30: 2021-02-08 | R30: H
A31: 3 | B31: 2021-02-02 | D31: MCDOWELL-N | E31: Buy | F31: 576.5 | G31: 560 | H31: 590 | I31: 600-610 | J31: Profit of Rs.14/- | K31: =H31-F31 -> 13.5 | L31: -4.04 | M31: =(K31+L31)/F31 -> 1.64% | N31: Successful | O31: 2021-02-04 | R31: N
A32: 4 | B32: 2021-02-02 | D32: BHARTIARTL | E32: Buy | F32: 601.5 | G32: 585 | H32: 615.5 | I32: 630 | J32: Profit of Rs.14/- | K32: =H32-F32 -> 14 | L32: -4.21 | M32: =(K32+L32)/F32 -> 1.63% | N32: Successful | O32: 2021-02-03 | R32: H
A33: 5 | B33: 2021-02-03 | D33: KOTAKBANK | E33: Buy | F33: 1844 | G33: 1790 | H33: 1887.5 | I33: 1920-1950 | J33: Profit of Rs.43.5/- | K33: =H33-F33 -> 43.5 | L33: -12.91 | M33: =(K33+L33)/F33 -> 1.66% | N33: Successful | O33: 2021-02-04 | R33: H
A34: 6 | B34: 2021-02-04 | D34: BHARTIARTL | E34: Buy | F34: 612.5 | G34: 598 | H34: 592.5 | I34: 640-650 | J34: Loss of Rs.20/- | K34: =H34-F34 -> -20 | L34: -4.29 | M34: =(K34+L34)/F34 -> -3.97% | N34: Unsuccessful | O34: 2021-02-05 | R34: H
A35: 7 | B35: 2021-02-04 | D35: ICICIPRULI | E35: Buy | F35: 472 | G35: 457 | H35: 485 | I35: 495-505 | J35: Profit of Rs.13/- | K35: 13 | L35: -3.30 | M35: 2.05% | N35: Successful | O35: 2021-02-11 | R35: H
A36: 8 | B36: 2021-02-05 | D36: IRCTC | E36: Buy | F36: 1520 | G36: 1469 | H36: 1560 | I36: 1600-1620 | J36: Profit of Rs.40/- | K36: =H36-F36 -> 40 | L36: =(F36*-0.07)/100 -> -1.06 | M36: =(K36+L36)/F36 -> 2.56% | N36: Successful | O36: 2021-02-05 | R36: H
A37: 9 | B37: 2021-02-08 | D37: ZEEL | E37: Buy | F37: 221 | G37: 214.5 | H37: 214.5 | I37: 230-235 | J37: Loss of Rs.6.5/- | K37: -6.5 | L37: =(F37*-0.7)/100 -> -1.55 | M37: -3.64% | N37: Unsuccessful | O37: 2021-02-05 | R37: H
A38: 10 | B38: 2021-02-10 | D38: ITC | E38: Buy | F38: 224.5 | G38: 218 | H38: 227.75 | I38: 235 | J38: Profit of Rs.3.25/- | K38: =H38-F38 -> 3.25 | L38: =(F38*-0.07)/100 -> -0.16 | M38: =(K38+L38)/F38 -> 1.38% | N38: Successful | O38: 2021-02-10 | R38: H
A39: 11 | B39: 2021-02-12 | D39: EXIDEIND | E39: Buy | F39: 213 | G39: 207 | H39: 207 | I39: 222-225 | J39: Loss of Rs.6/- | K39: -6 | L39: =(F39*-0.7)/100 -> -1.49 | M39: -3.52% | N39: Unsuccessful | O39: 2021-02-19 | R39: H
A40: 12 | B40: 2021-02-12 | D40: MOTHERSUMI | E40: Buy | F40: 173 | G40: 168 | H40: 183.5 | I40: 185 | J40: Profit of Rs.10.5/- | K40: =H40-F40 -> 10.5 | L40: =(F40*-0.07)/100 -> -0.12 | M40: =(K40+L40)/F40 -> 6.00% | N40: Successful | O40: 2021-02-12 | R40: H
A41: 13 | B41: 2021-02-15 | D41: NESTLEIND | E41: Buy | F41: 17400 | G41: 16900 | H41: 16890 | I41: 18000-18200 | J41: Loss of Rs.121.8/- | K41: -510 | L41: =(F41*-0.7)/100 -> -121.80 | M41: -3.63% | N41: Unsuccessful | O41: 2021-02-17 | R41: H
A42: 14 | B42: 2021-02-16 | D42: IRCTC | E42: Buy | F42: 1685 | G42: 1635 | H42: 1635 | I42: 1780-1800 | J42: Loss of Rs.50/- | K42: =H42-F42 -> -50 | L42: =(F42*-0.7)/100 -> -11.80 | M42: =(K42+L42)/F42 -> -3.67% | N42: Unsuccessful | O42: 2021-02-22 | R42: H
A43: 15 | B43: 2021-02-17 | D43: BHARTIARTL | E43: Buy | F43: 592.5 | G43: 577 | H43: 596.5 | I43: 620-625 | J43: Profit of Rs.4/- | K43: =H43-F43 -> 4 | L43: =(F43*-0.7)/100 -> -4.15 | M43: =(K43+L43)/F43 -> -0.02% | N43: Neutral | O43: 2021-02-18 | R43: H
A44: 16 | B44: 2021-02-18 | D44: TATAPOWER | E44: Buy | F44: 92.5 | G44: 89.5 | H44: 89.5 | I44: 98-100 | J44: Loss of Rs.3/- | K44: -3 | L44: -0.65 | M44: -3.94% | N44: Unsuccessful | O44: 2021-02-22 | R44: H
A45: 17 | B45: 2021-02-22 | D45: HINDALCO | E45: Sell | F45: 323.5 | G45: 333 | H45: 317 | I45: 310-305 | J45: Profit of Rs.6.5/- | K45: =F45-H45 -> 6.5 | L45: =(F45*-0.07)/100 -> -0.23 | M45: 1.94% | N45: Successful | O45: 2021-02-22 | R45: H
A46: 18 | B46: 2021-02-22 | D46: ONGC | E46: Sell | F46: 107 | G46: 110.5 | H46: 110.5 | I46: 103-100 | J46: Loss of Rs.3,5/- | K46: =F46-H46 -> -3.5 | L46: =(F46*-0.7)/100 -> -0.75 | M46: =(K46+L46)/F46 -> -3.97% | N46: Unsuccessful | O46: 2021-02-23 | R46: H
A47: 19 | B47: 2021-02-23 | D47: GMMPFAUDLR | E47: Buy | F47: 4050 | G47: 3940 | H47: 4130 | I47: 4300-4350 | J47: Profit of Rs.80/- | K47: =H47-F47 -> 80 | L47: =(F47*-0.07)/100 -> -2.84 | M47: 1.91% | N47: Successful | O47: 2021-02-23 | R47: H
A48: 20 | B48: 2021-02-23 | D48: TITAN | E48: Buy | F48: 1415-1425 | G48: 1370 | I48: 1470-1480 | J48: Open | R48: H
A52: CLBS = Closing Basis *** | H52: *
A53: Dividend adjusted <> | F53: Reinitiated $
F54: Revised stoploss #
A56: Master Trade High Risk
A57: Sr.no | B57: Date | D57: Company | E57: Rec | F57: Rec Price | G57: Stop Loss | H57: Call Closed At | I57: Target | J57: Remark | K57: Profit / Loss per share | L57: All charges | M57: Gain / Loss per Lot | N57: Lot | O57: Status | P57: Closed Date
A58: 1 | B58: 2021-02-02 | D58: AUROPHARMA FEB FUT | E58: Buy | F58: 925.5 | G58: 905 | H58: 941 | I58: 960-965 | J58: Profit of Rs.15.50/- | K58: =H58-F58 -> 15.5 | L58: =(H58*N58)*0.035% -> 214.08 | M58: =(K58*N58)-L58 -> 9860.9 | N58: 650 | O58: Successful | P58: 2021-02-03 | R58: N
A59: 2 | B59: 2021-02-02 | D59: RELIANCE FEB FUT | E59: Buy | F59: 1930 | G59: 1885 | H59: 1964 | I59: 2000 | J59: Profit of Rs.34/- | K59: =H59-F59 -> 34 | L59: =(H59*N59)*0.035% -> 171.85 | M59: =(K59*N59)-L59 -> 8328.2 | N59: 250 | O59: Successful | P59: 2021-02-08 | R59: H
A60: 3 | B60: 2021-02-03 | D60: NIFTY FEB FUT | E60: Sell | F60: 14700 | G60: 14820 | H60: 14820 | I60: 14500 | J60: Loss of Rs, 120/- | K60: =F60-H60 -> -120 | L60: 389.025 | M60: =(K60*N60)-L60 -> -9389.025 | N60: 75 | O60: Unsuccessful | P60: 2021-02-03 | R60: H
A61: 4 | B61: 2021-02-03 | D61: BATAINDIA FEB FUT | E61: Buy | F61: 1569 | G61: 1545 | H61: 1586 | I61: 1600-1620 | J61: Profit of Rs.17/- | K61: =H61-F61 -> 17 | L61: =(H61*N61)*0.035% -> 305.31 | M61: =(K61*N61)-L61 -> 9044.7 | N61: 550 | O61: Successful | P61: 2021-02-03 | R61: N
A62: 5 | B62: 2021-02-04 | D62: AUROPHARMA FEB FUT | E62: Buy | F62: 924 | G62: 903 | H62: 942 | I62: 960-965 | J62: Profit of Rs.18/- | K62: =H62-F62 -> 18 | L62: 214.31 | M62: 11485.7 | N62: 650 | O62: Successful | P62: 2021-02-05 | R62: N
A63: 6 | B63: 2021-02-05 | D63: NIFTY FEB FUT | E63: Sell | F63: 14980 | G63: 15080 | H63: 14910 | I63: 14800 | J63: Profit of Rs.70/- | K63: =F63-H63 -> 70 | L63: =(H63*N63)*0.035% -> 391.39 | M63: =(K63*N63)-L63 -> 4858.6 | N63: 75 | O63: Successful | P63: 2021-02-05 | R63: H
A64: 7 | B64: 2021-02-08 | D64: HDFCLIFE FEB FUT | E64: Buy | F64: 687 | G64: 675 | H64: 697.5 | I64: 710 | J64: Profit of Rs.10.5/- | K64: =H64-F64 -> 10.5 | L64: 268.54 | M64: 11281.5 | N64: 1100 | O64: Successful | P64: 2021-02-09 | R64: H
A65: 8 | B65: 2021-02-15 | D65: HDFCLIFE FEB FUT | E65: Buy | F65: 701.5 | G65: 689 | H65: 708.25 | I65: 720 | J65: Profit of Rs.6.75/- | K65: =H65-F65 -> 6.75 | L65: =(H65*N65)*0.035% -> 272.68 | M65: =(K65*N65)-L65 -> 7152.3 | N65: 1100 | O65: Successful | P65: 2021-02-17 | R65: H
A66: 9 | B66: 2021-02-16 | D66: SRF FEB FUT | E66: Buy | F66: 5790 | G66: 5680 | H66: 5845 | I66: 6000 | J66: Profit of Rs.55/- | K66: =H66-F66 -> 55 | L66: =(H66*N66)*0.035% -> 255.72 | M66: =(K66*N66)-L66 -> 6619.3 | N66: 125 | O66: Successful | P66: 2021-02-17 | R66: H
A67: 10 | B67: 2021-02-17 | D67: ASIANPAINT FEB FUT | E67: Buy | F67: 2407.5 | G67: 2367 | H67: 2431 | I67: 2450-2470 | J67: Profit of Rs.23.5/- | K67: =H67-F67 -> 23.5 | L67: =(H67*N67)*0.035% -> 255.26 | M67: =(K67*N67)-L67 -> 6794.7 | N67: 300 | O67: Successful | P67: 2021-02-18 | R67: H
A68: 11 | B68: 2021-02-17 | D68: NIFTY FEB FUT | E68: Sell | F68: 15300 | G68: 15440 | H68: 15220 | I68: 15100 | J68: Profit of Rs.80/- | K68: =F68-H68 -> 80 | L68: =(H68*N68)*0.035% -> 399.53 | M68: =(K68*N68)-L68 -> 5600.5 | N68: 75 | O68: Successful | P68: 2021-02-17 | R68: H
A69: 12 | B69: 2021-02-18 | D69: M&MFIN FEB FUT | E69: Sell | F69: 218.5 | G69: 221.5 | H69: 216.25 | I69: 212-210 | J69: Profit of Rs.2.25/- | K69: =F69-H69 -> 2.25 | L69: 302.75 | M69: 8697.3 | N69: 4000 | O69: Successful | P69: 2021-02-18 | R69: H
A70: 13 | B70: 2021-02-22 | D70: ASIANPAINT FEB FUT | E70: Buy | F70: 2422 | G70: 2385 | H70: 2385 | I70: 2480 | J70: Loss of Rs.37/- | K70: =H70-F70 -> -37 | L70: 250.43 | M70: -11350.4 | N70: 300 | O70: Unsuccessful | P70: 2021-02-22 | R70: H
A71: 14 | B71: 2021-02-22 | D71: NIFTY FEB FUT | E71: Buy | F71: 14750 | H71: 14665 | J71: Profit of Rs, 70/- | K71: =F71-H71 -> 85 | L71: 384.96 | M71: =(70*N71)-484.96 -> 4765.04 | N71: 75 | O71: Successful | P71: 2021-02-22 | R71: H
D72: NIFTY 14500 PE 25-FEB | E72: Sell | F72: 47.5 | H72: 62.5 | K72: =F72-H72 -> -15 | L72: 100.00 | R72: H
A73: 15 | B73: 2021-02-23 | D73: BRITANNIA MAR FUT | E73: Buy | F73: 3350-3360 | G73: 3290 | I73: 3450 | J73: Open | R73: H
A74: 16 | B74: 2021-02-23 | D74: NIFTY MAR FUT | E74: Sell | F74: 14785 | G74: 14910 | H74: 14775 | I74: 14550 | J74: Profit of Rs.10/- | K74: =F74-H74 -> 10 | L74: =(H74*N74)*0.035% -> 387.84 | M74: =(K74*N74)-L74 -> 362.2 | N74: 75 | O74: Neutral | P74: 2021-02-23 | R74: H
A75: 17 | B75: 2021-02-23 | D75: NIFTY MAR FUT | E75: Buy | F75: 14910 | G75: 15075 | H75: 14805 | I75: 14600 | J75: Profit of Rs, 75/- | K75: =F75-H75 -> 105 | L75: 388.63 | M75: =(70*N75)-484.96 -> 4765.04 | N75: 75 | O75: Successful | P75: 2021-02-23 | R75: H
D76: NIFTY 14600 PE 4-MAR | E76: Sell | F76: 95 | H76: 125 | K76: =F76-H76 -> -30 | L76: 100.00 | R76: H
A77: 18 | B77: 2021-02-23 | D77: AUROPHARMA MAR FUT | E77: Buy | F77: 862-864 | G77: 842 | I77: 900 | J77: Open | R77: N
A85: Master Trade Medium Risk
A86: Sr.no | B86: Date | D86: Company | E86: Rec | F86: Rec Price | G86: Stop Loss | H86: Call Closed At | I86: Target | J86: Remark | K86: Profit/ Loss per lot | L86: All charges | M86: Gain / Loss per Lot | N86: Lot | O86: Status | P86: Closed Date
A87: 1 | B87: 2021-01-29 | D87: NIFTY 13800 PE 11-FEB | E87: Buy | F87: 215 | H87: 0 | J87: Loss of Rs, 117.5/- | K87: =H87-F87 -> -215 | L87: 100.00 | M87: -8612.5 | N87: 75 | O87: Unsuccessful | P87: 2021-02-11 | R87: N
D88: NIFTY 13400 PE 11-FEB | E88: Sell | F88: 97.5 | H88: 0 | K88: =F88-H88 -> 97.5 | L88: 100.00 | R88: N
A89: 2 | B89: 2021-02-01 | D89: NIFTY 13800 PE 4-FEB | E89: Buy | F89: 67.5 | G89: 35 | H89: 35 | I89: 150 | J89: Loss of Rs, 32.5/- | K89: =H89-F89 -> -32.5 | L89: 100 | M89: =(K89*N89)+L89 -> -2337.5 | N89: 75 | O89: Unsuccessful | P89: 2021-02-01 | R89: H
A90: 3 | B90: 2021-02-03 | D90: NIFTY 14800 PE 4-FEB | E90: Buy | F90: 51 | G90: 18 | H90: 71.5 | I90: 100-120 | J90: Profit of Rs.20.50/- | K90: =H90-F90 -> 20.5 | L90: 100.00 | M90: =(K90*N90)-L90 -> 1437.5 | N90: 75 | O90: Successful | P90: 2021-02-03 | R90: H
A91: 4 | B91: 2021-02-03 | D91: NIFTY 14800 PE 4-FEB | E91: Buy | F91: 52.5 | G91: 19 | H91: 72 | I91: 100-120 | J91: Profit of Rs.19.50/- | K91: =H91-F91 -> 19.5 | L91: 100.00 | M91: 1362.5 | N91: 75 | O91: Successful | P91: 2021-02-03 | R91: H
A92: 5 | B92: 2021-02-05 | D92: NIFTY 15100 CE 25-FEB | E92: Sell | F92: 227 | G92: 325 | H92: 325 | I92: 50-10 | J92: Loss of Rs, 98/- | K92: =F92-H92 -> -98 | L92: 100 | M92: =(K92*N92)+L92 -> -7250 | N92: 75 | O92: Unsuccessful | P92: 2021-02-09 | R92: H
A93: 6 | B93: 2021-02-10 | D93: NIFTY 15200 CE 25-FEB | E93: Sell | F93: 227.5 | G93: 325 | H93: 175 | I93: 50-10 | J93: Profit of Rs, 52.5/- | K93: =F93-H93 -> 52.5 | L93: 100 | M93: =(K93*N93)+L93 -> 4037.5 | N93: 75 | O93: Successful | P93: 2021-02-10 | R93: H
A94: 7 | B94: 2021-02-10 | D94: NIFTY 15200 CE 25-FEB | E94: Sell | F94: 202.5 | G94: 302 | H94: 302 | I94: 50-10 | J94: Loss of Rs, 99.5/- | K94: =F94-H94 -> -99.5 | L94: 100 | M94: =(K94*N94)+L94 -> -7362.5 | N94: 75 | O94: Unsuccessful | P94: 2021-02-16 | R94: H
A95: 8 | B95: 2021-02-11 | D95: BANKNIFTY 36500 CE 25-FEB | E95: Sell | F95: 470 | G95: 680 | H95: 375 | I95: 100-50 | J95: Profit of Rs, 95/- | K95: =F95-H95 -> 95 | L95: 100 | M95: =(K95*N95)+L95 -> 2475 | N95: 25 | O95: Successful | P95: 2021-02-12 | R95: H
A96: 9 | B96: 2021-02-15 | D96: BANKNIFTY 37400 CE 25-FEB | E96: Sell | F96: 370 | G96: 522 | H96: 522 | I96: 50-10 | J96: Loss of Rs, 152/- | K96: =F96-H96 -> -152 | L96: 100 | M96: =(K96*N96)+L96 -> -3700 | N96: 25 | O96: Unsuccessful | P96: 2021-02-15 | R96: H
A97: 10 | B97: 2021-02-16 | D97: NIFTY 14800 PE 25-FEB | E97: Buy | F97: 66 | G97: 19 | H97: 79 | I97: 100-120 | J97: Profit of Rs.13/- | K97: =H97-F97 -> 13 | L97: 100 | M97: =(K97*N97)-L97 -> 875.0 | N97: 75 | O97: Successful | P97: 2021-02-16 | R97: H
A98: 11 | B98: 2021-02-17 | D98: BANKNIFTY 36800 PE 25-FEB | E98: Buy | F98: 365 | G98: 175 | H98: 470 | I98: 600-700 | J98: Profit of Rs.105/- | K98: =H98-F98 -> 105 | L98: 100 | M98: =(K98*N98)-L98 -> 2525.0 | N98: 25 | O98: Successful | P98: 2021-02-17 | R98: H
A99: 12 | B99: 2021-02-18 | D99: NIFTY 15250 PE 18-FEB | E99: Buy | F99: 45.5 | H99: 65.5 | I99: 100-120 | J99: Profit of Rs.20/- | K99: =H99-F99 -> 20 | L99: 100 | M99: 1400.0 | N99: 75 | O99: Successful | P99: 2021-02-18 | R99: H
A100: 13 | B100: 2021-02-19 | D100: ASIANPAINT 2440 CE 25-FEB | E100: Buy | F100: 29 | G100: 15 | H100: 34 | I100: 45-50 | J100: Profit of Rs.5/- | K100: =H100-F100 -> 5 | L100: 100 | M100: =(K100*N100)-L100 -> 1400.0 | N100: 300 | O100: Successful | P100: 2021-02-22 | R100: H
A101: 14 | B101: 2021-02-22 | D101: ASIANPAINT 2440 CE 25-FEB | E101: Buy | F101: 24 | G101: 8 | H101: 7 | I101: 50 | J101: Loss of Rs, 17/- | K101: =H101-F101 -> -17 | L101: 100 | M101: =(K101*N101)+L101 -> -5000 | N101: 300 | O101: Unsuccessful | P101: 2021-02-23 | R101: N
A110: Techno -Funda (positional)
A111: Sr.no | B111: Date | D111: Company | E111: Rec | F111: Rec Price | G111: Stop Loss*** | H111: Call Closed At | I111: Target | J111: Remark | K111: Profit / Loss per Share/Lot | L111: All charges | M111: Net Gain / Loss % | N111: Status | O111: Closed Date
A112: 1 | B112: 2021-01-07 | D112: SIS | E112: Buy | F112: 424 | G112: 385 | H112: 455 | I112: 500-520 | J112: Part profit of Rs.31/- | K112: =H112-F112 -> 31 | L112: =(F112*-0.8)/100 -> -3.39 | M112: =(K112+L112)/F112 -> 6.51% | N112: Successful | O112: 2020-02-16 | R112: H
A113: 2 | B113: 2021-02-11 | D113: MCX | E113: Buy | F113: 1500-1530 | G113: 1390 | I113: 1800-1850 | J113: Open | R113: H
A115: CLBS = Closing Basis *** | F115: Reinitiated $
A116: Dividend adjusted <> | F116: Revised stoploss #
B118: Intrday Call
A119: Sr.no | B119: Date | D119: Company | E119: Rec | F119: Rec Price | G119: Stop Loss | H119: Call Closed At | I119: Target | J119: Remark | K119: Profit / Loss per Share/Lot | L119: Gain / Loss per Lot | M119: Lot | N119: All charges | O119: Net Gain / Loss % | P119: Status | Q119: Closed Date
B132: Investment Idea
A133: Sr.no | B133: Date | D133: Company | E133: Rec | F133: Rec Price | G133: Point of Review | H133: Close Rate | I133: Target | J133: Remark | K133: Profit / Loss per Share | L133: Gain / Loss % | M133: Status | N133: Closed Date
A134: 1 | B134: 2013-11-01 | D134: L&T Finance Holding | E134: Accu | F134: 82.00 | G134: - | H134: 100 | I134: 100.00 | J134: Target Achieved | K134: =H134-F134 -> 18.00 | L134: =K134/F134 -> 21.95% | M134: Successful | N134: 2016-10-14
A135: 2 | B135: 2014-06-04 | D135: Finolex Inds | E135: Buy | F135: 257.00 | G135: - | H135: 300 | I135: 300.00 | J135: Target Achieved | K135: 43.00 | L135: 16.73% | M135: Successful | N135: 2014-07-02
A136: 3 | B136: 2014-07-08 | D136: JK Cement | E136: Buy | F136: 393.00 | G136: - | H136: 468 | I136: 468.00 | J136: Target Achieved | K136: 75.00 | L136: 19.08% | M136: Successful | N136: 2014-08-12
A137: 4 | B137: 2014-08-06 | D137: Finolex Cables | E137: Buy | F137: 205.00 | G137: - | H137: 275 | I137: 250.00 | J137: Target Achieved | K137: 70.00 | L137: 34.15% | M137: Successful | N137: 2014-11-19
A138: 5 | B138: 2014-09-04 | D138: Exide Inds | E138: Buy | F138: 162.00 | G138: - | H138: 190 | I138: 190.00 | J138: Target Achieved | K138: 28.00 | L138: 17.28% | M138: Successful | N138: 2015-01-02
A139: 6 | B139: 2014-09-04 | D139: Deepak Nitrite | E139: Buy | F139: 75.00 | G139: - | H139: 91.5 | I139: 95-100 | J139: Profit of Rs.16.50/- | K139: 16.50 | L139: 22.00% | M139: Successful | N139: 2014-11-11
A140: 7 | B140: 2014-10-01 | D140: Mercks | E140: Buy | F140: 850.00 | G140: - | H140: 982.5 | I140: 1050.00 | J140: Profit of Rs.132.50/- | K140: 132.50 | L140: 15.59% | M140: Successful | N140: 2015-02-04
A141: 8 | B141: 2014-10-01 | D141: Grindwell Norton | E141: Buy | F141: 475.00 | G141: - | H141: 515 | I141: 600.00 | J141: Profit of Rs.40/- | K141: 40.00 | L141: 8.42% | M141: Successful | N141: 2014-10-27
A142: 9 | B142: 2014-10-01 | D142: Snowman Logistics | E142: Buy | F142: 86.00 | G142: - | H142: 99 | I142: 140.00 | J142: Profit of Rs.13.00/- | K142: 13.00 | L142: 15.12% | M142: Successful | N142: 2014-10-27
A143: 10 | B143: 2014-10-14 | D143: Birla Corp | E143: Buy | F143: 496.60 | G143: - | H143: 621 | I143: 580.00 | J143: Target Achieved | K143: 124.40 | L143: 25.05% | M143: Successful | N143: 2016-08-23
A144: 11 | B144: 2014-10-14 | D144: Ultratech Cem | E144: Buy | F144: 2481.90 | G144: - | H144: 2840 | I144: 2870.00 | J144: Profit of Rs.358.10/- | K144: 358.10 | L144: 14.43% | M144: Successful | N144: 2015-01-13
A145: 12 | B145: 2014-10-16 | D145: Sintex Inds | E145: Buy | F145: 84.50 | G145: - | H145: 93 | I145: 110.00 | J145: Profit of Rs.8.50/- | K145: 8.50 | L145: 10.06% | M145: Successful | N145: 2014-10-27
A146: 13 | B146: 2014-10-16 | D146: HSIL | E146: Buy | F146: 401.00 | G146: - | H146: 428 | I146: 450.00 | J146: Profit of Rs.27.00/- | K146: 27.00 | L146: 6.73% | M146: Successful | N146: 2015-01-16
A147: 14 | B147: 2014-10-16 | D147: Eveready Inds | E147: Buy | F147: 101.00 | G147: - | H147: 112 | I147: 120.00 | J147: Profit of Rs.11.00/- | K147: 11.00 | L147: 10.89% | M147: Successful | N147: 2014-10-27
A148: 15 | B148: 2014-11-11 | D148: Pennar Inds | E148: Buy | F148: 59.00 | G148: - | H148: 76 | I148: 76.00 | J148: Target Achieved | K148: 17.00 | L148: 28.81% | M148: Successful | N148: 2017-10-24
A149: 16 | B149: 2014-11-11 | D149: Snowman Logistics | E149: Buy | F149: 99.00 | G149: - | H149: 120 | I149: 120.00 | J149: Profit of Rs.21/- | K149: 21.00 | L149: 21.21% | M149: Successful | N149: 2014-11-17
A150: 17 | B150: 2014-11-13 | D150: Dharamsi Morarji Chem | E150: Buy | F150: 22.00 | G150: - | H150: 33.55 | I150: 32.00 | J150: Profit of Rs 11.55/- | K150: 11.55 | L150: 52.50% | M150: Successful | N150: 2015-07-03
A151: 18 | B151: 2014-12-03 | D151: Tatachem | E151: Buy | F151: 440.00 | G151: - | H151: 520 | I151: 520.00 | J151: Profit of Rs 80.00/- | K151: 80.00 | L151: 18.18% | M151: Successful | N151: 2015-07-23
A152: 19 | B152: 2014-12-03 | D152: Advanta | E152: Buy | F152: 360.00 | G152: - | H152: 427 | I152: 425.00 | J152: Profit of Rs.67.00/- | K152: 67.00 | L152: 18.61% | M152: Successful | N152: 2015-02-23
A153: 20 | B153: 2015-01-08 | D153: GDL | E153: Buy | F153: 360.00 | G153: - | H153: 455 | I153: 420.00 | J153: Profit of Rs.95.00/- | K153: 95.00 | L153: 26.39% | M153: Successful | N153: 2015-01-20
A154: 21 | B154: 2015-01-08 | D154: NRB Bearing | E154: Buy | F154: 130.00 | H154: 175.5 | I154: 165.00 | J154: Profit of Rs 45.50/- | K154: 45.50 | L154: 35.00% | M154: Successful | N154: 2017-12-19
A155: 22 | B155: 2015-02-05 | D155: GSFC | E155: Accu | F155: 98.00 | H155: 120 | I155: 120.00 | J155: Target Achieved | K155: 22.00 | L155: 22.45% | M155: Successful | N155: 2017-01-18
A156: 23 | B156: 2015-02-05 | D156: Sundrmfast | E156: Accu | F156: 196.00 | H156: 262 | I156: 255.00 | J156: Target Achieved | K156: 66.00 | L156: 33.67% | M156: Successful | N156: 2016-08-17
A157: 24 | B157: 2015-03-04 | D157: GPPL | E157: Accu | F157: 235 | H157: 77.00 | I157: 280-285 | J157: Loss of Rs.158/- | K157: -158.00 | L157: -67.23% | M157: Unsuccessful | N157: 2019-02-26
A158: 25 | B158: 2015-03-04 | D158: ORIENTCEM | E158: Accu | F158: 185.00 | H158: 224 | I158: 220-225 | J158: Target Achieved | K158: 39.00 | L158: 21.08% | M158: Successful | N158: 2016-10-04
A159: 26 | B159: 2015-03-27 | D159: PFS | E159: Accu | F159: 49.5 | H159: 15.85 | I159: 67.00 | J159: Loss of Rs.33.65/- | K159: -33.65 | L159: -68% | M159: Unsuccessful | N159: 2019-06-11
A160: 27 | B160: 2015-03-30 | D160: Walchandnagar Ind Ltd | E160: Accu | F160: 183.50 | H160: 219 | I160: 218.00 | J160: Profit of Rs.35.50/- | K160: 35.50 | L160: 19.35% | M160: Successful | N160: 2015-04-09
A161: 28 | B161: 2015-04-20 | D161: Kalpataru Power Transmission Ltd | E161: Accu | F161: =(227+237)/2 -> 232.00 | H161: 298 | I161: 298.00 | J161: Target Achieved | K161: 66.00 | L161: 28.45% | M161: Successful | N161: 2017-03-29
A162: 29 | B162: 2015-05-04 | D162: Mastek Ltd | E162: Buy | F162: 385.00 | H162: =212.5+331 -> 543.5 | I162: 510.00 | J162: Profit of Rs 158.50/- | K162: 158.50 | L162: 41.17% | M162: Successful | N162: 2015-08-19
A163: 30 | B163: 2015-05-04 | D163: Suprajit Eng | E163: Buy | F163: 115.50 | H163: 146 | I163: 142.00 | J163: Profit of Rs 30.50/- | K163: 30.50 | L163: 26.41% | M163: Successful | N163: 2015-07-17
A164: 31 | B164: 2015-05-27 | D164: TCI | E164: Buy | F164: 237.50 | H164: 279.5 | I164: 278.00 | J164: Target Achieved | K164: 42.00 | L164: 17.68% | M164: Successful | N164: 2015-08-06
A165: 32 | B165: 2015-06-19 | D165: HSIL | E165: Accu | F165: 340.00 | H165: 448 | I165: 448.00 | J165: Target Achieved | K165: 108.00 | L165: 31.76% | M165: Successful | N165: 2017-10-10
A166: 33 | B166: 2015-07-06 | D166: Capital First | E166: Accu | F166: 390.00 | H166: 460 | I166: 460.00 | J166: Target Achieved | K166: =H166-F166 -> 70.00 | L166: =K166/F166 -> 17.95% | M166: Successful | N166: 2016-04-18
A167: 34 | B167: 2015-07-10 | D167: Dolphin OffShore | E167: Accu | F167: 122.5 | H167: 61.00 | I167: 172.00 | J167: Loss of Rs.61.50/- | K167: -61.50 | L167: -50.20% | M167: Unsuccessful | N167: 2018-08-21
A168: 35 | B168: 2015-08-03 | D168: Allcargo logistics | E168: Accu | F168: 297.50 | H168: 350 | I168: 360.00 | J168: Profit of Rs 52.50/- | K168: 52.50 | L168: 17.65% | M168: Successful | N168: 2015-08-16
A169: 36 | B169: 2015-08-03 | D169: Camline Fine | E169: Accu | F169: 115.50 | H169: 149 | I169: 140.00 | J169: Profit of Rs 33.50/- | K169: 33.50 | L169: 29.00% | M169: Successful | N169: 2017-01-05
A170: 37 | B170: 2015-09-04 | D170: TCI | E170: Accu | F170: 226.00 | H170: 292 | I170: 292.00 | J170: Target Achieved | K170: 66.00 | L170: 29.20% | M170: Successful | N170: 2015-10-09
A171: 38 | B171: 2015-09-07 | D171: Kalpataru Power Transmission Ltd | E171: Accu | F171: 232.50 | H171: 312.5 | I171: 310.00 | J171: Target Achieved | K171: 80.00 | L171: 34.41% | M171: Successful | N171: 2017-03-29
A172: 39 | B172: 2015-09-21 | D172: LLOYD ELECTRIC & ENG LTD | E172: Accu | F172: 196.50 | H172: 238 | I172: 238.00 | J172: Target Achieved | K172: 41.50 | L172: 21.12% | M172: Successful | N172: 2015-10-14
A173: 40 | B173: 2015-09-24 | D173: L&T Finance Holding | E173: Accu | F173: 65.00 | H173: 82 | I173: 82.00 | J173: Target Achieved | K173: 17.00 | L173: 26.15% | M173: Successful | N173: 2016-07-27
A174: 41 | B174: 2015-10-14 | D174: KEC International ltd | E174: Accu | F174: 144.00 | H174: 182.5 | I174: 181.00 | J174: Target Achieved | K174: 38.50 | L174: 26.74% | M174: Successful | N174: 2017-03-23
A175: 42 | B175: 2015-10-14 | D175: Gruh Finance | E175: Accu | F175: 264.00 | H175: 311 | I175: 311.00 | J175: Target Achieved | K175: 47.00 | L175: 17.80% | M175: Successful | N175: 2016-08-22
A176: 43 | B176: 2015-11-10 | D176: Pidilitind | E176: Buy | F176: 549.50 | H176: 630 | I176: 630.00 | J176: Target Achieved | K176: 80.50 | L176: 14.65% | M176: Successful | N176: 2016-02-19
A177: 44 | B177: 2015-12-04 | D177: Zensar Technology | E177: Accu | F177: 1027.50 | H177: 1315 | I177: 1250.00 | J177: Target Achieved | K177: 287.50 | L177: 27.98% | M177: Successful | N177: 2018-05-24
A178: 45 | B178: 2015-12-29 | D178: Vinati Organics Ltd | E178: Accu | F178: 465.00 | H178: 540 | I178: 540.00 | J178: Target Achieved | K178: 75.00 | L178: 16.13% | M178: Successful | N178: 2016-06-09
A179: 46 | B179: 2016-01-11 | D179: GSFC | E179: Buy | F179: 81.00 | H179: 110 | I179: 110.00 | J179: Target Achieved | K179: 29.00 | L179: 35.80% | M179: Successful | N179: 2017-01-10
A180: 47 | B180: 2016-01-13 | D180: SSWL | E180: Buy | F180: 417.50 | H180: 547 | I180: 535.00 | J180: Target Achieved | K180: 129.50 | L180: 31.02% | M180: Successful | N180: 2016-07-27
A181: 48 | B181: 2016-02-08 | D181: Persistent System Ltd | E181: Accu | F181: 650.00 | H181: 800 | I181: 800.00 | J181: Target Achieved | K181: 150.00 | L181: 23.08% | M181: Successful | N181: 2018-02-23
A182: 49 | B182: 2016-03-04 | D182: UPL | E182: Accu | F182: 437.50 | H182: 504.5 | I182: 522.00 | J182: Profit of Rs.67/- | K182: 67.00 | L182: 15.31% | M182: Successful | N182: 2016-04-20
A183: 50 | B183: 2016-03-09 | D183: Ashoka Buildcon Ltd | E183: Accu | F183: 189.50 | H183: 218 | I183: 218.00 | J183: Target Achieved | K183: 28.50 | L183: 15.04% | M183: Successful | N183: 2017-10-26
A184: 51 | B184: 2016-04-11 | D184: PTC INDIA FIN SERV LTD | E184: Accu | F184: 36.5 | H184: 15.85 | I184: 60.00 | J184: Loss of Rs.20.65/- | K184: -20.65 | L184: -56.58% | M184: Unsuccessful | N184: 2019-06-11
A185: 52 | B185: 2016-04-12 | D185: CAMLINFINE $ | E185: Accu | F185: 93.00 | H185: 149 | I185: 140.00 | J185: Profit of Rs 56/- | K185: 56.00 | L185: 60.22% | M185: Successful | N185: 2017-01-05
A186: 53 | B186: 2016-04-12 | D186: Greaves Cotton Ltd. | E186: Accu | F186: 130.00 | H186: 150 | I186: 150-155 | J186: Target Achieved | K186: 20.00 | L186: 15.38% | M186: Successful | N186: 2016-07-13
A187: 54 | B187: 2016-04-13 | D187: DHFL | E187: Accu | F187: 196.00 | H187: 299 | I187: 299.00 | J187: Target Achieved | K187: 103.00 | L187: 52.55% | M187: Successful | N187: 2016-09-07
A188: 55 | B188: 2016-04-13 | D188: Magma | E188: Accu | F188: 88.00 | H188: 103 | I188: 103.00 | J188: Target Achieved | K188: 15.00 | L188: 17.05% | M188: Successful | N188: 2016-06-09
A189: 56 | B189: 2016-05-02 | D189: KEC International ltd $ | E189: Accu | F189: 127.50 | H189: 148 | I189: 148-150 | J189: Target Achieved | K189: =H189-F189 -> 20.50 | L189: =K189/F189 -> 16.08% | M189: Successful | N189: 2016-07-13
A190: 57 | B190: 2016-05-03 | D190: Mindtree | E190: Accu | F190: 675.00 | H190: 815 | I190: 790-800 | J190: Target Achieved | K190: =H190-F190 -> 140.00 | L190: =K190/F190 -> 20.74% | M190: Successful | N190: 2018-02-23
A191: 58 | B191: 2016-06-01 | D191: Atulauto | E191: Accu | F191: 500 | H191: 232.50 | I191: 565-570 | J191: Loss of Rs.267.50 /- | K191: =H191-F191 -> -267.50 | L191: =K191/F191 -> -53.50% | M191: Unsuccessful | N191: 2019-09-27
A192: 59 | B192: 2016-06-06 | D192: TRITURBINE | E192: Accu | F192: 110.00 | H192: 126.5 | I192: 125.00 | J192: Profit of Rs.16.50/- | K192: =H192-F192 -> 16.50 | L192: =K192/F192 -> 15.00% | M192: Successful | N192: 2016-07-01
A193: 60 | B193: 2016-06-17 | D193: Pennar Industries Ltd | E193: Accu | F193: 44.00 | H193: 69.5 | I193: 69.50 | J193: Profit of Rs.25.50/- | K193: =H193-F193 -> 25.50 | L193: =K193/F193 -> 57.95% | M193: Successful | N193: 2017-08-30
A194: 61 | B194: 2016-06-28 | D194: EVEREADY | E194: Accu | F194: 262.50 | H194: 340 | I194: 333.00 | J194: Profit of Rs.77.50/- | K194: 77.50 | L194: 29.52% | M194: Successful | N194: 2017-10-09
A195: 62 | B195: 2016-06-28 | D195: FIEMIND | E195: Accu | F195: 840.00 | H195: 1230 | I195: 1230.00 | J195: Target Achieved | K195: 390.00 | L195: 46.43% | M195: Successful | N195: 2016-10-06
A196: 63 | B196: 2016-07-05 | D196: Bajaj Corp Ltd | E196: Accu | F196: 395 | H196: =(468.5+342.5)/2 -> 405.50 | I196: 510.00 | J196: Profit of Rs.10.50/- | K196: =H196-F196 -> 10.50 | L196: =K196/F196 -> 3% | M196: Neutral | N196: 2019-05-21
A197: 64 | B197: 2016-08-02 | D197: GPPL $ | E197: Buy | F197: =169.5-12.8 -> 156.7 | H197: 77.00 | I197: 198-200 | J197: Loss of Rs.79.7/- | K197: -79.70 | L197: -50.86% | M197: Unsuccessful | N197: 2019-02-26
A198: 65 | B198: 2016-08-04 | D198: WONDERLA HOLIDAYS LTD | E198: Accu | F198: 400 | H198: 305.00 | I198: 475.00 | J198: Loss of Rs.95/- | K198: -95.00 | L198: -23.75% | M198: Unsuccessful | N198: 2019-05-21
A199: 66 | B199: 2016-08-11 | D199: CAMLINFINE | E199: Accu | F199: 86.50 | H199: 130 | I199: 130.00 | J199: Profit of Rs.43.50/- | K199: 43.50 | L199: 50.29% | M199: Successful | N199: 2017-12-22
A200: 67 | B200: 2016-08-18 | D200: GRANULES | E200: Accu | F200: 133.5 | H200: 126.50 | I200: 178.00 | J200: Exit | K200: -7.00 | L200: -5.24% | M200: Unsuccessful | N200: 2016-09-02
A201: 68 | B201: 2016-08-31 | D201: VA TECH WABAG | E201: Accu | F201: 560.00 | H201: 725 | I201: 725.00 | J201: Target Achieved | K201: 165.00 | L201: 29.46% | M201: Successful | N201: 2016-03-27
A202: 69 | B202: 2016-09-01 | D202: SKIPPER LIMITED | E202: Accu | F202: 160.50 | H202: 210 | I202: 210.00 | J202: Target Achieved | K202: 49.50 | L202: 30.84% | M202: Successful | N202: 2017-05-16
A203: 70 | B203: 2016-10-03 | D203: IFBIND | E203: Accu | F203: 430.00 | H203: 596 | I203: 575.00 | J203: Profit of Rs.166/- | K203: 166.00 | L203: 38.60% | M203: Successful | N203: 2017-02-03
A204: 71 | B204: 2016-10-14 | D204: ASIANTILES | E204: Accu | F204: 280.00 | H204: 345 | I204: 345.00 | J204: Target Achieved | K204: =H204-F204 -> 65.00 | L204: =K204/F204 -> 23.21% | M204: Successful | N204: 2017-03-20
A205: 72 | B205: 2016-10-14 | D205: DEEPIND | E205: Accu | F205: 245.00 | H205: 325.5 | I205: 330.00 | J205: Profit of Rs.80.5/- | K205: 80.50 | L205: =K205/F205 -> 32.86% | M205: Successful | N205: 2017-02-03
A206: 73 | B206: 2016-10-17 | D206: DCBBANK | E206: Accu | F206: 125.00 | H206: 160 | I206: 160.00 | J206: Target Achieved | K206: 35.00 | L206: 28.00% | M206: Successful | N206: 2017-03-09
A207: 74 | B207: 2016-10-17 | D207: ORIENTREF | E207: Accu | F207: 114.00 | H207: 145 | I207: 145.00 | J207: Target Achieved | K207: 31.00 | L207: =K207/F207 -> 27.19% | M207: Successful | N207: 2017-05-04
A208: 75 | B208: 2016-10-17 | D208: GANECOS | E208: Accu | F208: 212.00 | H208: 280 | I208: 276.00 | J208: Profit of Rs.68/- | K208: 68.00 | L208: =K208/F208 -> 32.08% | M208: Successful | N208: 2017-05-03
A209: 76 | B209: 2016-11-04 | D209: NBCC | E209: Accu | F209: 155.00 | H209: 210 | I209: 210.00 | J209: Profit of Rs.55/- | K209: 55.00 | L209: =K209/F209 -> 35.48% | M209: Successful | N209: 2017-07-28
A210: 77 | B210: 2016-12-06 | D210: PRECAM | E210: Accu | F210: 150.5 | H210: 72.50 | I210: 174.00 | J210: Loss of Rs.78/- | K210: -78.00 | L210: -51.83% | M210: Unsuccessful | N210: 2018-08-21
A211: 78 | B211: 2016-12-08 | D211: INFRATEL | E211: Accu | F211: 380.00 | H211: 478 | I211: 468.00 | J211: Target Achieved | K211: =H211-F211 -> 98.00 | L211: =K211/F211 -> 25.79% | M211: Successful | N211: 2017-10-17
A212: 79 | B212: 2016-12-30 | D212: GODREJPROP | E212: Accu | F212: 305.00 | H212: 375 | I212: 375.00 | J212: Target Achieved | K212: =H212-F212 -> 70.00 | L212: =K212/F212 -> 22.95% | M212: Successful | N212: 2017-02-02
A213: 80 | B213: 2017-01-04 | D213: DEEPAKNTR | E213: Accu | F213: 99.50 | H213: 158 | I213: 158.00 | J213: Target Achieved | K213: =H213-F213 -> 58.50 | L213: =K213/F213 -> 58.79% | M213: Successful | N213: 2017-06-12
A214: 81 | B214: 2017-01-04 | D214: DEEPAKNTR | E214: Accu | F214: 99.50 | H214: 158 | I214: 158.00 | J214: Target Achieved | K214: 58.50 | L214: 58.79% | M214: Successful | N214: 2017-06-12
A215: 82 | B215: 2017-02-20 | D215: RECLTD | E215: Accu | F215: 140.50 | H215: 220 | I215: 220.00 | J215: Target Achieved | K215: =H215-F215 -> 79.50 | L215: =K215/F215 -> 56.58% | M215: Successful | N215: 2017-05-09
A216: 83 | B216: 2017-02-20 | D216: SUBROS | E216: Accu | F216: 202.50 | H216: 234 | I216: 234.00 | J216: Target Achieved | K216: 31.50 | L216: 15.56% | M216: Successful | N216: 2017-04-11
A217: 84 | B217: 2017-03-24 | D217: VRLLOG | E217: Accu | F217: 300.50 | H217: 417.5 | I217: 420.00 | J217: Profit of Rs.117/- | K217: =H217-F217 -> 117.00 | L217: =K217/F217 -> 38.94% | M217: Successful | N217: 2017-12-01
A218: 85 | B218: 2017-03-24 | D218: FIEMIND | E218: Accu | F218: 850.00 | H218: 1042.5 | I218: 1023.00 | J218: Profit of Rs 192.50/- | K218: 192.50 | L218: 22.65% | M218: Successful | N218: 2017-04-05
A219: 86 | B219: 2017-04-05 | D219: RATNAMANI | E219: Accu | F219: 785.00 | H219: 930 | I219: 920.00 | J219: Profit of Rs.145/- | K219: =H219-F219 -> 145.00 | L219: =K219/F219 -> 18.47% | M219: Successful | N219: 2017-08-29
A220: 87 | B220: 2017-04-06 | D220: ZEEMEDIA | E220: Accu | F220: 40 | H220: 13.10 | I220: 60.00 | J220: Loss of Rs.26.9/- | K220: -26.90 | L220: -67.25% | M220: Unsuccessful | N220: 2018-02-07
A221: 88 | B221: 2017-04-12 | D221: DABUR | E221: Accu | F221: 289.50 | H221: 354 | I221: 360.00 | J221: Profit of Rs.64.5/- | K221: =H221-F221 -> 64.50 | L221: =K221/F221 -> 22.28% | M221: Successful | N221: 2017-11-01
A222: 89 | B222: 2017-04-20 | D222: KPRMILL | E222: Accu | F222: 700.00 | H222: 840 | I222: 840.00 | J222: Profit of Rs.140/- | K222: 140.00 | L222: 20.00% | M222: Successful | N222: 2017-06-07
A223: 90 | B223: 2017-06-01 | D223: ESSELPACK | E223: Accu | F223: 130.00 | H223: 144.25 | I223: 170.00 | J223: Profit of Rs.14.25/- | K223: 14.25 | L223: 10.96% | M223: Successful | N223: 2019-07-29
A224: 91 | B224: 2017-06-15 | D224: KEI | E224: Accu | F224: 214.50 | H224: 262 | I224: 262.00 | J224: Profit of Rs.47.5/- | K224: 47.50 | L224: 22.14% | M224: Successful | N224: 2017-08-30
A225: 92 | B225: 2017-07-17 | D225: MAYURUNIQ | E225: Accu | F225: 370.00 | H225: 447.5 | I225: 450.00 | J225: Target Achieved | K225: 77.50 | L225: 20.95% | M225: Successful | N225: 2017-10-27
A226: 93 | B226: 2017-07-27 | D226: RAMCOCEM | E226: Accu | F226: 657.50 | H226: 825 | I226: 820.00 | J226: Target Achieved | K226: 167.50 | L226: 25.48% | M226: Successful | N226: 2017-12-21
A227: 94 | B227: 2017-08-17 | D227: FINPIPE | E227: Accu | F227: 605.00 | H227: 750 | I227: 750.00 | J227: Profit of Rs.145/- | K227: 145.00 | L227: 23.97% | M227: Successful | N227: 2017-10-19
A228: 95 | B228: 2017-09-01 | D228: SHK | E228: Accu | F228: 255 | H228: 217.25 | I228: 320.00 | J228: Loss of Rs.37.75/- | K228: -37.75 | L228: -15% | M228: Unsuccessful | N228: 2019-07-15
A229: 96 | B229: 2017-09-19 | D229: SKIPPER | E229: Accu | F229: 215.00 | H229: 258 | I229: 258.00 | J229: Target Achieved | K229: 43.00 | L229: 20.00% | M229: Successful | N229: 2017-11-01
A230: 97 | B230: 2017-09-19 | D230: SKIPPER | E230: Accu | F230: 215.00 | H230: 258 | I230: 258.00 | J230: Target Achieved | K230: 43.00 | L230: 20.00% | M230: Successful | N230: 2017-11-01
A231: 98 | B231: 2017-09-20 | D231: CAMLINFINE$ | E231: Accu | F231: 75.00 | H231: 90 | I231: 90.00 | J231: Profit of Rs.15.00/- | K231: =H231-F231 -> 15.00 | L231: =K231/F231 -> 20.00% | M231: Successful | N231: 2017-10-11
A232: 99 | B232: 2017-10-03 | D232: GNA | E232: Accu | F232: 315.00 | H232: 392 | I232: 384.00 | J232: Profit of Rs.77/- | K232: 77.00 | L232: 24.44% | M232: Successful | N232: 2017-10-09
A233: 100 | B233: 2017-10-05 | D233: NOCIL | E233: Accu | F233: 145.00 | H233: 179 | I233: 180.00 | J233: Profit of Rs.34/- | K233: 34.00 | L233: 23.45% | M233: Successful | N233: 2017-10-17
A234: 101 | B234: 2017-10-06 | D234: CENTURYPLY | E234: Accu | F234: 256.00 | H234: 323 | I234: 320.00 | J234: Target Achieved | K234: 67.00 | L234: 26.17% | M234: Successful | N234: 2017-11-28
A235: 102 | B235: 2017-10-09 | D235: EIHOTEL | E235: Accu | F235: 137.50 | H235: 184 | I235: 183.00 | J235: Profit of Rs.46.5/- | K235: 46.50 | L235: 33.82% | M235: Successful | N235: 2018-01-08
A236: 103 | B236: 2017-10-10 | D236: NRBBEARING | E236: Accu | F236: 125.50 | H236: 158 | I236: 155.00 | J236: Profit of Rs.32.5/- | K236: 32.50 | L236: 25.90% | M236: Successful | N236: 2017-11-28
A237: 104 | B237: 2017-10-10 | D237: BOROSIL | E237: Accu | F237: 895.00 | H237: 1122.5 | I237: 1078.00 | J237: Profit of Rs.227.5/- | K237: 227.50 | L237: 25.42% | M237: Successful | N237: 2018-01-17
A238: 105 | B238: 2017-10-12 | D238: CYIENT | E238: Accu | F238: 525.00 | H238: 629 | I238: 629.00 | J238: Target Achieved | K238: 104.00 | L238: 19.81% | M238: Successful | N238: 2018-01-19
A239: 106 | B239: 2017-11-07 | D239: HATSUN | E239: Accu | F239: 740.00 | H239: 892.5 | I239: 900.00 | J239: Profit of Rs.152.5/- | K239: =H239-F239 -> 152.50 | L239: =K239/F239 -> 20.61% | M239: Successful | N239: 2017-11-13
A240: 107 | B240: 2017-12-04 | D240: SANGHIIND | E240: Accu | F240: 118.50 | H240: 143.5 | I240: 145.00 | J240: Profit of Rs.25/- | K240: =H240-F240 -> 25.00 | L240: =K240/F240 -> 21.10% | M240: Successful | N240: 2017-12-28
A241: 108 | B241: 2017-12-21 | D241: KAJARIACER | E241: Accu | F241: 715 | H241: 500.00 | I241: 872.00 | J241: Loss of Rs.215/- | K241: =H241-F241 -> -215.00 | L241: =K241/F241 -> -30.07% | M241: Unsuccessful | N241: 2019-07-24
... 54 more rows
